Workbook

Sheet MTDC (most common)
C1: PROJECT TITLE: | D1: TOPIC | K1: << | L1: FILL OUT HERE | O1: NOTES
C2: PI: | D2: TEST | K2: << | L2: FILL OUT HERE | O2: If constructing a NSF budget, use the NSF Budget Category Entries
C3: START: | D3: 2017-01-01 | K3: << | L3: FILL OUT HERE
C4: END: | D4: 2020-12-31 | K4: << | L4: FILL OUT HERE
C6: Be sure to select the appropriate F&A rate on line 136.
Z7: Check
O8: Year 1 | Q8: Year 2 | S8: Year 3 | U8: Year 4 | W8: Year 5 | X8: Total Project
C9: SALARIES AND WAGES | N9: Hours | P9: Hours | R9: Hours | T9: Hours | V9: Hours
C10: Senior Personnel | K10: Hourly Wage | L10: Fringe Rate | AB10: IH for UI Internal System | AD10: Payperiods | AE10: Hours per Payperiod | AF10: Total Hours per Year
C11: Total Number of Hours | D11: Employee Name | E11: Annual Increment | K11: 1.02
C12: =N12+P12+R12+T12+V12 -> 0 | D12: Jack | E12: Faculty | K12: 50.39 | L12: =VLOOKUP(E12,Leave_Benefits,2,0) -> 0.265 | N12: 0 | O12: =K12*(N12) -> 0 | P12: 0 | Q12: =K12*(P12)*$K$11 -> 0 | R12: 0 | S12: =K12*(R12)*$K$11*$K$11 -> 0 | T12: 0 | U12: =K12*(T12)*$K$11*$K$11*$K$11 -> 0 | V12: 0 | W12: =K12*(V12)*$K$11*$K$11*$K$11*$K$11 -> 0 | X12: =O12+Q12+S12+U12+W12 -> 0 | AB12: =IF(E12="Temporary help", X12, 0) -> 0 | AF12: =AD12*AE12 -> 0
C13: 0 | D13: Jill | E13: Faculty | K13: 51.7 | L13: 0.265 | N13: 0 | O13: =K13*(N13) -> 0 | P13: 0 | Q13: =K13*(P13)*$K$11 -> 0 | R13: 0 | S13: =K13*(R13)*$K$11*$K$11 -> 0 | T13: 0 | U13: =K13*(T13)*$K$11*$K$11*$K$11 -> 0 | V13: 0 | W13: =K13*(V13)*$K$11*$K$11*$K$11*$K$11 -> 0 | X13: 0 | AB13: =IF(E13="Temporary help", X13, 0) -> 0 | AF13: 0
C14: 0 | D14: John | E14: Faculty | K14: 27.49 | L14: 0.265 | N14: 0 | O14: 0 | P14: 0 | Q14: 0 | R14: 0 | S14: 0 | T14: 0 | U14: 0 | V14: 0 | W14: 0 | X14: 0 | AB14: 0 | AF14: 0
C15: 0 | D15: Bob | E15: Faculty | K15: 22.64 | L15: 0.265 | N15: 0 | O15: 0 | P15: 0 | Q15: 0 | R15: 0 | S15: 0 | T15: 0 | U15: 0 | V15: 0 | W15: 0 | X15: 0 | AB15: 0 | AF15: 0
C16: 0 | D16: Mary | E16: Faculty | K16: 22.64 | L16: 0.265 | N16: 0 | O16: 0 | P16: 0 | Q16: 0 | R16: 0 | S16: 0 | T16: 0 | U16: 0 | V16: 0 | W16: 0 | X16: 0 | AB16: 0 | AF16: 0
C17: 0 | D17: Scott | E17: Faculty | K17: 34 | L17: 0.265 | N17: 0 | O17: 0 | P17: 0 | Q17: =K17*(P17)*$K$11 -> 0 | R17: 0 | S17: 0 | T17: 0 | U17: 0 | V17: 0 | W17: 0 | X17: 0 | AB17: 0 | AF17: 0
J19: Total Senior Personnel | O19: =SUM(ROUNDUP(SUM(O12:O17),0)) -> 0 | Q19: =SUM(ROUNDUP(SUM(Q12:Q17),0)) -> 0 | S19: =SUM(ROUNDUP(SUM(S12:S17),0)) -> 0 | U19: =SUM(ROUNDUP(SUM(U12:U17),0)) -> 0 | W19: =SUM(ROUNDUP(SUM(W12:W17),0)) -> 0 | X19: =SUM(ROUNDUP(SUM(X12:X17),0)) -> 0 | Z19: =SUM(O19+Q19+S19+U19+W19) -> 0 | AB19: =SUM(AB12:AB17) -> 0 | AC19: IH Totals
C21: Other Personnel
C22: Total Number of Hours | E22: Annual Increment | K22: 1.02
C23: =N23+P23+R23+T23+V23 -> 0 | D23: POSTDOCTORAL ASSOCIATES [NSF] | E23: Staff / Postdocs | K23: 20 | L23: =VLOOKUP(E23,Leave_Benefits,2,0) -> 0.331 | N23: 0 | O23: =K23*(N23) -> 0 | P23: 0 | Q23: =K23*(P23)*$K$22 -> 0 | R23: 0 | S23: =K23*(R23)*$K$22*$K$22 -> 0 | T23: 0 | U23: =K23*(T23)*$K$22*$K$22*$K$22 -> 0 | V23: 0 | W23: =K23*(V23)*$K$22*$K$22*$K$22*$K$22 -> 0 | X23: =O23+Q23+S23+U23+W23 -> 0 | AB23: =IF(E23="Temporary help", X23, 0) -> 0 | AF23: =AD23*AE23 -> 0
C24: 0 | D24: OTHER PROFESSIONALS [NSF] | E24: Staff / Postdocs | K24: 20 | L24: =VLOOKUP(E24,Leave_Benefits,2,0) -> 0.331 | N24: 0 | O24: 0 | P24: 0 | Q24: =K24*(P24)*$K$22 -> 0 | R24: 0 | S24: =K24*(R24)*$K$22*$K$22 -> 0 | T24: 0 | U24: =K24*(T24)*$K$22*$K$22*$K$22 -> 0 | V24: 0 | W24: =K24*(V24)*$K$22*$K$22*$K$22*$K$22 -> 0 | X24: 0 | AB24: 0 | AF24: 0
C25: 0 | D25: SECRETARIAL - CLERICAL [NSF] | E25: Staff / Postdocs | K25: 20 | L25: =VLOOKUP(E25,Leave_Benefits,2,0) -> 0.331 | N25: 0 | O25: 0 | P25: 0 | Q25: 0 | R25: 0 | S25: 0 | T25: 0 | U25: 0 | V25: 0 | W25: 0 | X25: 0 | AB25: 0 | AF25: 0
C26: 0 | D26: Jovi | E26: Faculty | K26: 20 | L26: 0.265 | N26: 0 | O26: 0 | P26: 0 | Q26: 0 | R26: 0 | S26: 0 | T26: 0 | U26: 0 | V26: 0 | W26: 0 | X26: 0 | AB26: 0 | AF26: 0
C27: 0 | D27: Mozart | E27: Faculty | K27: 0 | L27: 0.265 | N27: 0 | O27: 0 | P27: 0 | Q27: 0 | R27: 0 | S27: =K27*(R27)*$K$22*$K$22 -> 0 | T27: 0 | U27: 0 | V27: 0 | W27: 0 | X27: 0 | AB27: 0 | AF27: 0
C28: 0 | D28: Beethoven | E28: Faculty | K28: 0 | L28: 0.265 | N28: 0 | O28: 0 | P28: 0 | Q28: 0 | R28: 0 | S28: 0 | T28: 0 | U28: 0 | V28: 0 | W28: 0 | X28: 0 | AB28: 0 | AF28: 0
C29: 0 | D29: Crow | E29: Faculty | K29: 0 | L29: 0.265 | N29: 0 | O29: 0 | P29: 0 | Q29: 0 | R29: 0 | S29: 0 | T29: 0 | U29: 0 | V29: 0 | W29: 0 | X29: 0 | AB29: 0 | AF29: 0
C30: 0 | D30: Turner | E30: Faculty | K30: 0 | L30: 0.265 | N30: 0 | O30: 0 | P30: 0 | Q30: 0 | R30: 0 | S30: 0 | T30: 0 | U30: 0 | V30: 0 | W30: 0 | X30: 0 | AB30: 0 | AF30: 0
C32: Student Employees | AB32: =SUM(AB23:AB30) -> 0 | AC32: IH Totals
C33: Number of Students | E33: Annual Increment | K33: 1.02
C34: 1 | D34: Graduate Student (MS) | E34: Student | K34: 15 | L34: =VLOOKUP(E34,Leave_Benefits,2,0) -> 0.038 | N34: 0 | O34: =K34*(N34) -> 0 | P34: 0 | Q34: =K34*(P34)*$K$33 -> 0 | R34: 0 | S34: =K34*(R34)*$K$33*$K$33 -> 0 | T34: 0 | U34: =K34*(T34)*$K$33*$K$33*$K$33 -> 0 | V34: 0 | W34: =K34*(V34)*$K$33*$K$33*$K$33*$K$33 -> 0 | X34: =O34+Q34+S34+U34+W34 -> 0 | AB34: =IF(E34="Temporary help", X34, 0) -> 0 | AF34: =AD34*AE34 -> 0
C35: 1 | D35: Graduate Student (MS) | E35: Student | K35: 8.5 | L35: =VLOOKUP(E35,Leave_Benefits,2,0) -> 0.038 | N35: 0 | O35: 0 | P35: 0 | Q35: =K35*(P35)*$K$33 -> 0 | R35: 0 | S35: =K35*(R35)*$K$33*$K$33 -> 0 | T35: 0 | U35: =K35*(T35)*$K$33*$K$33*$K$33 -> 0 | V35: 0 | W35: =K35*(V35)*$K$33*$K$33*$K$33*$K$33 -> 0 | X35: 0 | AB35: 0 | AF35: 0
C36: 1 | D36: Graduate Student (PhD) | E36: Student | K36: 8.5 | L36: 0.038 | N36: 0 | O36: 0 | P36: 0 | Q36: =K36*(P36)*$K$33 -> 0 | R36: 0 | S36: 0 | T36: 0 | U36: 0 | V36: 0 | W36: 0 | X36: 0 | AB36: 0 | AF36: 0
C37: 1 | D37: Graduate Student (PhD) | E37: Student | K37: 8.5 | L37: 0.038 | N37: 0 | O37: 0 | P37: 0 | Q37: 0 | R37: 0 | S37: 0 | T37: 0 | U37: =K37*(T37)*$K$33*$K$33*$K$33 -> 0 | V37: 0 | W37: 0 | X37: 0 | AB37: 0 | AF37: 0
C38: 1 | D38: Undergraduate Students - Summer / IH | E38: Student | K38: 12 | L38: 0.038 | N38: 0 | O38: 0 | P38: 0 | Q38: 0 | R38: 0 | S38: =K38*(R38)*$K$33*$K$33 -> 0 | T38: 0 | U38: 0 | V38: 0 | W38: 0 | X38: 0 | AB38: 0 | AF38: 0
C39: 1 | D39: Undergraduate Students - Academic | E39: Student | K39: 12 | L39: 0.038 | N39: 0 | O39: 0 | P39: 0 | Q39: 0 | R39: 0 | S39: 0 | T39: 0 | U39: 0 | V39: 0 | W39: 0 | X39: 0 | AB39: 0 | AF39: 0
J40: Total Other Personnel | O40: =ROUNDUP(SUM(O23:O39),0) -> 0 | Q40: =ROUNDUP(SUM(Q23:Q39),0) -> 0 | S40: =ROUNDUP(SUM(S23:S39),0) -> 0 | U40: =ROUNDUP(SUM(U23:U39),0) -> 0 | W40: =ROUNDUP(SUM(W23:W39),0) -> 0 | X40: =ROUNDUP(SUM(X23:X39),0) -> 0 | Z40: =SUM(O40+Q40+S40+U40+W40) -> 0
AB41: =SUM(AB34:AB39) -> 0 | AC41: IH Totals
M42: TOTAL SALARIES AND WAGES | N42: =ROUNDUP(SUM(O19,O40),0) -> 0 | P42: =ROUNDUP(SUM(Q19,Q40),0) -> 0 | R42: =ROUNDUP(SUM(S19,S40),0) -> 0 | T42: =ROUNDUP(SUM(U19,U40),0) -> 0 | V42: =ROUNDUP(SUM(W19,W40),0) -> 0 | X42: =ROUNDUP(SUM(X19,X40),0) -> 0 | Z42: =SUM(N42+P42+R42+T42+V42) -> 0 | AB42: =AB19+AB32+AB41 -> 0
C43: FRINGE BENEFITS
C44: Senior Personnel | D44: =D12 -> Jack | E44: =E12 -> Faculty | L44: =VLOOKUP(E44,Staff_Benefits,2,0) -> 0.265 | O44: =O12*$L44 -> 0 | Q44: =Q12*$L44 -> 0 | S44: =S12*$L44 -> 0 | U44: =U12*$L44 -> 0 | W44: =W12*$L44 -> 0 | X44: =SUM(O44+Q44+S44+U44+W44) -> 0
D45: Jill | E45: Faculty | L45: 0.265 | O45: 0 | Q45: =Q13*$L45 -> 0 | S45: 0 | U45: 0 | W45: 0 | X45: 0
D46: John | E46: Faculty | L46: 0.265 | O46: 0 | Q46: 0 | S46: 0 | U46: 0 | W46: 0 | X46: 0
D47: Bob | E47: Faculty | L47: 0.265 | O47: 0 | Q47: 0 | S47: 0 | U47: 0 | W47: 0 | X47: 0
D48: Mary | E48: Faculty | L48: 0.265 | O48: 0 | Q48: 0 | S48: 0 | U48: 0 | W48: 0 | X48: 0
D49: Scott | E49: Faculty | L49: 0.265 | O49: 0 | Q49: 0 | S49: 0 | U49: 0 | W49: 0 | X49: 0
J50: Total Senior Personnel | O50: =SUM(O44:O49) -> 0 | Q50: =SUM(Q44:Q49) -> 0 | S50: =SUM(S44:S49) -> 0 | U50: =SUM(U44:U49) -> 0 | W50: =SUM(W44:W49) -> 0 | X50: =SUM(X44:X49) -> 0 | Z50: =SUM(O50+Q50+S50+U50+W50) -> 0
C51: Other Personnel
D52: =D23 -> POSTDOCTORAL ASSOCIATES [NSF] | E52: =E23 -> Staff / Postdocs | L52: =VLOOKUP(E52,Staff_Benefits,2,0) -> 0.331 | O52: =O23*$L52 -> 0 | Q52: =Q23*$L52 -> 0 | S52: =S23*$L52 -> 0 | U52: =U23*$L52 -> 0 | W52: =W23*$L52 -> 0 | X52: =SUM(O52+Q52+S52+U52+W52) -> 0
D53: =D24 -> OTHER PROFESSIONALS [NSF] | E53: Staff / Postdocs | L53: 0.331 | O53: 0 | Q53: 0 | S53: 0 | U53: 0 | W53: 0 | X53: 0
D54: =D25 -> SECRETARIAL - CLERICAL [NSF] | E54: Staff / Postdocs | L54: 0.331 | O54: 0 | Q54: 0 | S54: 0 | U54: 0 | W54: 0 | X54: 0
D55: Jovi | E55: Faculty | L55: 0.265 | O55: 0 | Q55: 0 | S55: 0 | U55: 0 | W55: 0 | X55: 0
D56: Mozart | E56: Faculty | L56: 0.265 | O56: 0 | Q56: 0 | S56: 0 | U56: 0 | W56: 0 | X56: 0
D57: Beethoven | E57: Faculty | L57: 0.265 | O57: 0 | Q57: 0 | S57: 0 | U57: 0 | W57: 0 | X57: 0
D58: Crow | E58: Faculty | L58: 0.265 | O58: 0 | Q58: 0 | S58: 0 | U58: 0 | W58: 0 | X58: 0
D59: Turner | E59: Faculty | L59: 0.265 | O59: 0 | Q59: 0 | S59: 0 | U59: 0 | W59: 0 | X59: 0
C60: Student Employees
D61: =D34 -> Graduate Student (MS) | E61: =E34 -> Student | L61: =VLOOKUP(E61,Staff_Benefits,2,0) -> 0.038 | O61: =(O34)*$L61 -> 0 | Q61: =(Q34)*$L61 -> 0 | S61: =(S34)*$L61 -> 0 | U61: =(U34)*$L61 -> 0 | W61: =(W34)*$L61 -> 0 | X61: 0
D62: Graduate Student (MS) | E62: Student | L62: 0.038 | O62: 0 | Q62: 0 | S62: 0 | U62: 0 | W62: 0 | X62: 0
D63: Graduate Student (PhD) | E63: Student | L63: 0.038 | O63: 0 | Q63: 0 | S63: 0 | U63: 0 | W63: 0 | X63: 0
D64: Graduate Student (PhD) | E64: Student | L64: 0.038 | O64: 0 | Q64: 0 | S64: 0 | U64: 0 | W64: 0 | X64: 0
D65: =D38 -> Undergraduate Students - Summer / IH | E65: Student | L65: 0.038 | O65: 0 | Q65: 0 | S65: 0 | U65: 0 | W65: 0 | X65: 0
D66: Undergraduate Students - Academic | E66: Student | L66: 0.038 | O66: 0 | Q66: 0 | S66: 0 | U66: 0 | W66: 0 | X66: 0
C67: Grad Student Health Fee | D67: Grad Student Health Insurance (Enter manually) | O67: 0 | Q67: 0 | S67: 0 | U67: 0 | W67: 0 | X67: =SUM(O67+Q67+S67+U67+W67) -> 0
J68: Total Other Personnel | O68: =SUM(O52:O67) -> 0 | Q68: =SUM(Q52:Q67) -> 0 | S68: =SUM(S52:S67) -> 0 | U68: =SUM(U52:U67) -> 0 | W68: =SUM(W52:W67) -> 0 | X68: =SUM(X52:X67) -> 0 | Z68: =SUM(O68+Q68+S68+U68+W68) -> 0
M70: TOTAL FRINGE BENEFITS | N70: =ROUNDUP(SUM(O50, O68),0) -> 0 | P70: =ROUNDUP(SUM(Q50,Q68),0) -> 0 | R70: =ROUNDUP(SUM(S50,S68),0) -> 0 | T70: =ROUNDUP(SUM(U50, U68),0) -> 0 | V70: =ROUNDUP(SUM(W50, W68),0) -> 0 | X70: =ROUNDUP(SUM(X50, X68),0) -> 0 | Z70: =SUM(N70+P70+R70+T70+V70) -> 0
M72: TOTAL SALARIES AND BENEFITS | N72: =ROUNDUP(SUM(N42,N70),0) -> 0 | P72: =ROUNDUP(SUM(P42,P70),0) -> 0 | R72: =ROUNDUP(SUM(R42,R70),0) -> 0 | T72: =ROUNDUP(SUM(T42,T70),0) -> 0 | V72: =ROUNDUP(SUM(V42,V70),0) -> 0 | X72: =ROUNDUP(SUM(X42,X70),0) -> 0 | Z72: =SUM(N72+P72+R72+T72+V72) -> 0
C73: TRAVEL | E73: Number
C74: 1. Domestic Travel | D74: Description | E74: Yr 1 | F74: Yr 2 | G74: Yr 3 | H74: Yr 4 | I74: Yr 5 | K74: Item Cost
C75: Trip 1:
C76: E5381 Airfare-Out of State | D76: To-From? Who>? | E76: 1 | F76: 1 | G76: 1 | H76: 1 | I76: 1 | N76: =E76*K76 -> 0 | P76: =IF(C76="Airfare",F76*K76*1.07,F76*K76) -> 0 | R76: =IF(C76="Airfare",G76*K76*1.07*1.07,G76*K76) -> 0 | T76: =IF(C76="Airfare",H76*K76*1.07*1.07*1.07,H76*K76) -> 0 | V76: =IF(C76="Airfare",I76*K76*1.07*1.07*1.07*1.07,I76*K76) -> 0 | X76: =SUM(N76+P76+R76+T76+V76) -> 0
C77: E5392 Public Conveyance Out-of-State | D77: Taxis, buses, etc | N77: =E77*K77 -> 0 | P77: =IF(C77="Airfare",F77*K77*1.07,F77*K77) -> 0 | R77: =IF(C77="Airfare",G77*K77*1.07*1.07,G77*K77) -> 0 | T77: =IF(C77="Airfare",H77*K77*1.07*1.07*1.07,H77*K77) -> 0 | V77: =IF(C77="Airfare",I77*K77*1.07*1.07*1.07*1.07,I77*K77) -> 0 | X77: =SUM(N77+P77+R77+T77+V77) -> 0
C78: E5397 Subsistence-Out of State-Taxable | D78: This category includes lodging | N78: =E78*K78 -> 0 | P78: =IF(C78="Airfare",F78*K78*1.07,F78*K78) -> 0 | R78: =IF(C78="Airfare",G78*K78*1.07*1.07,G78*K78) -> 0 | T78: =IF(C78="Airfare",H78*K78*1.07*1.07*1.07,H78*K78) -> 0 | V78: =IF(C78="Airfare",I78*K78*1.07*1.07*1.07*1.07,I78*K78) -> 0 | X78: =SUM(N78+P78+R78+T78+V78) -> 0
C79: Trip 2:
C80: E5381 Airfare-Out of State | D80: To-From? Who>? | N80: 0 | P80: 0 | R80: 0 | T80: 0 | V80: 0 | X80: 0
C81: E5381 Airfare-Out of State | D81: To-From? Who>? | N81: 0 | P81: 0 | R81: 0 | T81: 0 | V81: 0 | X81: 0
C82: E5381 Airfare-Out of State | D82: To-From? Who>? | N82: 0 | P82: 0 | R82: 0 | T82: 0 | V82: 0 | X82: 0
C83: Trip 3:
C84: E5381 Airfare-Out of State | D84: To-From? Who>? | N84: =E84*K84 -> 0 | P84: 0 | R84: 0 | T84: 0 | V84: 0 | X84: 0
C85: E5381 Airfare-Out of State | D85: To-From? Who>? | N85: 0 | P85: 0 | R85: 0 | T85: 0 | V85: 0 | X85: 0
C86: E5381 Airfare-Out of State | D86: To-From? Who>? | N86: 0 | P86: 0 | R86: 0 | T86: 0 | V86: 0 | X86: 0
C87: Trip 4:
C88: E5381 Airfare-Out of State | D88: To-From? Who>? | N88: =E88*K88 -> 0 | P88: =IF(C88="Airfare",F88*K88*1.07,F88*K88) -> 0 | R88: =IF(C88="Airfare",G88*K88*1.07*1.07,G88*K88) -> 0 | T88: =IF(C88="Airfare",H88*K88*1.07*1.07*1.07,H88*K88) -> 0 | V88: =IF(C88="Airfare",I88*K88*1.07*1.07*1.07*1.07,I88*K88) -> 0 | X88: =SUM(N88+P88+R88+T88+V88) -> 0
C89: E5381 Airfare-Out of State | D89: To-From? Who>? | N89: =E89*K89 -> 0 | P89: =IF(C89="Airfare",F89*K89*1.07,F89*K89) -> 0 | R89: =IF(C89="Airfare",G89*K89*1.07*1.07,G89*K89) -> 0 | T89: =IF(C89="Airfare",H89*K89*1.07*1.07*1.07,H89*K89) -> 0 | V89: =IF(C89="Airfare",I89*K89*1.07*1.07*1.07*1.07,I89*K89) -> 0 | X89: =SUM(N89+P89+R89+T89+V89) -> 0
C90: E5381 Airfare-Out of State | D90: To-From? Who>? | N90: =E90*K90 -> 0 | P90: =IF(C90="Airfare",F90*K90*1.07,F90*K90) -> 0 | R90: =IF(C90="Airfare",G90*K90*1.07*1.07,G90*K90) -> 0 | T90: =IF(C90="Airfare",H90*K90*1.07*1.07*1.07,H90*K90) -> 0 | V90: =IF(C90="Airfare",I90*K90*1.07*1.07*1.07*1.07,I90*K90) -> 0 | X90: =SUM(N90+P90+R90+T90+V90) -> 0
C91: Trip 5:
C92: E5381 Airfare-Out of State | D92: To-From? Who>? | N92: =E92*K92 -> 0 | P92: =IF(C92="Airfare",F92*K92*1.07,F92*K92) -> 0 | R92: =IF(C92="Airfare",G92*K92*1.07*1.07,G92*K92) -> 0 | T92: =IF(C92="Airfare",H92*K92*1.07*1.07*1.07,H92*K92) -> 0 | V92: =IF(C92="Airfare",I92*K92*1.07*1.07*1.07*1.07,I92*K92) -> 0 | X92: =SUM(N92+P92+R92+T92+V92) -> 0
C93: E5381 Airfare-Out of State | D93: To-From? Who>? | N93: =E93*K93 -> 0 | P93: =IF(C93="Airfare",F93*K93*1.07,F93*K93) -> 0 | R93: =IF(C93="Airfare",G93*K93*1.07*1.07,G93*K93) -> 0 | T93: =IF(C93="Airfare",H93*K93*1.07*1.07*1.07,H93*K93) -> 0 | V93: =IF(C93="Airfare",I93*K93*1.07*1.07*1.07*1.07,I93*K93) -> 0 | X93: =SUM(N93+P93+R93+T93+V93) -> 0
C94: E5381 Airfare-Out of State | D94: To-From? Who>? | N94: =E94*K94 -> 0 | P94: =IF(C94="Airfare",F94*K94*1.07,F94*K94) -> 0 | R94: =IF(C94="Airfare",G94*K94*1.07*1.07,G94*K94) -> 0 | T94: =IF(C94="Airfare",H94*K94*1.07*1.07*1.07,H94*K94) -> 0 | V94: =IF(C94="Airfare",I94*K94*1.07*1.07*1.07*1.07,I94*K94) -> 0 | X94: 0
C95: Trip 6:
C96: E5381 Airfare-Out of State | D96: To-From? Who>? | N96: =E96*K96 -> 0 | P96: =IF(C96="Airfare",F96*K96*1.07,F96*K96) -> 0 | R96: =IF(C96="Airfare",G96*K96*1.07*1.07,G96*K96) -> 0 | T96: =IF(C96="Airfare",H96*K96*1.07*1.07*1.07,H96*K96) -> 0 | V96: =IF(C96="Airfare",I96*K96*1.07*1.07*1.07*1.07,I96*K96) -> 0 | X96: =SUM(N96+P96+R96+T96+V96) -> 0
C97: E5381 Airfare-Out of State | D97: To-From? Who>? | N97: =E97*K97 -> 0 | P97: =IF(C97="Airfare",F97*K97*1.07,F97*K97) -> 0 | R97: =IF(C97="Airfare",G97*K97*1.07*1.07,G97*K97) -> 0 | T97: =IF(C97="Airfare",H97*K97*1.07*1.07*1.07,H97*K97) -> 0 | V97: =IF(C97="Airfare",I97*K97*1.07*1.07*1.07*1.07,I97*K97) -> 0 | X97: 0
C98: E5381 Airfare-Out of State | D98: To-From? Who>? | N98: =E98*K98 -> 0 | P98: =IF(C98="Airfare",F98*K98*1.07,F98*K98) -> 0 | R98: =IF(C98="Airfare",G98*K98*1.07*1.07,G98*K98) -> 0 | T98: =IF(C98="Airfare",H98*K98*1.07*1.07*1.07,H98*K98) -> 0 | V98: =IF(C98="Airfare",I98*K98*1.07*1.07*1.07*1.07,I98*K98) -> 0 | X98: 0
J99: Total Domestic Travel | N99: =SUM(N76:N98) -> 0 | P99: =SUM(P76:P98) -> 0 | R99: =SUM(R76:R98) -> 0 | T99: =SUM(T76:T98) -> 0 | V99: =SUM(V76:V98) -> 0 | X99: =SUM(X76:X98) -> 0 | Z99: =SUM(N99+P99+R99+T99+V99) -> 0
E100: Number
C101: 2. Foreign Travel | D101: Description | E101: Yr 1 | F101: Yr 2 | G101: Yr 3 | H101: Yr 4 | I101: Yr 5 | K101: Item Cost
C102: Trip 1:
C103: E5379 Airfare-Non USA | D103: To-From? Who>? | E103: 1 | F103: 1 | G103: 1 | H103: 1 | I103: 1 | N103: =E103*K103 -> 0 | P103: =IF(C103="Airfare",F103*K103*1.07,F103*K103) -> 0 | R103: =IF(C103="Airfare",G103*K103*1.07*1.07,G103*K103) -> 0 | T103: =IF(C103="Airfare",H103*K103*1.07*1.07*1.07,H103*K103) -> 0 | V103: =IF(C103="Airfare",I103*K103*1.07*1.07*1.07*1.07,I103*K103) -> 0 | X103: =SUM(N103+P103+R103+T103+V103) -> 0
C104: E5393 Public Conveyance Non-USA | D104: Taxis, buses, etc | N104: 0 | P104: 0 | R104: 0 | T104: 0 | V104: 0 | X104: 0
C105: E5398 Subsistence-Non USA | D105: This category includes lodging | N105: 0 | P105: 0 | R105: 0 | T105: 0 | V105: 0 | X105: 0
C106: Trip 2:
C107: E5381 Airfare-Out of State | D107: To-From? Who>? | N107: 0 | P107: 0 | R107: 0 | T107: 0 | V107: 0 | X107: 0
C108: E5381 Airfare-Out of State | D108: To-From? Who>? | N108: 0 | P108: 0 | R108: 0 | T108: 0 | V108: 0 | X108: 0
C109: E5381 Airfare-Out of State | D109: To-From? Who>? | N109: 0 | P109: 0 | R109: 0 | T109: 0 | V109: 0 | X109: 0
J110: Total Foreign Travel | N110: =SUM(N103:N109) -> 0 | P110: =SUM(P103:P109) -> 0 | R110: =SUM(R103:R109) -> 0 | T110: =SUM(T103:T109) -> 0 | V110: =SUM(V103:V109) -> 0 | X110: =SUM(X103:X109) -> 0 | Z110: =SUM(N110+P110+R110+T110+V110) -> 0
M111: TOTAL TRAVEL | N111: =ROUNDUP(SUM(N99,N110),0) -> 0 | P111: =ROUNDUP(SUM(P99,P110),0) -> 0 | R111: =ROUNDUP(SUM(R99,R110),0) -> 0 | T111: =ROUNDUP(SUM(T99,T110),0) -> 0 | V111: =ROUNDUP(SUM(V99,V110),0) -> 0 | X111: =ROUNDUP(SUM(X99,X110),0) -> 0 | Z111: =SUM(N111+P111+R111+T111+V111) -> 0
C112: SERVICES | E112: Description
C113: E4049 - Journal Publication Costs | E113: Journal Publication Costs [NSF / NASA Budget Category] | N113: 0 | P113: 0 | R113: 0 | T113: 0 | V113: 0 | X113: =SUM(N113+P113+R113+T113+V113) -> 0
C114: E5350 - Other Technical Services | E114: Consultant Services [NSF / NASA Budget Category] | N114: 0 | P114: 0 | R114: 0 | T114: 0 | V114: 0 | X114: =SUM(N114+P114+R114+T114+V114) -> 0
C115: E5320 - Computer Services | E115: Computer Services [NSF Budget Category] | N115: 0 | P115: 0 | R115: 0 | T115: 0 | V115: 0 | X115: =SUM(N115+P115+R115+T115+V115) -> 0
C116: OTHER SERVICES (excluding defined NSF/ NASA Budget Category Items]
C117: Select Other Expenses from List | N117: 0 | P117: 0 | R117: 0 | T117: 0 | V117: 0 | X117: 0
C118: Select Other Expenses from List | N118: 0 | P118: 0 | R118: 0 | T118: 0 | V118: 0 | X118: 0
C119: Select Other Expenses from List | N119: 0 | P119: 0 | R119: 0 | T119: 0 | V119: 0 | X119: 0
C120: Select Other Expenses from List | N120: 0 | P120: 0 | R120: 0 | T120: 0 | V120: 0 | X120: 0
C121: Select Other Expenses from List | N121: 0 | P121: 0 | R121: 0 | T121: 0 | V121: 0 | X121: 0
C122: Select Other Expenses from List | N122: 0 | P122: 0 | R122: 0 | T122: 0 | V122: 0 | X122: 0
C123: Select Other Expenses from List | N123: 0 | P123: 0 | R123: 0 | T123: 0 | V123: 0 | X123: 0
H124: Total Other Contractual Srvs | N124: =SUM(N113:O123) -> 0 | P124: =SUM(P113:Q123) -> 0 | R124: =SUM(R113:S123) -> 0 | T124: =SUM(T113:U123) -> 0 | V124: =SUM(V113:W123) -> 0 | X124: =SUM(X113:X123) -> 0 | Z124: =N124+P124+R124+T124+V124 -> 0 | AB124: Subaward Totals: First $25,000 plus costs over $25,000
C125: Subawards subject to F&A (first $25,000) | AB125: Subaward Name | AD125: Year 1 | AE125: Year 2 | AF125: Year 3 | AG125: Year 4 | AH125: Year 5 | AI125: Totals
C126: Subaward #1 | N126: 0 | P126: 0 | R126: 0 | T126: 0 | V126: 0 | X126: =SUM(N126+P126+R126+T126+V126) -> 0 | AB126: =C126 -> Subaward #1 | AD126: =N126+N166 -> 0 | AE126: =P126+P166 -> 0 | AF126: =R126+R166 -> 0 | AG126: =T126+T166 -> 0 | AH126: =V126+V166 -> 0 | AI126: =AD126+AE126+AF126+AG126+AH126 -> 0
C127: Subaward #2 | N127: 0 | P127: 0 | R127: 0 | T127: 0 | V127: 0 | X127: =SUM(N127+P127+R127+T127+V127) -> 0 | AB127: =C127 -> Subaward #2 | AD127: =N127+N167 -> 0 | AE127: =P127+P167 -> 0 | AF127: =R127+R167 -> 0 | AG127: =T127+T167 -> 0 | AH127: =V127+V167 -> 0 | AI127: =AD127+AE127+AF127+AG127+AH127 -> 0
C128: Subaward #3 | N128: 0 | P128: 0 | R128: 0 | T128: 0 | V128: 0 | X128: =SUM(N128+P128+R128+T128+V128) -> 0 | AB128: =C128 -> Subaward #3 | AD128: =N128+N168 -> 0 | AE128: =P128+P168 -> 0 | AF128: =R128+R168 -> 0 | AG128: =T128+T168 -> 0 | AH128: =V128+V168 -> 0 | AI128: =AD128+AE128+AF128+AG128+AH128 -> 0
C129: Subaward #4 | N129: 0 | P129: 0 | R129: 0 | T129: 0 | V129: 0 | X129: =SUM(N129+P129+R129+T129+V129) -> 0 | AB129: =C129 -> Subaward #4 | AD129: =N129+N169 -> 0 | AE129: =P129+P169 -> 0 | AF129: =R129+R169 -> 0 | AG129: =T129+T169 -> 0 | AH129: =V129+V169 -> 0 | AI129: =AD129+AE129+AF129+AG129+AH129 -> 0
J130: Total Subawards | N130: =SUM(N126:N129) -> 0 | P130: =SUM(P126:P129) -> 0 | R130: =SUM(R126:R129) -> 0 | T130: =SUM(T126:T129) -> 0 | V130: =SUM(V126:V129) -> 0 | X130: =SUM(X126:X129) -> 0 | Z130: =N130+P130+R130+T130+V130 -> 0 | AB130: Totals: | AD130: =SUM(AD126:AD129) -> 0 | AE130: 0 | AF130: 0 | AG130: 0 | AH130: 0 | AI130: 0
M131: TOTAL CONTRACTUAL SERVICES | N131: =SUM(N124+N130) -> 0 | P131: =SUM(P124+P130) -> 0 | R131: =SUM(R124+R130) -> 0 | T131: =SUM(T124+T130) -> 0 | V131: =SUM(V124+V130) -> 0 | X131: =SUM(X124+X130) -> 0 | Z131: =SUM(N131+P131+R131+T131+V131) -> 0
C132: MATERIAL & SUPPLIES | E132: Description
C133: Select Equipment and Supplies from List | N133: 0 | P133: 0 | R133: 0 | T133: 0 | V133: 0 | X133: =SUM(N133+P133+R133+T133+V133) -> 0
C134: Select Equipment and Supplies from List | N134: 0 | P134: 0 | R134: 0 | T134: 0 | V134: 0 | X134: =SUM(N134+P134+R134+T134+V134) -> 0
C135: Select Equipment and Supplies from List | N135: 0 | P135: 0 | R135: 0 | T135: 0 | V135: 0 | X135: =SUM(N135+P135+R135+T135+V135) -> 0
C136: Select Equipment and Supplies from List | N136: 0 | P136: 0 | R136: 0 | T136: 0 | V136: 0 | X136: 0
C137: Select Equipment and Supplies from List | N137: 0 | P137: 0 | R137: 0 | T137: 0 | V137: 0 | X137: 0
C138: Select Equipment and Supplies from List | N138: 0 | P138: 0 | R138: 0 | T138: 0 | V138: 0 | X138: 0
C139: Select Equipment and Supplies from List | N139: 0 | P139: 0 | R139: 0 | T139: 0 | V139: 0 | X139: 0
C140: Select Equipment and Supplies from List | N140: 0 | P140: 0 | R140: 0 | T140: 0 | V140: 0 | X140: 0
M141: TOTAL MATERIAL & SUPPLIES | N141: =SUM(N133:N140) -> 0 | P141: =SUM(P133:P140) -> 0 | R141: =SUM(R133:R140) -> 0 | T141: =SUM(T133:T140) -> 0 | V141: =SUM(V133:V140) -> 0 | X141: =SUM(X133:X140) -> 0 | Z141: =SUM(N141+P141+R141+T141+V141) -> 0
C143: A. MTDC (total costs subject to F&A) | N143: =N141+N131+N111+N72 -> 0 | P143: =P141+P131+P111+P72 -> 0 | R143: =R141+R131+R111+R72 -> 0 | T143: =T141+T131+T111+T72 -> 0 | V143: =V141+V131+V111+V72 -> 0 | X143: =X141+X131+X111+X72 -> 0 | Z143: =SUM(N143+P143+R143+T143+V143) -> 0
C145: B. Facilities and Administration (F&A) | I145: Organized Research | M145: =VLOOKUP(I145,F_A,2,0) -> 0.475 | N145: =N143*M145 -> 0 | P145: =P143*M145 -> 0 | R145: =R143*M145 -> 0 | T145: =T143*M145 -> 0 | V145: =V143*M145 -> 0 | X145: =X143*M145 -> 0 | Z145: =SUM(N145+P145+R145+T145+V145) -> 0
C146: EQUIPMENT FABRICATION SALARY COSTS
C147: Total Number of Hours | D147: Employee | K147: Hourly Wage | L147: Fringe Rate | N147: Hours | P147: Hours | R147: Hours | T147: Hours | V147: Hours
C148: =N148+P148+R148+T148+V148 -> 0 | E148: Faculty | K148: 0 | L148: =VLOOKUP(E148,Leave_Benefits,2,0) -> 0.265 | N148: 0 | O148: =K148*(1+L148)*N148 -> 0 | P148: 0 | Q148: =K148*(1+L148)*P148*1.03 -> 0 | R148: 0 | S148: =K148*(1+L148)*R148*1.03*1.03 -> 0 | T148: 0 | U148: =K148*(1+L148)*T148*1.03*1.03*1.03 -> 0 | V148: 0 | W148: =K148*(1+L148)*V148*1.03*1.03*1.03*1.03 -> 0 | X148: =SUM(O148+Q148+S148+U148+W148) -> 0
C149: =N149+P149+R149+T149+V149 -> 0 | E149: Faculty | K149: 0 | L149: =VLOOKUP(E149,Leave_Benefits,2,0) -> 0.265 | N149: 0 | O149: =K149*(1+L149)*N149 -> 0 | P149: 0 | Q149: =K149*(1+L149)*P149*1.03 -> 0 | R149: 0 | S149: =K149*(1+L149)*R149*1.03*1.03 -> 0 | T149: 0 | U149: =K149*(1+L149)*T149*1.03*1.03*1.03 -> 0 | V149: 0 | W149: =K149*(1+L149)*V149*1.03*1.03*1.03*1.03 -> 0 | X149: =SUM(O149+Q149+S149+U149+W149) -> 0
J151: Total Fabrication Salary | O151: =SUM(O148:O149) -> 0 | Q151: =SUM(Q148:Q149) -> 0 | S151: =SUM(S148:S149) -> 0 | U151: =SUM(U148:U149) -> 0 | W151: =SUM(W148:W149) -> 0 | X151: =SUM(X148:X149) -> 0 | Z151: =O151+Q151+S151+U151+W151 -> 0
L153: Fringe Rate
L154: =VLOOKUP(E148,Staff_Benefits,2,0) -> 0.265 | N154: =O148*L154 -> 0 | P154: =Q148*L154 -> 0 | R154: =S148*L154 -> 0 | T154: =U148*L154 -> 0 | V154: =W148*L154 -> 0 | X154: =N154+P154+R154+T154+V154 -> 0
L155: =VLOOKUP(E149,Staff_Benefits,2,0) -> 0.265 | N155: =O149*L155 -> 0 | P155: =Q149*L155 -> 0 | R155: =S149*L155 -> 0 | T155: =U149*L155 -> 0 | V155: =W149*L155 -> 0 | X155: =N155+P155+R155+T155+V155 -> 0
J156: Total Fabrication Benefits | N156: =SUM(N154:N155) -> 0 | P156: =SUM(P154:P155) -> 0 | R156: =SUM(R154:R155) -> 0 | T156: =SUM(T154:T155) -> 0 | V156: =SUM(V154:V155) -> 0 | X156: =SUM(X154:X155) -> 0 | Z156: =N156+P156+R156+T156+V156 -> 0
D157: TOTAL FABRICATION SALARY & BENEFIT COSTS | N157: =SUM(O151+N156) -> 0 | P157: =SUM(Q151+P156) -> 0 | R157: =SUM(S151+R156) -> 0 | T157: =SUM(U151+T156) -> 0 | V157: =SUM(W151+V156) -> 0 | X157: =SUM(X151+X156) -> 0 | Z157: =SUM(N157+P157+R157+T157+V157) -> 0
C158: NSF and DoEd PARTICIPANT SUPPORT COSTS
C159: NSF / NASA Stipends | N159: 0 | P159: 0 | R159: 0 | T159: 0 | V159: 0 | X159: =SUM(N159+P159+R159+T159+V159) -> 0
C160: NSF / NASA Travel | N160: 0 | P160: 0 | R160: 0 | T160: 0 | V160: 0 | X160: =SUM(N160+P160+R160+T160+V160) -> 0
C161: NSF / NASA Subsistence | N161: 0 | P161: 0 | R161: 0 | T161: 0 | V161: 0 | X161: =SUM(N161+P161+R161+T161+V161) -> 0
C162: NSF / NASA Other | N162: 0 | P162: 0 | R162: 0 | T162: 0 | V162: 0 | X162: =SUM(N162+P162+R162+T162+V162) -> 0
C163: DoEd Training Stipends | N163: 0 | P163: 0 | R163: 0 | T163: 0 | V163: 0 | X163: =SUM(N163+P163+R163+T163+V163) -> 0
M164: TOTAL PARTICIPANT SUPPORT COSTS | N164: =SUM(N159:N163) -> 0 | P164: =SUM(P159:P163) -> 0 | R164: =SUM(R159:R163) -> 0 | T164: =SUM(T159:T163) -> 0 | V164: =SUM(V159:V163) -> 0 | X164: =SUM(X159:X163) -> 0 | Z164: =SUM(N164+P164+R164+T164+V164) -> 0
C165: SUBAWARD COSTS OVER $25,000
C166: =C126 -> Subaward #1 | N166: 0 | P166: 0 | R166: 0 | T166: 0 | V166: 0 | X166: =SUM(N166+P166+R166+T166+V166) -> 0
C167: =C127 -> Subaward #2 | N167: 0 | P167: 0 | R167: 0 | T167: 0 | V167: 0 | X167: =SUM(N167+P167+R167+T167+V167) -> 0
C168: =C128 -> Subaward #3 | N168: 0 | P168: 0 | R168: 0 | T168: 0 | V168: 0 | X168: =SUM(N168+P168+R168+T168+V168) -> 0
C169: =C129 -> Subaward #4 | N169: 0 | P169: 0 | R169: 0 | T169: 0 | V169: 0 | X169: =SUM(N169+P169+R169+T169+V169) -> 0
F170: TOTAL SUBAWARDS EXEMPT FROM F&A | N170: =SUM(N166:N169) -> 0 | P170: =SUM(P166:P169) -> 0 | R170: =SUM(R166:R169) -> 0 | T170: =SUM(T166:T169) -> 0 | V170: =SUM(V166:V169) -> 0 | X170: =SUM(X166:X169) -> 0 | Z170: =SUM(N170+P170+R170+T170+V170) -> 0
C171: EXPENSES > 5K
C172: Select >5K from List | N172: 0 | P172: 0 | R172: 0 | T172: 0 | V172: 0 | X172: =SUM(N172+P172+R172+T172+V172) -> 0
C173: Select >5K from List | N173: 0 | P173: 0 | R173: 0 | T173: 0 | V173: 0 | X173: 0
C174: Select >5K from List | N174: 0 | P174: 0 | R174: 0 | T174: 0 | V174: 0 | X174: 0
C175: Select >5K from List | N175: 0 | P175: 0 | R175: 0 | T175: 0 | V175: 0 | X175: 0
C176: Select >5K from List | N176: 0 | P176: 0 | R176: 0 | T176: 0 | V176: 0 | X176: 0
C177: Select >5K from List | N177: 0 | P177: 0 | R177: 0 | T177: 0 | V177: 0 | X177: 0
E178: TOTAL EQUIPMENT > 5K | N178: =SUM(N172:N177) -> 0 | P178: =SUM(P172:P177) -> 0 | R178: =SUM(R172:R177) -> 0 | T178: =SUM(T172:T177) -> 0 | V178: =SUM(V172:V177) -> 0 | X178: =SUM(X172:X177) -> 0 | Z178: =SUM(N178+P178+R178+T178+V178) -> 0
C179: STUDENT SERVICES | J179: Full time Cost
C180: Number of Students | D180: Tuition | L180: Total
C181: 1 | D181: In-State Tuition | J181: =8222+570 -> 8792 | K181: 0 | L181: =C181*J181 -> 8792 | N181: 0 | P181: 0 | R181: 0 | T181: 0 | V181: 0 | X181: =SUM(N181+P181+R181+T181+V181) -> 0
C182: 1 | D182: Medical (SHIP) | J182: =960+960+570 -> 2490 | K182: 0 | L182: =C182*J182 -> 2490 | N182: 0 | P182: 0 | R182: 0 | T182: 0 | V182: 0 | X182: =SUM(N182+P182+R182+T182+V182) -> 0
M183: TOTAL STUDENT SERVICES | N183: =SUM(N181:N182) -> 0 | P183: =SUM(P181:P182) -> 0 | R183: =SUM(R181:R182) -> 0 | T183: =SUM(T181:T182) -> 0 | V183: =SUM(V181:V182) -> 0 | X183: =SUM(X181:X182) -> 0 | Z183: =SUM(N183+P183+R183+T183+V183) -> 0
C184: C. Total Costs Exempt from F&A | N184: =ROUNDUP(SUM(N157,N164,N170,N178,N183),0) -> 0 | P184: =ROUNDUP(SUM(P157,P164,P170,P178,P183,),0) -> 0 | R184: =ROUNDUP(SUM(R157,R164,R170,R178,R183,),0) -> 0 | T184: =ROUNDUP(SUM(T157,T164,T170,T178,T183),0) -> 0 | V184: =ROUNDUP(SUM(V157,V164,V170,V178,V183),0) -> 0 | X184: =ROUNDUP(SUM(X157,X164,X170,X178,X183,),0) -> 0 | Z184: =SUM(N184+P184+R184+T184+V184) -> 0
C186: D. Total Direct Costs (A+C) | N186: =N143+N184 -> 0 | P186: =P143+P184 -> 0 | R186: =R143+R184 -> 0 | T186: =T143+T184 -> 0 | V186: =V143+V184 -> 0 | X186: =X143+X184 -> 0 | Z186: =SUM(N186+P186+R186+T186+V186) -> 0
C188: E. Total Sponsor Request (B+D) | N188: =N145+N186 -> 0 | P188: =P145+P186 -> 0 | R188: =R145+R186 -> 0 | T188: =T145+T186 -> 0 | V188: =V145+V186 -> 0 | X188: =X145+X186 -> 0 | Z188: =SUM(N188+P188+R188+T188+V188) -> 0

Sheet NSF
G2: SUMMARY | M2: YEAR 1 | V2: SUMMARY | AB2: YEAR 2 | AK2: SUMMARY | AQ2: YEAR 3 | AZ2: SUMMARY | BF2: YEAR 4 | BO2: SUMMARY | BU2: YEAR 5 | CD2: SUMMARY | CJ2: SUMMARY
G3: PROPOSAL BUDGET | L3: FOR NSF USE ONLY | V3: PROPOSAL BUDGET | AA3: FOR NSF USE ONLY | AK3: PROPOSAL BUDGET | AP3: FOR NSF USE ONLY | AZ3: PROPOSAL BUDGET | BE3: FOR NSF USE ONLY | BO3: PROPOSAL BUDGET | BT3: FOR NSF USE ONLY | CD3: PROPOSAL BUDGET | CI3: FOR NSF USE ONLY
A4: ORGANIZATION | K4: PROPOSAL NO. | M4: DURATION (MONTHS) | P4: ORGANIZATION | Z4: PROPOSAL NO. | AB4: DURATION (MONTHS) | AE4: ORGANIZATION | AO4: PROPOSAL NO. | AQ4: DURATION (MONTHS) | AT4: ORGANIZATION | BD4: PROPOSAL NO. | BF4: DURATION (MONTHS) | BI4: ORGANIZATION | BS4: PROPOSAL NO. | BU4: DURATION (MONTHS) | BX4: ORGANIZATION | CH4: PROPOSAL NO. | CJ4: DURATION (MONTHS)
E5: University of Idaho | M5: Proposed | N5: Granted | T5: University of Idaho | AB5: Proposed | AC5: Granted | AI5: University of Idaho | AQ5: Proposed | AR5: Granted | AX5: University of Idaho | BF5: Proposed | BG5: Granted | BM5: University of Idaho | BU5: Proposed | BV5: Granted | CB5: University of Idaho | CJ5: Proposed | CK5: Granted
A6: PRINCIPAL INVESTIGATOR/PROJECT DIRECTOR | K6: AWARD NO. | P6: PRINCIPAL INVESTIGATOR/PROJECT DIRECTOR | Z6: AWARD NO. | AE6: PRINCIPAL INVESTIGATOR/PROJECT DIRECTOR | AO6: AWARD NO. | AT6: PRINCIPAL INVESTIGATOR/PROJECT DIRECTOR | BD6: AWARD NO. | BI6: PRINCIPAL INVESTIGATOR/PROJECT DIRECTOR | BS6: AWARD NO. | BX6: PRINCIPAL INVESTIGATOR/PROJECT DIRECTOR | CH6: AWARD NO.
A7: ='MTDC (most common)'!D2 -> TEST | P7: =A7 -> TEST | AE7: =A7 -> TEST | AT7: =A7 -> TEST | BI7: =A7 -> TEST | BX7: =A7 -> TEST
A8: A. SENIOR PERSONNEL: PI/PD, Co.-PI's, Faculty and Other Senior Associates | J8: NSF Funded | M8: Funds | P8: A. SENIOR PERSONNEL: PI/PD, Co.-PI's, Faculty and Other Senior Associates | Y8: NSF Funded | AB8: Funds | AE8: A. SENIOR PERSONNEL: PI/PD, Co.-PI's, Faculty and Other Senior Associates | AN8: NSF Funded | AQ8: Funds | AT8: A. SENIOR PERSONNEL: PI/PD, Co.-PI's, Faculty and Other Senior Associates | BC8: NSF Funded | BF8: Funds | BI8: A. SENIOR PERSONNEL: PI/PD, Co.-PI's, Faculty and Other Senior Associates | BR8: NSF Funded | BU8: Funds | BX8: A. SENIOR PERSONNEL: PI/PD, Co.-PI's, Faculty and Other Senior Associates | CG8: NSF Funded | CJ8: Funds
A9: (List each separately with title, A.7. show number in brackets) | J9: Person-mos. | M9: Requested by | P9: (List each separately with title, A.7. show number in brackets) | Y9: Person-mos. | AB9: Requested by | AE9: (List each separately with title, A.7. show number in brackets) | AN9: Person-mos. | AQ9: Requested by | AT9: (List each separately with title, A.7. show number in brackets) | BC9: Person-mos. | BF9: Requested by | BI9: (List each separately with title, A.7. show number in brackets) | BR9: Person-mos. | BU9: Requested by | BX9: (List each separately with title, A.7. show number in brackets) | CG9: Person-mos. | CJ9: Requested by
J10: CAL | K10: ACAD | L10: SUMR | M10: Proposer | N10: Check | Y10: CAL | Z10: ACAD | AA10: SUMR | AB10: Proposer | AC10: Check | AN10: CAL | AO10: ACAD | AP10: SUMR | AQ10: Proposer | AR10: Check | BC10: CAL | BD10: ACAD | BE10: SUMR | BF10: Proposer | BG10: Check | BR10: CAL | BS10: ACAD | BT10: SUMR | BU10: Proposer | BV10: Check | CG10: CAL | CH10: ACAD | CI10: SUMR | CJ10: Proposer | CK10: Check
A11: 1. | B11: ='MTDC (most common)'!D12 -> Jack | J11: 0 | K11: 0 | L11: 0 | M11: ='MTDC (most common)'!O12 -> 0 | P11: 1. | Q11: =B11 -> Jack | Y11: 0 | Z11: 0 | AA11: 0 | AB11: ='MTDC (most common)'!Q12 -> 0 | AE11: 1. | AF11: =Q11 -> Jack | AN11: 0 | AO11: 0 | AP11: 0 | AQ11: ='MTDC (most common)'!S12 -> 0 | AT11: 1. | AU11: =AF11 -> Jack | BC11: 0 | BD11: 0 | BE11: 0 | BF11: ='MTDC (most common)'!U12 -> 0 | BI11: 1. | BJ11: =AU11 -> Jack | BR11: 0 | BS11: 0 | BT11: 0 | BU11: ='MTDC (most common)'!W12 -> 0 | BX11: 1. | BY11: =BJ11 -> Jack | CG11: =AN11+Y11+J11+BC11+BR11 -> 0 | CH11: 0 | CI11: 0 | CJ11: 0
A12: 2. | B12: ='MTDC (most common)'!D13 -> Jill | J12: 0 | K12: 0 | L12: 0 | M12: ='MTDC (most common)'!O13 -> 0 | P12: 2. | Q12: Jill | Y12: 0 | Z12: 0 | AA12: 0 | AB12: ='MTDC (most common)'!Q13 -> 0 | AE12: 2. | AF12: Jill | AN12: 0 | AO12: 0 | AP12: 0 | AQ12: ='MTDC (most common)'!S13 -> 0 | AT12: 2. | AU12: Jill | BC12: 0 | BD12: 0 | BE12: 0 | BF12: ='MTDC (most common)'!U13 -> 0 | BI12: 2. | BJ12: Jill | BR12: 0 | BS12: 0 | BT12: 0 | BU12: ='MTDC (most common)'!W13 -> 0 | BX12: 2. | BY12: Jill | CG12: 0 | CH12: 0 | CI12: 0 | CJ12: 0
A13: 3. | B13: ='MTDC (most common)'!D14 -> John | J13: 0 | K13: 0 | L13: 0 | M13: ='MTDC (most common)'!O14 -> 0 | P13: 3. | Q13: John | Y13: 0 | Z13: 0 | AA13: 0 | AB13: ='MTDC (most common)'!Q14 -> 0 | AE13: 3. | AF13: John | AN13: 0 | AO13: 0 | AP13: 0 | AQ13: ='MTDC (most common)'!S14 -> 0 | AT13: 3. | AU13: John | BC13: 0 | BD13: 0 | BE13: 0 | BF13: ='MTDC (most common)'!U14 -> 0 | BI13: 3. | BJ13: John | BR13: 0 | BS13: 0 | BT13: 0 | BU13: ='MTDC (most common)'!W14 -> 0 | BX13: 3. | BY13: John | CG13: 0 | CH13: 0 | CI13: 0 | CJ13: 0
A14: 4. | B14: ='MTDC (most common)'!D15 -> Bob | J14: 0 | K14: 0 | L14: 0 | M14: ='MTDC (most common)'!O15 -> 0 | P14: 4. | Q14: Bob | Y14: 0 | Z14: 0 | AA14: 0 | AB14: ='MTDC (most common)'!Q15 -> 0 | AE14: 4. | AF14: Bob | AN14: 0 | AO14: 0 | AP14: 0 | AQ14: ='MTDC (most common)'!S15 -> 0 | AT14: 4. | AU14: Bob | BC14: 0 | BD14: 0 | BE14: 0 | BF14: ='MTDC (most common)'!U15 -> 0 | BI14: 4. | BJ14: Bob | BR14: 0 | BS14: 0 | BT14: 0 | BU14: ='MTDC (most common)'!W15 -> 0 | BX14: 4. | BY14: Bob | CG14: 0 | CH14: 0 | CI14: 0 | CJ14: 0
A15: 5. | B15: ='MTDC (most common)'!D16 -> Mary | J15: 0 | K15: 0 | L15: 0 | M15: ='MTDC (most common)'!O16 -> 0 | P15: 5. | Q15: Mary | Y15: 0 | Z15: 0 | AA15: 0 | AB15: ='MTDC (most common)'!Q16 -> 0 | AE15: 5. | AF15: Mary | AN15: 0 | AO15: 0 | AP15: 0 | AQ15: ='MTDC (most common)'!S16 -> 0 | AT15: 5. | AU15: Mary | BC15: 0 | BD15: 0 | BE15: 0 | BF15: ='MTDC (most common)'!U16 -> 0 | BI15: 5. | BJ15: Mary | BR15: 0 | BS15: 0 | BT15: 0 | BU15: ='MTDC (most common)'!W16 -> 0 | BX15: 5. | BY15: Mary | CG15: 0 | CH15: 0 | CI15: 0 | CJ15: 0
A16: 6. | B16: ='MTDC (most common)'!D17 -> Scott | J16: 0 | K16: 0 | L16: 0 | M16: ='MTDC (most common)'!O17 -> 0 | P16: 6. | Q16: Scott | Y16: 0 | Z16: 0 | AA16: 0 | AB16: ='MTDC (most common)'!Q17 -> 0 | AE16: 6. | AF16: Scott | AN16: 0 | AO16: 0 | AP16: 0 | AQ16: ='MTDC (most common)'!S17 -> 0 | AT16: 6. | AU16: Scott | BC16: 0 | BD16: 0 | BE16: 0 | BF16: ='MTDC (most common)'!U17 -> 0 | BI16: 6. | BJ16: Scott | BR16: 0 | BS16: 0 | BT16: 0 | BU16: ='MTDC (most common)'!W17 -> 0 | BX16: 6. | BY16: Scott | CG16: 0 | CH16: 0 | CI16: 0 | CJ16: 0
A17: 7. | B17: ( | C17: 0 | D17: ) | E17: TOTAL SENIOR PERSONNEL (1-6) | J17: =SUM(J11:J16) -> 0 | K17: =SUM(K11:K16) -> 0 | L17: =SUM(L11:L16) -> 0 | M17: ='MTDC (most common)'!O19 -> 0 | N17: =SUM(M11:M16) -> 0 | P17: 7. | Q17: ( | R17: 0 | S17: ) | T17: TOTAL SENIOR PERSONNEL (1-6) | Y17: 0 | Z17: 0 | AA17: 0 | AB17: ='MTDC (most common)'!Q19 -> 0 | AC17: =SUM(AB11:AB16) -> 0 | AE17: 7. | AF17: ( | AG17: 0 | AH17: ) | AI17: TOTAL SENIOR PERSONNEL (1-6) | AN17: 0 | AO17: 0 | AP17: 0 | AQ17: ='MTDC (most common)'!S19 -> 0 | AR17: =SUM(AQ11:AQ16) -> 0 | AT17: 7. | AU17: ( | AV17: 0 | AW17: ) | AX17: TOTAL SENIOR PERSONNEL (1-6) | BC17: =SUM(BC11:BC16) -> 0 | BD17: 0 | BE17: 0 | BF17: ='MTDC (most common)'!U19 -> 0 | BG17: =SUM(BF11:BF16) -> 0 | BI17: 7. | BJ17: ( | BK17: 0 | BL17: ) | BM17: TOTAL SENIOR PERSONNEL (1-6) | BR17: 0 | BS17: 0 | BT17: 0 | BU17: ='MTDC (most common)'!W19 -> 0 | BV17: =SUM(BU11:BU16) -> 0 | BX17: 7. | BY17: ( | BZ17: =AG17+R17+C17+AV17+BK17 -> 0 | CA17: ) | CB17: TOTAL SENIOR PERSONNEL (1-6) | CG17: =SUM(CG11:CG16) -> 0 | CH17: =SUM(CH11:CH16) -> 0 | CI17: =SUM(CI11:CI16) -> 0 | CJ17: =AQ17+AB17+M17+BF17+BU17 -> 0 | CK17: ='MTDC (most common)'!X19 -> 0
A18: B. OTHER PERSONNEL (SHOW NUMBERS IN BRACKETS) | P18: B. OTHER PERSONNEL (SHOW NUMBERS IN BRACKETS) | AE18: B. OTHER PERSONNEL (SHOW NUMBERS IN BRACKETS) | AT18: B. OTHER PERSONNEL (SHOW NUMBERS IN BRACKETS) | BI18: B. OTHER PERSONNEL (SHOW NUMBERS IN BRACKETS) | BX18: B. OTHER PERSONNEL (SHOW NUMBERS IN BRACKETS)
A19: 1. | B19: ( | C19: 0 | D19: ) | E19: POST DOCTORAL ASSOCIATES | J19: 0 | K19: 0 | L19: 0 | M19: ='MTDC (most common)'!O23 -> 0 | P19: 1. | Q19: ( | R19: 0 | S19: ) | T19: POST DOCTORAL ASSOCIATES | Y19: 0 | Z19: 0 | AA19: 0 | AB19: ='MTDC (most common)'!Q23 -> 0 | AE19: 1. | AF19: ( | AG19: 0 | AH19: ) | AI19: POST DOCTORAL ASSOCIATES | AN19: 0 | AO19: 0 | AP19: 0 | AQ19: ='MTDC (most common)'!S23 -> 0 | AT19: 1. | AU19: ( | AV19: 0 | AW19: ) | AX19: POST DOCTORAL ASSOCIATES | BC19: 0 | BD19: 0 | BE19: 0 | BF19: ='MTDC (most common)'!U23 -> 0 | BI19: 1. | BJ19: ( | BK19: 0 | BL19: ) | BM19: POST DOCTORAL ASSOCIATES | BR19: 0 | BS19: 0 | BT19: 0 | BU19: ='MTDC (most common)'!W23 -> 0 | BX19: 1. | BY19: ( | BZ19: =AG19+R19+C19+AV19+BK19 -> 0 | CA19: ) | CB19: POST DOCTORAL ASSOCIATES | CG19: =AN19+Y19+J19+BC19+BR19 -> 0 | CH19: =AO19+Z19+K19+BD19+BS19 -> 0 | CI19: =AP19+AA19+L19+BE19+BT19 -> 0 | CJ19: =AQ19+AB19+M19+BF19+BU19 -> 0
A20: 2. | B20: ( | C20: 0 | D20: ) | E20: OTHER PROFESSIONALS (TECHNICIAN, PROGRAMMER, ETC.) | M20: ='MTDC (most common)'!O24 -> 0 | P20: 2. | Q20: ( | R20: 0 | S20: ) | T20: OTHER PROFESSIONALS (TECHNICIAN, PROGRAMMER, ETC.) | AB20: ='MTDC (most common)'!Q24 -> 0 | AE20: 2. | AF20: ( | AG20: 0 | AH20: ) | AI20: OTHER PROFESSIONALS (TECHNICIAN, PROGRAMMER, ETC.) | AQ20: ='MTDC (most common)'!S24 -> 0 | AT20: 2. | AU20: ( | AV20: 0 | AW20: ) | AX20: OTHER PROFESSIONALS (TECHNICIAN, PROGRAMMER, ETC.) | BF20: ='MTDC (most common)'!U24 -> 0 | BI20: 2. | BJ20: ( | BK20: 0 | BL20: ) | BM20: OTHER PROFESSIONALS (TECHNICIAN, PROGRAMMER, ETC.) | BU20: ='MTDC (most common)'!W24 -> 0 | BX20: 2. | BY20: ( | BZ20: 0 | CA20: ) | CB20: OTHER PROFESSIONALS (TECHNICIAN, PROGRAMMER, ETC.) | CJ20: =AQ20+AB20+M20+BF20+BU20 -> 0
A21: 3. | B21: ( | C21: 0 | D21: ) | E21: GRADUATE STUDENTS | M21: ='MTDC (most common)'!O34+'MTDC (most common)'!O35+'MTDC (most common)'!O36+'MTDC (most common)'!O37 -> 0 | P21: 3. | Q21: ( | R21: 0 | S21: ) | T21: GRADUATE STUDENTS | AB21: ='MTDC (most common)'!Q34+'MTDC (most common)'!Q35+'MTDC (most common)'!Q36+'MTDC (most common)'!Q37 -> 0 | AE21: 3. | AF21: ( | AG21: 0 | AH21: ) | AI21: GRADUATE STUDENTS | AQ21: ='MTDC (most common)'!S34+'MTDC (most common)'!S35+'MTDC (most common)'!S36+'MTDC (most common)'!S37 -> 0 | AT21: 3. | AU21: ( | AV21: 0 | AW21: ) | AX21: GRADUATE STUDENTS | BF21: ='MTDC (most common)'!U34+'MTDC (most common)'!U35+'MTDC (most common)'!U36+'MTDC (most common)'!U37 -> 0 | BI21: 3. | BJ21: ( | BK21: 0 | BL21: ) | BM21: GRADUATE STUDENTS | BU21: ='MTDC (most common)'!W34+'MTDC (most common)'!W35+'MTDC (most common)'!W36+'MTDC (most common)'!W37 -> 0 | BX21: 3. | BY21: ( | BZ21: 0 | CA21: ) | CB21: GRADUATE STUDENTS | CJ21: 0
A22: 4. | B22: ( | C22: 0 | D22: ) | E22: UNDERGRADUATE STUDENTS | M22: ='MTDC (most common)'!O38+'MTDC (most common)'!O39 -> 0 | P22: 4. | Q22: ( | R22: 0 | S22: ) | T22: UNDERGRADUATE STUDENTS | AB22: ='MTDC (most common)'!Q38+'MTDC (most common)'!Q39 -> 0 | AE22: 4. | AF22: ( | AG22: 0 | AH22: ) | AI22: UNDERGRADUATE STUDENTS | AQ22: ='MTDC (most common)'!S38+'MTDC (most common)'!S39 -> 0 | AT22: 4. | AU22: ( | AV22: 0 | AW22: ) | AX22: UNDERGRADUATE STUDENTS | BF22: ='MTDC (most common)'!U38+'MTDC (most common)'!U39 -> 0 | BI22: 4. | BJ22: ( | BK22: 0 | BL22: ) | BM22: UNDERGRADUATE STUDENTS | BU22: ='MTDC (most common)'!W38+'MTDC (most common)'!W39 -> 0 | BX22: 4. | BY22: ( | BZ22: 0 | CA22: ) | CB22: UNDERGRADUATE STUDENTS | CJ22: 0
A23: 5. | B23: ( | C23: 0 | D23: ) | E23: SECRETARIAL - CLERICAL (IF CHARGED DIRECTLY) | M23: ='MTDC (most common)'!O25 -> 0 | P23: 5. | Q23: ( | R23: 0 | S23: ) | T23: SECRETARIAL - CLERICAL (IF CHARGED DIRECTLY) | AB23: ='MTDC (most common)'!Q25 -> 0 | AE23: 5. | AF23: ( | AG23: 0 | AH23: ) | AI23: SECRETARIAL - CLERICAL (IF CHARGED DIRECTLY) | AQ23: ='MTDC (most common)'!S25 -> 0 | AT23: 5. | AU23: ( | AV23: 0 | AW23: ) | AX23: SECRETARIAL - CLERICAL (IF CHARGED DIRECTLY) | BF23: ='MTDC (most common)'!U25 -> 0 | BI23: 5. | BJ23: ( | BK23: 0 | BL23: ) | BM23: SECRETARIAL - CLERICAL (IF CHARGED DIRECTLY) | BU23: ='MTDC (most common)'!W25 -> 0 | BX23: 5. | BY23: ( | BZ23: 0 | CA23: ) | CB23: SECRETARIAL - CLERICAL (IF CHARGED DIRECTLY) | CJ23: 0
A24: 6. | B24: ( | C24: 0 | D24: ) | E24: OTHER | M24: =SUM('MTDC (most common)'!O26:O30) -> 0 | P24: 6. | Q24: ( | R24: 0 | S24: ) | T24: OTHER | AB24: =SUM('MTDC (most common)'!Q26:Q30) -> 0 | AE24: 6. | AF24: ( | AG24: 0 | AH24: ) | AI24: OTHER | AQ24: =SUM('MTDC (most common)'!S26:S30) -> 0 | AT24: 6. | AU24: ( | AV24: 0 | AW24: ) | AX24: OTHER | BF24: =SUM('MTDC (most common)'!U26:U30) -> 0 | BI24: 6. | BJ24: ( | BK24: 0 | BL24: ) | BM24: OTHER | BU24: =SUM('MTDC (most common)'!W26:W30) -> 0 | BX24: 6. | BY24: ( | BZ24: 0 | CA24: ) | CB24: OTHER | CJ24: 0
E25: TOTAL OTHER PERSONNEL | M25: ='MTDC (most common)'!O40+'MTDC (most common)'!O151 -> 0 | T25: TOTAL OTHER PERSONNEL | AB25: ='MTDC (most common)'!AE40+'MTDC (most common)'!AE151 -> 0 | AI25: TOTAL OTHER PERSONNEL | AQ25: ='MTDC (most common)'!S40+'MTDC (most common)'!S151 -> 0 | AX25: TOTAL OTHER PERSONNEL | BF25: ='MTDC (most common)'!U40+'MTDC (most common)'!U151 -> 0 | BM25: TOTAL OTHER PERSONNEL | BU25: ='MTDC (most common)'!W40+'MTDC (most common)'!W151 -> 0 | CB25: TOTAL OTHER PERSONNEL | CJ25: =M25+AB25+AQ25+BF25+BU25 -> 0 | CK25: ='MTDC (most common)'!X40+'MTDC (most common)'!X151 -> 0
C26: TOTAL SALARIES AND WAGES (A + B) | M26: ='MTDC (most common)'!N42+'MTDC (most common)'!O151 -> 0 | N26: =M17+M25 -> 0 | R26: TOTAL SALARIES AND WAGES (A + B) | AB26: ='MTDC (most common)'!P42+'MTDC (most common)'!Q151 -> 0 | AC26: =AB17+AB25 -> 0 | AG26: TOTAL SALARIES AND WAGES (A + B) | AQ26: ='MTDC (most common)'!R42+'MTDC (most common)'!S151 -> 0 | AR26: =AQ17+AQ25 -> 0 | AV26: TOTAL SALARIES AND WAGES (A + B) | BF26: ='MTDC (most common)'!T42+'MTDC (most common)'!U151 -> 0 | BG26: =BF17+BF25 -> 0 | BK26: TOTAL SALARIES AND WAGES (A + B) | BU26: ='MTDC (most common)'!V42+'MTDC (most common)'!W151 -> 0 | BV26: =BU17+BU25 -> 0 | BZ26: TOTAL SALARIES AND WAGES (A + B) | CJ26: 0 | CK26: ='MTDC (most common)'!X42+'MTDC (most common)'!X151 -> 0
A27: C. FRINGE BENEFITS (IF CHARGED AS DIRECT COSTS) | M27: ='MTDC (most common)'!N70+'MTDC (most common)'!N156 -> 0 | P27: C. FRINGE BENEFITS (IF CHARGED AS DIRECT COSTS) | AB27: ='MTDC (most common)'!P70+'MTDC (most common)'!P156 -> 0 | AE27: C. FRINGE BENEFITS (IF CHARGED AS DIRECT COSTS) | AQ27: ='MTDC (most common)'!R70+'MTDC (most common)'!R156 -> 0 | AT27: C. FRINGE BENEFITS (IF CHARGED AS DIRECT COSTS) | BF27: ='MTDC (most common)'!T70+'MTDC (most common)'!T156 -> 0 | BI27: C. FRINGE BENEFITS (IF CHARGED AS DIRECT COSTS) | BU27: ='MTDC (most common)'!V70+'MTDC (most common)'!V156 -> 0 | BX27: C. FRINGE BENEFITS (IF CHARGED AS DIRECT COSTS) | CJ27: 0 | CK27: ='MTDC (most common)'!X70+'MTDC (most common)'!X156 -> 0
C28: TOTAL SALARIES, WAGES AND FRINGE BENEFITS (A+B+C) | M28: ='MTDC (most common)'!N72+'MTDC (most common)'!N157 -> 0 | N28: =M26+M27 -> 0 | R28: TOTAL SALARIES, WAGES AND FRINGE BENEFITS (A+B+C) | AB28: ='MTDC (most common)'!P72+'MTDC (most common)'!P157 -> 0 | AC28: =AB27+AB26 -> 0 | AG28: TOTAL SALARIES, WAGES AND FRINGE BENEFITS (A+B+C) | AQ28: ='MTDC (most common)'!R72+'MTDC (most common)'!R157 -> 0 | AR28: =AQ27+AQ26 -> 0 | AV28: TOTAL SALARIES, WAGES AND FRINGE BENEFITS (A+B+C) | BF28: ='MTDC (most common)'!T72+'MTDC (most common)'!T157 -> 0 | BG28: =BF26+BF27 -> 0 | BK28: TOTAL SALARIES, WAGES AND FRINGE BENEFITS (A+B+C) | BU28: ='MTDC (most common)'!V72+'MTDC (most common)'!V157 -> 0 | BV28: =BU26+BU27 -> 0 | BZ28: TOTAL SALARIES, WAGES AND FRINGE BENEFITS (A+B+C) | CJ28: 0 | CK28: ='MTDC (most common)'!X72+'MTDC (most common)'!X157 -> 0
A29: D. EQUIPMENT (LIST ITEM AND DOLLAR AMOUNT FOR EACH ITEM EXCEEDING $5,000.) | P29: D. EQUIPMENT (LIST ITEM AND DOLLAR AMOUNT FOR EACH ITEM EXCEEDING $5,000.) | AE29: D. EQUIPMENT (LIST ITEM AND DOLLAR AMOUNT FOR EACH ITEM EXCEEDING $5,000.) | AT29: D. EQUIPMENT (LIST ITEM AND DOLLAR AMOUNT FOR EACH ITEM EXCEEDING $5,000.) | BI29: D. EQUIPMENT (LIST ITEM AND DOLLAR AMOUNT FOR EACH ITEM EXCEEDING $5,000.) | BX29: D. EQUIPMENT (LIST ITEM AND DOLLAR AMOUNT FOR EACH ITEM EXCEEDING $5,000.)
C35: TOTAL EQUIPMENT | M35: ='MTDC (most common)'!N178 -> 0 | R35: TOTAL EQUIPMENT | AB35: ='MTDC (most common)'!P178 -> 0 | AG35: TOTAL EQUIPMENT | AQ35: ='MTDC (most common)'!R178 -> 0 | AV35: TOTAL EQUIPMENT | BF35: ='MTDC (most common)'!T178 -> 0 | BK35: TOTAL EQUIPMENT | BU35: ='MTDC (most common)'!V178 -> 0 | BZ35: TOTAL EQUIPMENT | CJ35: =AQ35+AB35+M35+BF35+BU35 -> 0 | CK35: ='MTDC (most common)'!X178 -> 0
A36: E. TRAVEL 1. DOMESTIC (INCL. CANADA AND U.S. POSSESSIONS) | M36: ='MTDC (most common)'!N99 -> 0 | P36: E. TRAVEL 1. DOMESTIC (INCL. CANADA AND U.S. POSSESSIONS) | AB36: ='MTDC (most common)'!P99 -> 0 | AE36: E. TRAVEL 1. DOMESTIC (INCL. CANADA AND U.S. POSSESSIONS) | AQ36: ='MTDC (most common)'!R99 -> 0 | AT36: E. TRAVEL 1. DOMESTIC (INCL. CANADA AND U.S. POSSESSIONS) | BF36: ='MTDC (most common)'!T99 -> 0 | BI36: E. TRAVEL 1. DOMESTIC (INCL. CANADA AND U.S. POSSESSIONS) | BU36: ='MTDC (most common)'!V99 -> 0 | BX36: E. TRAVEL 1. DOMESTIC (INCL. CANADA AND U.S. POSSESSIONS) | CJ36: =AQ36+AB36+M36+BF36+BU36 -> 0 | CK36: ='MTDC (most common)'!X99 -> 0
A37: 2. FOREIGN | M37: ='MTDC (most common)'!N110 -> 0 | P37: 2. FOREIGN | AB37: ='MTDC (most common)'!P110 -> 0 | AE37: 2. FOREIGN | AQ37: ='MTDC (most common)'!R110 -> 0 | AT37: 2. FOREIGN | BF37: ='MTDC (most common)'!T110 -> 0 | BI37: 2. FOREIGN | BU37: ='MTDC (most common)'!V110 -> 0 | BX37: 2. FOREIGN | CJ37: =AQ37+AB37+M37+BF37+BU37 -> 0 | CK37: ='MTDC (most common)'!X110 -> 0
A40: F. PARTICIPANT SUPPORT COSTS | P40: F. PARTICIPANT SUPPORT COSTS | AE40: F. PARTICIPANT SUPPORT COSTS | AT40: F. PARTICIPANT SUPPORT COSTS | BI40: F. PARTICIPANT SUPPORT COSTS | BX40: F. PARTICIPANT SUPPORT COSTS
A41: 1. STIPENDS | F41: ='MTDC (most common)'!N159 -> 0 | P41: 1. STIPENDS | U41: ='MTDC (most common)'!P159 -> 0 | AE41: 1. STIPENDS | AJ41: ='MTDC (most common)'!R159 -> 0 | AT41: 1. STIPENDS | AY41: ='MTDC (most common)'!T159 -> 0 | BI41: 1. STIPENDS | BN41: ='MTDC (most common)'!V159 -> 0 | BX41: 1. STIPENDS | CC41: =SUM(AJ41,U41,F41,AY41,BN41) -> 0
A42: 2. TRAVEL | F42: ='MTDC (most common)'!N160 -> 0 | P42: 2. TRAVEL | U42: ='MTDC (most common)'!P160 -> 0 | AE42: 2. TRAVEL | AJ42: ='MTDC (most common)'!R160 -> 0 | AT42: 2. TRAVEL | AY42: ='MTDC (most common)'!T160 -> 0 | BI42: 2. TRAVEL | BN42: ='MTDC (most common)'!V160 -> 0 | BX42: 2. TRAVEL | CC42: =SUM(AJ42,U42,F42,AY42,BN42) -> 0
A43: 3. SUBSISTENCE | F43: ='MTDC (most common)'!N161 -> 0 | P43: 3. SUBSISTENCE | U43: ='MTDC (most common)'!P161 -> 0 | AE43: 3. SUBSISTENCE | AJ43: ='MTDC (most common)'!R161 -> 0 | AT43: 3. SUBSISTENCE | AY43: ='MTDC (most common)'!T161 -> 0 | BI43: 3. SUBSISTENCE | BN43: ='MTDC (most common)'!V161 -> 0 | BX43: 3. SUBSISTENCE | CC43: =SUM(AJ43,U43,F43,AY43,BN43) -> 0
A44: 4. OTHER | F44: ='MTDC (most common)'!N162 -> 0 | P44: 4. OTHER | U44: ='MTDC (most common)'!P162 -> 0 | AE44: 4. OTHER | AJ44: ='MTDC (most common)'!R162 -> 0 | AT44: 4. OTHER | AY44: ='MTDC (most common)'!T162 -> 0 | BI44: 4. OTHER | BN44: ='MTDC (most common)'!V162 -> 0 | BX44: 4. OTHER | CC44: =SUM(AJ44,U44,F44,AY44,BN44) -> 0
M46: =SUM(F41:F44) -> 0 | AB46: =SUM(U41:U44) -> 0 | AQ46: =SUM(AJ41:AJ44) -> 0 | BF46: =SUM(AY41:AY44) -> 0 | BU46: =SUM(BN41:BN44) -> 0 | CJ46: =AQ46+AB46+M46+BF46+BU46 -> 0
A47: G. OTHER DIRECT COSTS | P47: G. OTHER DIRECT COSTS | AE47: G. OTHER DIRECT COSTS | AT47: G. OTHER DIRECT COSTS | BI47: G. OTHER DIRECT COSTS | BX47: G. OTHER DIRECT COSTS
A48: 1. MATERIALS AND SUPPLIES | M48: ='MTDC (most common)'!N141 -> 0 | P48: 1. MATERIALS AND SUPPLIES | AB48: ='MTDC (most common)'!P141 -> 0 | AE48: 1. MATERIALS AND SUPPLIES | AQ48: ='MTDC (most common)'!R141 -> 0 | AT48: 1. MATERIALS AND SUPPLIES | BF48: ='MTDC (most common)'!T141 -> 0 | BI48: 1. MATERIALS AND SUPPLIES | BU48: ='MTDC (most common)'!V141 -> 0 | BX48: 1. MATERIALS AND SUPPLIES | CJ48: =AQ48+AB48+M48+BF48+BU48 -> 0 | CK48: ='MTDC (most common)'!X141 -> 0
A49: 2. PUBLICATION COSTS/DOCUMENTATION/DISSEMINATION | M49: ='MTDC (most common)'!N113 -> 0 | P49: 2. PUBLICATION COSTS/DOCUMENTATION/DISSEMINATION | AB49: ='MTDC (most common)'!P113 -> 0 | AE49: 2. PUBLICATION COSTS/DOCUMENTATION/DISSEMINATION | AQ49: ='MTDC (most common)'!R113 -> 0 | AT49: 2. PUBLICATION COSTS/DOCUMENTATION/DISSEMINATION | BF49: ='MTDC (most common)'!T113 -> 0 | BI49: 2. PUBLICATION COSTS/DOCUMENTATION/DISSEMINATION | BU49: ='MTDC (most common)'!V113 -> 0 | BX49: 2. PUBLICATION COSTS/DOCUMENTATION/DISSEMINATION | CJ49: 0 | CK49: ='MTDC (most common)'!X113 -> 0
A50: 3. CONSULTANT SERVICES | M50: ='MTDC (most common)'!N114 -> 0 | P50: 3. CONSULTANT SERVICES | AB50: ='MTDC (most common)'!P114 -> 0 | AE50: 3. CONSULTANT SERVICES | AQ50: ='MTDC (most common)'!R114 -> 0 | AT50: 3. CONSULTANT SERVICES | BF50: ='MTDC (most common)'!T114 -> 0 | BI50: 3. CONSULTANT SERVICES | BU50: ='MTDC (most common)'!V114 -> 0 | BX50: 3. CONSULTANT SERVICES | CJ50: 0 | CK50: ='MTDC (most common)'!X114 -> 0
A51: 4. COMPUTER SERVICES | M51: ='MTDC (most common)'!N115 -> 0 | P51: 4. COMPUTER SERVICES | AB51: ='MTDC (most common)'!P115 -> 0 | AE51: 4. COMPUTER SERVICES | AQ51: ='MTDC (most common)'!R115 -> 0 | AT51: 4. COMPUTER SERVICES | BF51: ='MTDC (most common)'!T115 -> 0 | BI51: 4. COMPUTER SERVICES | BU51: ='MTDC (most common)'!V115 -> 0 | BX51: 4. COMPUTER SERVICES | CJ51: 0 | CK51: ='MTDC (most common)'!X115 -> 0
A52: 5. SUBAWARDS | M52: ='MTDC (most common)'!N130+'MTDC (most common)'!N170 -> 0 | P52: 5. SUBAWARDS | AB52: ='MTDC (most common)'!P130+'MTDC (most common)'!P170 -> 0 | AE52: 5. SUBAWARDS | AQ52: ='MTDC (most common)'!R130+'MTDC (most common)'!R170 -> 0 | AT52: 5. SUBAWARDS | BF52: ='MTDC (most common)'!T130+'MTDC (most common)'!T170 -> 0 | BI52: 5. SUBAWARDS | BU52: ='MTDC (most common)'!V130+'MTDC (most common)'!V170 -> 0 | BX52: 5. SUBAWARDS | CJ52: 0 | CK52: ='MTDC (most common)'!X130+'MTDC (most common)'!X170 -> 0
A53: 6. OTHER | M53: =('MTDC (most common)'!N124+'MTDC (most common)'!N183)-('MTDC (most common)'!N113+'MTDC (most common)'!N114+'MTDC (most common)'!N115) -> 0 | P53: 6. OTHER | AB53: =('MTDC (most common)'!P124+'MTDC (most common)'!P183)-('MTDC (most common)'!P113+'MTDC (most common)'!P114+'MTDC (most common)'!P115) -> 0 | AE53: 6. OTHER | AQ53: =('MTDC (most common)'!R124+'MTDC (most common)'!R183)-('MTDC (most common)'!R113+'MTDC (most common)'!R114+'MTDC (most common)'!R115) -> 0 | AT53: 6. OTHER | BF53: =('MTDC (most common)'!T124+'MTDC (most common)'!T183)-('MTDC (most common)'!T113+'MTDC (most common)'!T114+'MTDC (most common)'!T115) -> 0 | BI53: 6. OTHER | BU53: =('MTDC (most common)'!V124+'MTDC (most common)'!V183)-('MTDC (most common)'!V113+'MTDC (most common)'!V114+'MTDC (most common)'!V115) -> 0 | BX53: 6. OTHER | CJ53: 0 | CK53: =('MTDC (most common)'!X124+'MTDC (most common)'!X183)-('MTDC (most common)'!X113+'MTDC (most common)'!X114) -> 0
E54: TOTAL OTHER DIRECT COSTS | M54: ='MTDC (most common)'!N131+'MTDC (most common)'!N141+'MTDC (most common)'!N170+'MTDC (most common)'!N183 -> 0 | N54: =SUM(M48:M53) -> 0 | T54: TOTAL OTHER DIRECT COSTS | AB54: ='MTDC (most common)'!P131+'MTDC (most common)'!P141+'MTDC (most common)'!P170+'MTDC (most common)'!P183 -> 0 | AC54: =SUM(AB48:AB53) -> 0 | AI54: TOTAL OTHER DIRECT COSTS | AQ54: ='MTDC (most common)'!R131+'MTDC (most common)'!R141+'MTDC (most common)'!R170+'MTDC (most common)'!R183 -> 0 | AR54: =SUM(AQ48:AQ53) -> 0 | AX54: TOTAL OTHER DIRECT COSTS | BF54: ='MTDC (most common)'!T131+'MTDC (most common)'!T141+'MTDC (most common)'!T170+'MTDC (most common)'!T183 -> 0 | BG54: =SUM(BF48:BF53) -> 0 | BM54: TOTAL OTHER DIRECT COSTS | BU54: ='MTDC (most common)'!V131+'MTDC (most common)'!V141+'MTDC (most common)'!V170+'MTDC (most common)'!V183 -> 0 | BV54: =SUM(BU48:BU53) -> 0 | CB54: TOTAL OTHER DIRECT COSTS | CJ54: =AR54+AC54+N54+BG54+BV54 -> 0 | CK54: ='MTDC (most common)'!X131+'MTDC (most common)'!X141+'MTDC (most common)'!X170+'MTDC (most common)'!X183 -> 0
A55: H. TOTAL DIRECT COSTS (A THROUGH G) | M55: ='MTDC (most common)'!N186 -> 0 | N55: =N54+M46+M37+M36+M35+M28 -> 0 | P55: H. TOTAL DIRECT COSTS (A THROUGH G) | AB55: ='MTDC (most common)'!P186 -> 0 | AC55: =AC54+AB46+AB37+AB36+AB35+AB28 -> 0 | AE55: H. TOTAL DIRECT COSTS (A THROUGH G) | AQ55: ='MTDC (most common)'!R186 -> 0 | AR55: =AR54+AQ46+AQ37+AQ36+AQ35+AQ28 -> 0 | AT55: H. TOTAL DIRECT COSTS (A THROUGH G) | BF55: ='MTDC (most common)'!T186 -> 0 | BG55: =BG54+BF46+BF37+BF36+BF35+BF28 -> 0 | BI55: H. TOTAL DIRECT COSTS (A THROUGH G) | BU55: ='MTDC (most common)'!V186 -> 0 | BV55: =BV54+BU46+BU37+BU36+BU35+BU28 -> 0 | BX55: H. TOTAL DIRECT COSTS (A THROUGH G) | CJ55: 0
A56: I. INDIRECT COSTS (F&A) (SPECIFY RATE AND BASE) | P56: I. INDIRECT COSTS (F&A) (SPECIFY RATE AND BASE) | AE56: I. INDIRECT COSTS (F&A) (SPECIFY RATE AND BASE) | AT56: I. INDIRECT COSTS (F&A) (SPECIFY RATE AND BASE) | BI56: I. INDIRECT COSTS (F&A) (SPECIFY RATE AND BASE) | BX56: I. INDIRECT COSTS (F&A) (SPECIFY RATE AND BASE)
G58: Modified Total Direct Costs | U58: Modified Total Direct Costs | BM58: =_YR5 ->  | BN58: Modified Total Direct Costs
A59: TOTAL INDIRECT COSTS (F&A) | K59: Base Amount: | L59: ='MTDC (most common)'!N143 -> 0 | M59: ='MTDC (most common)'!N145 -> 0 | P59: TOTAL INDIRECT COSTS (F&A) | Z59: Base Amount: | AA59: ='MTDC (most common)'!P143 -> 0 | AB59: ='MTDC (most common)'!P145 -> 0 | AE59: TOTAL INDIRECT COSTS (F&A) | AO59: Base Amount: | AP59: ='MTDC (most common)'!R143 -> 0 | AQ59: ='MTDC (most common)'!R145 -> 0 | AT59: TOTAL INDIRECT COSTS (F&A) | BD59: Base Amount: | BE59: ='MTDC (most common)'!T143 -> 0 | BF59: ='MTDC (most common)'!T145 -> 0 | BI59: TOTAL INDIRECT COSTS (F&A) | BS59: Base Amount: | BT59: ='MTDC (most common)'!V143 -> 0 | BU59: ='MTDC (most common)'!V145 -> 0 | BX59: TOTAL INDIRECT COSTS (F&A) | CF59: Base Amount: | CI59: =L59+AA59+AP59+BE59+BT59 -> 0 | CJ59: =AQ59+AB59+M59+BF59+BU59 -> 0 | CK59: ='MTDC (most common)'!X145 -> 0
A60: J. TOTAL DIRECT AND INDIRECT COSTS (H + I) | M60: ='MTDC (most common)'!N188 -> 0 | P60: J. TOTAL DIRECT AND INDIRECT COSTS (H + I) | AB60: ='MTDC (most common)'!P188 -> 0 | AE60: J. TOTAL DIRECT AND INDIRECT COSTS (H + I) | AQ60: ='MTDC (most common)'!R188 -> 0 | AT60: J. TOTAL DIRECT AND INDIRECT COSTS (H + I) | BF60: ='MTDC (most common)'!T188 -> 0 | BI60: J. TOTAL DIRECT AND INDIRECT COSTS (H + I) | BU60: ='MTDC (most common)'!V188 -> 0 | BX60: J. TOTAL DIRECT AND INDIRECT COSTS (H + I) | CJ60: =AQ60+AB60+M60+BF60+BU60 -> 0 | CK60: ='MTDC (most common)'!X188 -> 0
A61: K. RESIDUAL FUNDS (IF FOR FURTHER SUPPORT OF CURRENT PROJECTS SEE GPG II.D.7.j.) | P61: K. RESIDUAL FUNDS (IF FOR FURTHER SUPPORT OF CURRENT PROJECTS SEE GPG II.D.7.j.) | AE61: K. RESIDUAL FUNDS (IF FOR FURTHER SUPPORT OF CURRENT PROJECTS SEE GPG II.D.7.j.) | AT61: K. RESIDUAL FUNDS (IF FOR FURTHER SUPPORT OF CURRENT PROJECTS SEE GPG II.D.7.j.) | BI61: K. RESIDUAL FUNDS (IF FOR FURTHER SUPPORT OF CURRENT PROJECTS SEE GPG II.D.7.j.) | BX61: K. RESIDUAL FUNDS (IF FOR FURTHER SUPPORT OF CURRENT PROJECTS SEE GPG II.D.7.j.) | CJ61: =AQ61+AB61+M61+BF61+BU61 -> 0
A62: L. AMOUNT OF THIS REQUEST (J) OR (J MINUS K) | M62: ='MTDC (most common)'!N188 -> 0 | P62: L. AMOUNT OF THIS REQUEST (J) OR (J MINUS K) | AB62: ='MTDC (most common)'!P188 -> 0 | AE62: L. AMOUNT OF THIS REQUEST (J) OR (J MINUS K) | AQ62: ='MTDC (most common)'!R188 -> 0 | AT62: L. AMOUNT OF THIS REQUEST (J) OR (J MINUS K) | BF62: ='MTDC (most common)'!T188 -> 0 | BI62: L. AMOUNT OF THIS REQUEST (J) OR (J MINUS K) | BU62: ='MTDC (most common)'!V188 -> 0 | BX62: L. AMOUNT OF THIS REQUEST (J) OR (J MINUS K) | CJ62: =AQ62+AB62+M62+BF62+BU62 -> 0 | CK62: ='MTDC (most common)'!X188 -> 0
A63: M. COST SHARING: PROPOSED LEVEL $ | I63: AGREED LEVEL IF DIFFERENT $ | P63: M. COST SHARING: PROPOSED LEVEL $ | X63: AGREED LEVEL IF DIFFERENT $ | AE63: M. COST SHARING: PROPOSED LEVEL $ | AM63: AGREED LEVEL IF DIFFERENT $ | AT63: M. COST SHARING: PROPOSED LEVEL $ | BB63: AGREED LEVEL IF DIFFERENT $ | BI63: M. COST SHARING: PROPOSED LEVEL $ | BQ63: AGREED LEVEL IF DIFFERENT $ | BX63: M. COST SHARING: PROPOSED LEVEL $ | CD63: =AK63+V63+G63+AZ63+BO63 -> 0 | CF63: AGREED LEVEL IF DIFFERENT $
A64: PI/PD TYPED NAME & SIGNATURE* | I64: DATE | L64: FOR NSF USE ONLY | P64: PI/PD TYPED NAME & SIGNATURE* | Y64: DATE | AA64: FOR NSF USE ONLY | AE64: PI/PD TYPED NAME & SIGNATURE* | AN64: DATE | AP64: FOR NSF USE ONLY | AT64: PI/PD TYPED NAME & SIGNATURE* | BC64: DATE | BE64: FOR NSF USE ONLY | BI64: PI/PD TYPED NAME & SIGNATURE* | BR64: DATE | BT64: FOR NSF USE ONLY | BX64: PI/PD TYPED NAME & SIGNATURE* | CG64: DATE | CI64: FOR NSF USE ONLY
L66: INDIRECT COST RATE VERIFICATION | AA66: INDIRECT COST RATE VERIFICATION | AP66: INDIRECT COST RATE VERIFICATION | BE66: INDIRECT COST RATE VERIFICATION | BT66: INDIRECT COST RATE VERIFICATION | CI66: INDIRECT COST RATE VERIFICATION
A67: ORG. REP. TYPED NAME & SIGNATURE* | I67: DATE | L67: Date Checked | M67: Date of Rate Sheet | N67: Initials-ORG | P67: ORG. REP. TYPED NAME & SIGNATURE* | Y67: DATE | AA67: Date Checked | AB67: Date of Rate Sheet | AC67: Initials-ORG | AE67: ORG. REP. TYPED NAME & SIGNATURE* | AN67: DATE | AP67: Date Checked | AQ67: Date of Rate Sheet | AR67: Initials-ORG | AT67: ORG. REP. TYPED NAME & SIGNATURE* | BC67: DATE | BE67: Date Checked | BF67: Date of Rate Sheet | BG67: Initials-ORG | BI67: ORG. REP. TYPED NAME & SIGNATURE* | BR67: DATE | BT67: Date Checked | BU67: Date of Rate Sheet | BV67: Initials-ORG | BX67: ORG. REP. TYPED NAME & SIGNATURE* | CG67: DATE | CI67: Date Checked | CJ67: Date of Rate Sheet | CK67: Initials-ORG
A70: NSF Form 1030 (10/99) Supersedes All Previous Editions | I70: *SIGNATURES REQUIRED ONLY FOR REVISED BUDGET (GPG III.C) | P70: =A70 -> NSF Form 1030 (10/99) Supersedes All Previous Editions | X70: *SIGNATURES REQUIRED ONLY FOR REVISED BUDGET (GPG III.C) | AE70: =+A70 -> NSF Form 1030 (10/99) Supersedes All Previous Editions | AM70: *SIGNATURES REQUIRED ONLY FOR REVISED BUDGET (GPG III.C) | AT70: =+P70 -> NSF Form 1030 (10/99) Supersedes All Previous Editions | BB70: *SIGNATURES REQUIRED ONLY FOR REVISED BUDGET (GPG III.C) | BI70: =+AE70 -> NSF Form 1030 (10/99) Supersedes All Previous Editions | BQ70: *SIGNATURES REQUIRED ONLY FOR REVISED BUDGET (GPG III.C) | BX70: =+A70 -> NSF Form 1030 (10/99) Supersedes All Previous Editions | CF70: *SIGNATURES REQUIRED ONLY FOR REVISED BUDGET (GPG III.C)
A73: Spreadsheet Notes:
A74: Blue cells auto populate from the MTDC Budget Spreadsheet.
A75: This form is not intended for submission to the funding agency, but to help fill out the agency provided forms.
A76: This form is provided as a starting point for filling out the agency provided forms. For various reasons, some budgets may not populate into this form correctly or as they should be submitted to the funding agency.

Sheet SF424 A
B1: BUDGET INFORMATION - Non-Construction Programs
B2: SECTION A - BUDGET SUMMARY
B3: Grant Program Function or Activity (a) | D3: Catalog of Federal Domestic Assistance Number ( b ) | E3: Estimated Unobligated Funds | G3: New or Revised Budget
E4: Federal ( c ) | F4: Non-Federal ( d ) | G4: Federal ( e ) | H4: Non-Federal ( f ) | I4: Total ( g )
B5: 1 | G5: ='MTDC (most common)'!X188 -> 0 | I5: =SUM(E5:H5) -> 0
B6: 2 | I6: =SUM(E6:H6) -> 0
B7: 3 | I7: =SUM(E7:H7) -> 0
B8: 4 | I8: =SUM(E8:H8) -> 0
B9: 5 | C9: Totals | E9: =SUM(E5:E8) -> 0 | F9: =SUM(F5:F8) -> 0 | G9: =SUM(G5:G8) -> 0 | H9: =SUM(H5:H8) -> 0 | I9: =SUM(I5:I8) -> 0
B10: SECTION B - BUDGET CATEGORIES
B11: 6. Object Class Categories | E11: GRANT PROGRAM, FUNCTION OR ACTIVITY | I11: Total (5)
E12: (1) | F12: (2) | G12: (3) | H12: (4)
B13: a. Personnel | E13: ='MTDC (most common)'!X42+'MTDC (most common)'!X151 -> 0 | I13: =SUM(E13:H13) -> 0
B14: b. Fringe Benefits | E14: ='MTDC (most common)'!X70+'MTDC (most common)'!X156 -> 0 | I14: 0
B15: c. Travel | E15: ='MTDC (most common)'!X111 -> 0 | I15: 0
B16: d. Equipment (>5k) | E16: ='MTDC (most common)'!X178 -> 0 | I16: 0
B17: e. Supplies | E17: ='MTDC (most common)'!X141 -> 0 | I17: 0
B18: f. Contractual | E18: ='MTDC (most common)'!X131+'MTDC (most common)'!X170 -> 0 | I18: 0
B19: g. Construction | I19: 0
B20: h. Other (tuition) | E20: ='MTDC (most common)'!X183 -> 0 | I20: 0
B21: I. Total Direct Costs (sum of 6a - 6h) | D21: ='MTDC (most common)'!X186 -> 0 | E21: =E13+E14+E15+E16+E17+E18+E19+E20 -> 0 | F21: =SUM(F13:F20) -> 0 | G21: =SUM(G13:G20) -> 0 | H21: =SUM(H13:H20) -> 0 | I21: =SUM(E21:H21) -> 0
B22: j. Indirect Costs | E22: ='MTDC (most common)'!X145 -> 0 | I22: 0
B23: k. TOTALS (sum of 6i and 6j) | D23: ='MTDC (most common)'!X188 -> 0 | E23: =E21+E22 -> 0 | F23: =SUM(F21:F22) -> 0 | G23: =SUM(G21:G22) -> 0 | H23: =SUM(H21:H22) -> 0 | I23: =SUM(I21:I22) -> 0
B25: 7. Program Income
B28: SECTION C - NON-FEDERAL RESOURCES
B29: ( a ) Grant Program | F29: ( b ) Applicant | G29: ( c ) State | H29: ( d ) Other Sources | I29: ( e ) TOTALS
B30: 8 | I30: =SUM(F30:H30) -> 0
B31: 9 | I31: =SUM(F31:H31) -> 0
B32: 10 | I32: =SUM(F32:H32) -> 0
B33: 11 | I33: =SUM(F33:H33) -> 0
B34: 12 | C34: TOTAL (sum of liens 8-11) | F34: =SUM(F30:F33) -> 0 | G34: =SUM(G30:G33) -> 0 | H34: =SUM(H30:H33) -> 0 | I34: =SUM(I30:I33) -> 0
B35: SECTION D - FORECASTED CASH NEEDS
B36: 13. Federal | E36: Total for 1st Year | F36: 1st Quarter | G36: 2nd Quarter | H36: 3rd Quarter | I36: 4th Quarter
E37: =SUM(F37:I37) -> 0 | F37: ='MTDC (most common)'!N188/4 -> 0 | G37: ='MTDC (most common)'!N188/4 -> 0 | H37: ='MTDC (most common)'!N188/4 -> 0 | I37: ='MTDC (most common)'!N188/4 -> 0
B38: 14. Non-Federal
B39: 15. TOTAL (sum of lines 13 and 14) | E39: =SUM(E37:E38) -> 0 | F39: =SUM(F37:F38) -> 0 | G39: =SUM(G37:G38) -> 0 | H39: =SUM(H37:H38) -> 0 | I39: =SUM(I37:I38) -> 0
B40: SECTION E - BUDGET ESTIMATES OF FEDERAL FUNDS NEEDED FOR BALANCE OF THE PROJECT
B41: ( a ) Grant Program | F41: FUTURE FUNDING PERIODS (Years)
F42: ( b ) First | G42: ( c ) Second | H42: ( d ) Third | I42: ( e ) Fourth
B43: 16 | F43: ='MTDC (most common)'!P188 -> 0 | G43: ='MTDC (most common)'!R188 -> 0 | H43: ='MTDC (most common)'!T188 -> 0 | I43: ='MTDC (most common)'!V188 -> 0
B44: 17
B45: 18
B46: 19
B47: 20 | C47: TOTAL (sum of lines 16 - 19) | F47: =SUM(F43:F46) -> 0 | G47: =SUM(G43:G46) -> 0 | H47: =SUM(H43:H46) -> 0 | I47: =SUM(I43:I46) -> 0
B48: SECTION F - OTHER BUDGET INFORMATION
B49: 21. Direct Charges: | F49: 22. Indirect Charges:
B50: 23. Remarks:
B52: Spreadsheet Notes:
B53: Blue cells auto populate from the MTDC Budget Spreadsheet.
B54: This form is not intended for submission to the funding agency, but to help fill out the agency provided forms.
B55: This form is provided as a starting point for filling out the agency provided forms. For various reasons, some budgets may not populate into this form correctly or as they should be submitted to the funding agency.

Sheet NASA
B3: SECTION X - Budget
B4: Cumulative Budget
B5: Budget Cost Category | C5: Funds Requested ($)
C6: Year 1 ($) | D6: Year 2 ($) | E6: Year 3 ($) | F6: Year 4 ($) | G6: Year 5 ($) | H6: Total Project ($)
B8: A. Direct Labor - Key Personnel | C8: ='MTDC (most common)'!O19+'MTDC (most common)'!O50 -> 0 | D8: ='MTDC (most common)'!Q19+'MTDC (most common)'!Q50 -> 0 | E8: ='MTDC (most common)'!S19+'MTDC (most common)'!S50 -> 0 | F8: ='MTDC (most common)'!U19+'MTDC (most common)'!U50 -> 0 | G8: ='MTDC (most common)'!W19+'MTDC (most common)'!W50 -> 0 | H8: =C8+D8+E8+F8+G8 -> 0 | J8: ='MTDC (most common)'!X19+'MTDC (most common)'!X50 -> 0
B9: B. Direct Labor - Other Personnel | C9: ='MTDC (most common)'!O40+'MTDC (most common)'!O68+'MTDC (most common)'!N157 -> 0 | D9: ='MTDC (most common)'!Q40+'MTDC (most common)'!Q68+'MTDC (most common)'!P157 -> 0 | E9: ='MTDC (most common)'!S40+'MTDC (most common)'!S68+'MTDC (most common)'!R157 -> 0 | F9: ='MTDC (most common)'!U40+'MTDC (most common)'!U68+'MTDC (most common)'!T157 -> 0 | G9: ='MTDC (most common)'!W40+'MTDC (most common)'!W68+'MTDC (most common)'!V157 -> 0 | H9: =C9+D9+E9+F9+G9 -> 0 | J9: ='MTDC (most common)'!X40+'MTDC (most common)'!X68+'MTDC (most common)'!X157 -> 0
B10: Total Number Other Personnel | H10: =C10+D10+E10+F10+G10 -> 0
B11: Total Direct Labor Costs (A+B) | C11: =C8+C9 -> 0 | D11: =D8+D9 -> 0 | E11: =E8+E9 -> 0 | F11: =F8+F9 -> 0 | G11: =G8+G9 -> 0 | H11: 0 | J11: ='MTDC (most common)'!X42 -> 0
B12: C. Direct Costs - Equipment | C12: ='MTDC (most common)'!N178 -> 0 | D12: ='MTDC (most common)'!P178 -> 0 | E12: ='MTDC (most common)'!R178 -> 0 | F12: ='MTDC (most common)'!T178 -> 0 | G12: ='MTDC (most common)'!V178 -> 0 | H12: 0 | J12: ='MTDC (most common)'!X178 -> 0
B13: D. Direct Costs - Travel | C13: =SUM(C14:C15) -> 0 | D13: =SUM(D14:D15) -> 0 | E13: =SUM(E14:E15) -> 0 | F13: =SUM(F14:F15) -> 0 | G13: =SUM(G14:G15) -> 0 | H13: 0 | J13: ='MTDC (most common)'!X111 -> 0
B14: Domestic Travel | C14: ='MTDC (most common)'!N99 -> 0 | D14: ='MTDC (most common)'!P99 -> 0 | E14: ='MTDC (most common)'!R99 -> 0 | F14: ='MTDC (most common)'!T99 -> 0 | G14: ='MTDC (most common)'!V99 -> 0 | H14: 0 | J14: ='MTDC (most common)'!X99 -> 0
B15: Foreign Travel | C15: ='MTDC (most common)'!N110 -> 0 | D15: ='MTDC (most common)'!P110 -> 0 | E15: ='MTDC (most common)'!R110 -> 0 | F15: ='MTDC (most common)'!T110 -> 0 | G15: ='MTDC (most common)'!V110 -> 0 | H15: 0 | J15: ='MTDC (most common)'!X110 -> 0
B16: E. Direct Costs - Participant/Trainee Support Costs | C16: =SUM(C17:C21) -> 0 | D16: =SUM(D17:D21) -> 0 | E16: =SUM(E17:E21) -> 0 | F16: =SUM(F17:F21) -> 0 | G16: =SUM(G17:G21) -> 0 | H16: 0
B17: Grad/Ugrad Tuition/Fees/Health Insurance | C17: =SUM('MTDC (most common)'!N181:O182) -> 0 | D17: =SUM('MTDC (most common)'!P181:Q182) -> 0 | E17: =SUM('MTDC (most common)'!R181:S182) -> 0 | F17: =SUM('MTDC (most common)'!T181:U182) -> 0 | G17: =SUM('MTDC (most common)'!V181:W182) -> 0 | H17: 0
B18: Stipends | C18: =SUM('MTDC (most common)'!N159:O159) -> 0 | D18: =SUM('MTDC (most common)'!P159:Q159) -> 0 | E18: =SUM('MTDC (most common)'!R159:S159) -> 0 | F18: =SUM('MTDC (most common)'!T159:U159) -> 0 | G18: =SUM('MTDC (most common)'!V159:W159) -> 0 | H18: 0
B19: Travel | C19: =SUM('MTDC (most common)'!N160:O160) -> 0 | D19: =SUM('MTDC (most common)'!P160:Q160) -> 0 | E19: =SUM('MTDC (most common)'!R160:S160) -> 0 | F19: =SUM('MTDC (most common)'!T160:U160) -> 0 | G19: =SUM('MTDC (most common)'!V160:W160) -> 0 | H19: 0
B20: Subsistence | C20: =SUM('MTDC (most common)'!N161:O161) -> 0 | D20: =SUM('MTDC (most common)'!P161:Q161) -> 0 | E20: =SUM('MTDC (most common)'!R161:S161) -> 0 | F20: =SUM('MTDC (most common)'!T161:U161) -> 0 | G20: =SUM('MTDC (most common)'!V161:W161) -> 0 | H20: 0
B21: Other | C21: =SUM('MTDC (most common)'!N162:O162) -> 0 | D21: =SUM('MTDC (most common)'!P162:Q162) -> 0 | E21: =SUM('MTDC (most common)'!R162:S162) -> 0 | F21: =SUM('MTDC (most common)'!T162:U162) -> 0 | G21: =SUM('MTDC (most common)'!V162:W162) -> 0 | H21: 0
B22: Number of Participants/Trainees
B23: F. Other Direct Costs | C23: =SUM(C24:C31) -> 0 | D23: =SUM(D24:D31) -> 0 | E23: =SUM(E24:E31) -> 0 | F23: =SUM(F24:F31) -> 0 | G23: =SUM(G24:G31) -> 0 | H23: 0
B24: Materials and Supplies | C24: ='MTDC (most common)'!N141 -> 0 | D24: ='MTDC (most common)'!P141 -> 0 | E24: ='MTDC (most common)'!R141 -> 0 | F24: ='MTDC (most common)'!T141 -> 0 | G24: ='MTDC (most common)'!V141 -> 0 | H24: 0 | J24: ='MTDC (most common)'!X141 -> 0
B25: Publication Costs | C25: ='MTDC (most common)'!N113 -> 0 | D25: ='MTDC (most common)'!P113 -> 0 | E25: ='MTDC (most common)'!R113 -> 0 | F25: ='MTDC (most common)'!T113 -> 0 | G25: ='MTDC (most common)'!V113 -> 0 | H25: 0 | J25: ='MTDC (most common)'!X113 -> 0
B26: Consultant Services | C26: ='MTDC (most common)'!N114 -> 0 | D26: ='MTDC (most common)'!P114 -> 0 | E26: ='MTDC (most common)'!R114 -> 0 | F26: ='MTDC (most common)'!T114 -> 0 | G26: ='MTDC (most common)'!V114 -> 0 | H26: 0 | J26: ='MTDC (most common)'!X114 -> 0
B27: ADP/Computer Services | C27: =SUM('MTDC (most common)'!N115:O115) -> 0 | D27: =SUM('MTDC (most common)'!P115:Q115) -> 0 | E27: =SUM('MTDC (most common)'!R115:S115) -> 0 | F27: =SUM('MTDC (most common)'!T115:U115) -> 0 | G27: =SUM('MTDC (most common)'!V115:W115) -> 0 | H27: 0
B28: Subawards/Consortium/Contractual Costs | C28: ='MTDC (most common)'!N131-SUM(C25:C27)+SUM('MTDC (most common)'!N170:O170) -> 0 | D28: ='MTDC (most common)'!P131-SUM(D25:D27)+SUM('MTDC (most common)'!P170:Q170) -> 0 | E28: ='MTDC (most common)'!R131-SUM(E25:E27)+SUM('MTDC (most common)'!R170:S170) -> 0 | F28: ='MTDC (most common)'!T131-SUM(F25:F27)+SUM('MTDC (most common)'!T170:U170) -> 0 | G28: ='MTDC (most common)'!V131-SUM(G25:G27)+SUM('MTDC (most common)'!V170:W170) -> 0 | H28: 0 | J28: ='MTDC (most common)'!X131+'MTDC (most common)'!X170 -> 0
B29: Equipment or Facilital Rental/User Fees | H29: 0
B30: Alterations and Renovations | H30: 0
B31: Other | H31: 0
B32: G. Total Direct Costs (A+B+C+D+E+F) | C32: =C8+C9+C12+C13+C16+C23 -> 0 | D32: =D8+D9+D12+D13+D16+D23 -> 0 | E32: =E8+E9+E12+E13+E16+E23 -> 0 | F32: =F8+F9+F12+F13+F16+F23 -> 0 | G32: =G8+G9+G12+G13+G16+G23 -> 0 | H32: =C32+D32+E32+F32+G32 -> 0 | J32: ='MTDC (most common)'!X186 -> 0
B33: H. Indirect Costs | C33: ='MTDC (most common)'!N145 -> 0 | D33: ='MTDC (most common)'!P145 -> 0 | E33: ='MTDC (most common)'!R145 -> 0 | F33: ='MTDC (most common)'!T145 -> 0 | G33: ='MTDC (most common)'!V145 -> 0 | H33: 0 | J33: ='MTDC (most common)'!X145 -> 0
B34: I. Total Direct and Indirect Costs (G+H) | C34: =C32+C33 -> 0 | D34: =D32+D33 -> 0 | E34: =E32+E33 -> 0 | F34: =F32+F33 -> 0 | G34: =G32+G33 -> 0 | H34: 0 | J34: ='MTDC (most common)'!X188 -> 0
B35: J. Fee
B36: K. Total Cost (I+J) | C36: =C34+C35 -> 0 | D36: =D34+D35 -> 0 | E36: =E34+E35 -> 0 | F36: =F34+F35 -> 0 | G36: =G34+G35 -> 0 | H36: =C36+D36+E36+F36+G36 -> 0 | J36: ='MTDC (most common)'!X188 -> 0
B37: Total Cumulative Budget | H37: =H36 -> 0
B41: Spreadsheet Notes:
B42: Blue cells auto populate from the MTDC Budget Spreadsheet.
B43: This form is not intended for submission to the funding agency, but to help fill out the agency provided forms.
B44: This form is provided as a starting point for filling out the agency provided forms. For various reasons, some budgets may not populate into this form correctly or as they should be submitted to the funding agency.

Sheet EIPRS
B2: PI Name | D2: =NSF!A7 -> TEST
B3: EIPRS #
B4: Proposal Title | D4: ='MTDC (most common)'!D1 -> TOPIC
B5: Budget Prefix
B7: Request Budget | I7: EIPRS Budget Categories
B8: Category | C8: Type | D8: Total
B9: 01 | C9: Salaries | D9: ='MTDC (most common)'!X42-'MTDC (most common)'!AB42 -> 0 | I9: Project Begin Date | K9: ='MTDC (most common)'!D3 -> 2017-01-01 | M9: Project End Date | O9: ='MTDC (most common)'!D4 -> 2020-12-31
B10: 02 | C10: Fringe | D10: ='MTDC (most common)'!X70 -> 0
B11: 03 | C11: Temp Help / IH | D11: ='MTDC (most common)'!AB19+'MTDC (most common)'!AB32+'MTDC (most common)'!AB41 -> 0 | I11: Direct Cost | O11: ='MTDC (most common)'!X186 -> 0
B12: 04 | C12: Travel | D12: ='MTDC (most common)'!X111 -> 0
B13: 05 | C13: Other Exp. | D13: ='MTDC (most common)'!X131+'MTDC (most common)'!X141 -> 0 | I13: MTDC Categories
B14: 06 | C14: Capital > 5,000 | D14: ='MTDC (most common)'!X178 -> 0 | I14: >5K equip | O14: =D14 -> 0
B15: 07 | C15: Capital < 5,000 | D15: *************************** | E15: Currently under 05 | I15: Captial projects (planning, design, construction) | O15: 0
B16: 08 | C16: Reserve | D16: 0 | I16: Student Fees / Insurance | O16: ='MTDC (most common)'!X183 -> 0
B17: XX | C17: MTDC Exclusions | D17: ='MTDC (most common)'!X184 -> 0 | I17: Rental Costs / Off-Sire Facilities | O17: 0
B18: 09 | C18: F&A (Indirect) | D18: ='MTDC (most common)'!X145 -> 0 | I18: Participant Support Costs | O18: ='MTDC (most common)'!X164 -> 0
I19: Patient Care / Other Exclusions | O19: 0
C20: Total Request | D20: =SUM(D9:D19) -> 0 | I20: Total Subawards (Exclude 1st 25K of ea) | O20: ='MTDC (most common)'!X170 -> 0
I22: Indirect Cost | O22: =NSF!CJ59 -> 0
I24: Total Cost | O24: =NSF!CJ60 -> 0

Sheet Domestic PerDiem
A2: FY 2016 Per Diem Rates - Effective October 1, 2015
A3: STATE | B3: DESTINATION | C3: COUNTY/LOCATION DEFINED | D3: SEASON BEGIN | E3: SEASON END | F3: FY16 Lodging Rate | G3: FY16 M&IE | H3: Total | I3: 2007 Lodging by Month | J3: 2008 Proposed Lodging by Month
B4: Standard CONUS rate applies to all counties not specifically listed. Cities not listed may be located in a listed county. | F4: 89 | G4: 51 | H4: =G4+F4 -> 140
A5: AL | B5: Birmingham | C5: Jefferson / Shelby | F5: 94 | G5: 59 | H5: =G5+F5 -> 153 | I5: 80-80-80-80-80-80-80-80-80-80-80-80 | J5: 86-86-86-86-86-86-86-86-86-86-86-86
A6: AL | B6: Gulf Shores | C6: Baldwin | D6: October 1 | E6: February 29 | F6: 101 | G6: 64 | H6: 165 | I6: 88-88-88-88-88-107-107-88-88-88-88-88 | J6: 100-100-106-106-106-125-125-100-100-100-100-100
A7: AL | B7: Gulf Shores | C7: Baldwin | D7: March 1 | E7: July 31 | F7: 130 | G7: 64 | H7: 194 | I7: 88-88-88-88-88-107-107-88-88-88-88-88 | J7: 100-100-106-106-106-125-125-100-100-100-100-100
A8: AL | B8: Gulf Shores | C8: Baldwin | D8: August 1 | E8: September 30 | F8: 101 | G8: 64 | H8: 165 | I8: 88-88-88-88-88-107-107-88-88-88-88-88 | J8: 100-100-106-106-106-125-125-100-100-100-100-100
A9: AL | B9: Mobile | C9: Mobile | D9: October 1 | E9: December 31 | F9: 89 | G9: 59 | H9: 148 | I9: 88-88-88-88-88-107-107-88-88-88-88-88 | J9: 100-100-106-106-106-125-125-100-100-100-100-100
A10: AL | B10: Mobile | C10: Mobile | D10: January 1 | E10: February 29 | F10: 99 | G10: 59 | H10: 158 | I10: 71-71-71-71-71-71-71-71-71-71-71-71 | J10: 75-75-75-75-75-75-75-75-75-75-75-75
A11: AL | B11: Mobile | C11: Mobile | D11: March 1 | E11: September 30 | F11: 89 | G11: 59 | H11: 148 | I11: 73-73-73-73-73-73-73-73-73-73-73-73 | J11: 75-75-75-75-75-75-75-75-75-75-75-75
A12: AR | B12: Hot Springs | C12: Garland | F12: 101 | G12: 59 | H12: 160 | I12: 87-87-87-87-87-87-87-87-87-87-87-87 | J12: 93-93-93-93-93-93-93-93-93-93-93-93
A13: AR | B13: Little Rock | C13: Pulaski | F13: 91 | G13: 59 | H13: 150 | I13: 76-76-76-76-76-76-76-76-76-76-76-76 | J13: 82-82-82-82-82-82-82-82-82-82-82-82
A14: AZ | B14: Grand Canyon / Flagstaff | C14: Coconino / Yavapai less the city of Sedona | D14: October 1 | E14: October 31 | F14: 124 | G14: 64 | H14: 188 | I14: 65-65-81-81-81-81-81-81-81-81-65-65 | J14: 71-71-87-87-87-87-87-87-87-87-71-71
A15: AZ | B15: Grand Canyon / Flagstaff | C15: Coconino / Yavapai less the city of Sedona | D15: November 1 | E15: February 29 | F15: 89 | G15: 64 | H15: 153 | I15: 65-65-81-81-81-81-81-81-81-81-65-65 | J15: 71-71-87-87-87-87-87-87-87-87-71-71
A16: AZ | B16: Grand Canyon / Flagstaff | C16: Coconino / Yavapai less the city of Sedona | D16: March 1 | E16: September 30 | F16: 124 | G16: 64 | H16: 188 | I16: 65-65-81-81-81-81-81-81-81-81-65-65 | J16: 71-71-87-87-87-87-87-87-87-87-71-71
A17: AZ | B17: Kayenta | C17: Navajo | F17: 112 | G17: 59 | H17: 171 | I17: 71-71-71-71-71-71-71-71-71-71-71-71 | J17: 73-73-73-73-73-73-73-73-73-73-73-73
A18: AZ | B18: Phoenix / Scottsdale | C18: Maricopa | D18: October 1 | E18: December 31 | F18: 113 | G18: 59 | H18: 172 | I18: 141-141-141-109-109-74-74-74-103-103-103-103 | J18: 156-156-156-122-122-102-102-102-102-102-102-102
A19: AZ | B19: Phoenix / Scottsdale | C19: Maricopa | D19: January 1 | E19: March 31 | F19: 161 | G19: 59 | H19: 220 | I19: 141-141-141-109-109-74-74-74-103-103-103-103 | J19: 156-156-156-122-122-102-102-102-102-102-102-102
A20: AZ | B20: Phoenix / Scottsdale | C20: Maricopa | D20: April 1 | E20: May 31 | F20: 120 | G20: 59 | H20: 179 | I20: 141-141-141-109-109-74-74-74-103-103-103-103 | J20: 156-156-156-122-122-102-102-102-102-102-102-102
A21: AZ | B21: Phoenix / Scottsdale | C21: Maricopa | D21: June 1 | E21: August 31 | F21: 89 | G21: 59 | H21: 148 | I21: 141-141-141-109-109-74-74-74-103-103-103-103 | J21: 156-156-156-122-122-102-102-102-102-102-102-102
A22: AZ | B22: Phoenix / Scottsdale | C22: Maricopa | D22: September 1 | E22: September 30 | F22: 113 | G22: 59 | H22: 172 | I22: 107-107-118-118-118-107-107-107-107-107-107-107 | J22: 119-119-139-139-119-119-119-119-119-119-119-119
A23: AZ | B23: Sedona | C23: City Limits of Sedona | D23: October 1 | E23: February 29 | F23: 134 | G23: 74 | H23: 208 | I23: 107-107-118-118-118-107-107-107-107-107-107-107 | J23: 119-119-139-139-119-119-119-119-119-119-119-119
A24: AZ | B24: Sedona | C24: City Limits of Sedona | D24: March 1 | E24: August 31 | F24: 141 | G24: 74 | H24: 215 | I24: 107-107-118-118-118-107-107-107-107-107-107-107 | J24: 119-119-139-139-119-119-119-119-119-119-119-119
A25: AZ | B25: Sedona | C25: City Limits of Sedona | D25: September 1 | E25: September 30 | F25: 134 | G25: 74 | H25: 208 | I25: 66-66-66-66-66-66-66-66-66-66-66-66 | J25: 71-71-71-71-71-71-71-71-71-71-71-71
A26: AZ | B26: Tucson | C26: Pima | D26: October 1 | E26: December 31 | F26: 89 | G26: 59 | H26: 148 | I26: 119-119-119-83-83-83-83-83-83-83-83-83 | J26: 102-119-119-119-119-75-75-75-102-102-102-102
A27: AZ | B27: Tucson | C27: Pima | D27: January 1 | E27: February 29 | F27: 106 | G27: 59 | H27: 165 | I27: 119-119-119-83-83-83-83-83-83-83-83-83 | J27: 102-119-119-119-119-75-75-75-102-102-102-102
A28: AZ | B28: Tucson | C28: Pima | D28: March 1 | E28: September 30 | F28: 89 | G28: 59 | H28: 148 | I28: 119-119-119-83-83-83-83-83-83-83-83-83 | J28: 102-119-119-119-119-75-75-75-102-102-102-102
A29: CA | B29: Antioch / Brentwood / Concord | C29: Contra Costa | F29: 132 | G29: 64 | H29: 196 | I29: 119-119-119-83-83-83-83-83-83-83-83-83 | J29: 102-119-119-119-119-75-75-75-102-102-102-102
A30: CA | B30: Bakersfield / Ridgecrest | C30: Kern | F30: 95 | G30: 59 | H30: 154 | I30: 71-71-71-71-71-71-71-71-71-71-71-71 | J30: 84-84-84-73-73-73-73-73-73-73-84-84
A31: CA | B31: Barstow / Ontario / Victorville | C31: San Bernardino | F31: 96 | G31: 54 | H31: 150 | I31: 71-71-71-71-71-71-71-71-71-71-71-71 | J31: 84-84-84-73-73-73-73-73-73-73-84-84
A32: CA | B32: Death Valley | C32: Inyo | F32: 102 | G32: 64 | H32: 166 | I32: 71-71-71-71-71-71-71-71-71-71-71-71 | J32: 84-84-84-73-73-73-73-73-73-73-84-84
A33: CA | B33: Eureka / Arcata / McKinleyville | C33: Humboldt | D33: October 1 | E33: May 31 | F33: 94 | G33: 74 | H33: 168 | I33: 104-104-104-104-104-104-104-104-104-104-104-104 | J33: 109-109-109-109-109-109-109-109-109-109-109-109
A34: CA | B34: Eureka / Arcata / McKinleyville | C34: Humboldt | D34: June 1 | E34: August 31 | F34: 112 | G34: 74 | H34: 186 | I34: 70-70-70-70-70-70-70-70-70-70-70-70 | J34: 75-75-75-75-75-75-75-75-75-75-75-75
A35: CA | B35: Eureka / Arcata / McKinleyville | C35: Humboldt | D35: September 1 | E35: September 30 | F35: 94 | G35: 74 | H35: 168 | I35: 87-87-87-87-87-87-87-87-87-87-87-87 | J35: 92-92-92-92-92-92-92-92-92-92-92-92
A36: CA | B36: Fresno | C36: Fresno | F36: 92 | G36: 64 | H36: 156 | I36: 87-87-87-87-87-87-87-87-87-87-87-87 | J36: 90-90-90-90-90-90-90-90-90-90-90-90
A37: CA | B37: Los Angeles | C37: Los Angeles / Orange / Ventura / Edwards AFB less the city of Santa Monica | D37: October 1 | E37: December 31 | F37: 150 | G37: 64 | H37: 214 | I37: 75-75-75-75-75-75-75-75-75-75-75-75 | J37: 76-76-76-76-76-76-76-76-76-76-76-76
A38: CA | B38: Los Angeles | C38: Los Angeles / Orange / Ventura / Edwards AFB less the city of Santa Monica | D38: January 1 | E38: March 31 | F38: 157 | G38: 64 | H38: 221 | I38: 76-76-76-76-76-76-76-76-76-76-76-76 | J38: 82-82-82-82-82-82-82-82-82-82-82-82
A39: CA | B39: Los Angeles | C39: Los Angeles / Orange / Ventura / Edwards AFB less the city of Santa Monica | D39: April 1 | E39: September 30 | F39: 150 | G39: 64 | H39: 214 | I39: 79-79-79-79-79-79-79-79-79-79-79-79 | J39: 88-88-88-88-88-88-88-88-88-88-88-88
A40: CA | B40: Mammoth Lakes | C40: Mono | D40: October 1 | E40: November 30 | F40: 116 | G40: 74 | H40: 190 | I40: 110-110-110-110-110-110-110-110-110-110-110-110 | J40: 118-118-118-118-118-118-118-118-118-118-118-118
A41: CA | B41: Mammoth Lakes | C41: Mono | D41: December 1 | E41: February 29 | F41: 159 | G41: 74 | H41: 233 | I41: 101-101-101-101-101-101-101-101-101-101-101-101 | J41: 111-111-111-111-111-111-111-111-111-111-111-111
A42: CA | B42: Mammoth Lakes | C42: Mono | D42: March 1 | E42: September 30 | F42: 116 | G42: 74 | H42: 190 | I42: 104-104-104-104-104-104-104-104-104-104-104-104 | J42: 111-111-111-111-111-111-111-111-111-111-111-111
A43: CA | B43: Mill Valley / San Rafael / Novato | C43: Marin | D43: October 1 | E43: October 31 | F43: 146 | G43: 74 | H43: 220 | I43: 79-79-79-79-79-79-79-79-79-79-79-79 | J43: 84-84-84-84-84-84-84-84-84-84-84-84
A44: CA | B44: Mill Valley / San Rafael / Novato | C44: Marin | D44: November 1 | E44: December 31 | F44: 130 | G44: 74 | H44: 204 | I44: 111-111-111-123-123-123-123-123-123-111-111-111 | J44: 125-125-125-125-125-125-125-125-125-125-125-125
A45: CA | B45: Mill Valley / San Rafael / Novato | C45: Marin | D45: January 1 | E45: September 30 | F45: 146 | G45: 74 | H45: 220 | I45: 129-129-129-129-129-129-129-129-129-129-129-129 | J45: 140-140-140-140-140-140-140-140-140-140-140-140
A46: CA | B46: Monterey | C46: Monterey | D46: October 1 | E46: June 30 | F46: 134 | G46: 74 | H46: 208 | I46: 64-75-75-75-75-75-75-75-64-64-64-64 | J46: 71-78-78-78-78-78-78-78-71-71-71-71
A47: CA | B47: Monterey | C47: Monterey | D47: July 1 | E47: August 31 | F47: 175 | G47: 74 | H47: 249 | I47: 64-75-75-75-75-75-75-75-64-64-64-64 | J47: 71-78-78-78-78-78-78-78-71-71-71-71
A48: CA | B48: Monterey | C48: Monterey | D48: September 1 | E48: September 30 | F48: 134 | G48: 74 | H48: 208 | I48: 64-75-75-75-75-75-75-75-64-64-64-64 | J48: 71-78-78-78-78-78-78-78-71-71-71-71
A49: CA | B49: Napa | C49: Napa | D49: October 1 | E49: October 31 | F49: 191 | G49: 69 | H49: 260 | I49: 94-94-94-98-98-98-98-98-98-94-94-94 | J49: 99-99-99-99-99-99-99-99-99-99-99-99
A50: CA | B50: Napa | C50: Napa | D50: November 1 | E50: April 30 | F50: 149 | G50: 69 | H50: 218 | I50: 131-131-131-131-88-88-88-88-105-105-105-105 | J50: 135-135-135-135-95-95-95-95-112-112-112-112
A51: CA | B51: Napa | C51: Napa | D51: May 1 | E51: September 30 | F51: 191 | G51: 69 | H51: 260 | I51: 131-131-131-131-88-88-88-88-105-105-105-105 | J51: 135-135-135-135-95-95-95-95-112-112-112-112
A52: CA | B52: Oakhurst | C52: Madera | D52: October 1 | E52: May 31 | F52: 91 | G52: 64 | H52: 155 | I52: 131-131-131-131-88-88-88-88-105-105-105-105 | J52: 135-135-135-135-95-95-95-95-112-112-112-112
A53: CA | B53: Oakhurst | C53: Madera | D53: June 1 | E53: August 31 | F53: 115 | G53: 64 | H53: 179 | I53: 131-131-131-131-88-88-88-88-105-105-105-105 | J53: 135-135-135-135-95-95-95-95-112-112-112-112
A54: CA | B54: Oakhurst | C54: Madera | D54: September 1 | E54: September 30 | F54: 91 | G54: 64 | H54: 155 | I54: 71-71-71-71-71-71-71-71-71-71-71-71 | J54: 74-74-74-74-74-74-74-74-74-74-74-74
A55: CA | B55: Oakland | C55: Alameda | F55: 140 | G55: 69 | H55: 209 | I55: 78-78-78-78-78-78-78-78-78-78-78-78 | J55: 82-82-82-82-82-82-82-82-82-82-82-82
A56: CA | B56: Palm Springs | C56: Riverside | D56: October 1 | E56: May 31 | F56: 123 | G56: 64 | H56: 187 | I56: 103-103-103-103-103-103-103-103-103-103-103-103 | J56: 111-111-111-111-111-111-111-111-111-111-111-111
A57: CA | B57: Palm Springs | C57: Riverside | D57: June 1 | E57: August 31 | F57: 92 | G57: 64 | H57: 156 | I57: 131-131-131-131-131-131-131-131-131-131-131-131 | J57: 146-146-146-139-139-139-139-139-139-139-139-139
A58: CA | B58: Palm Springs | C58: Riverside | D58: September 1 | E58: September 30 | F58: 123 | G58: 64 | H58: 187 | I58: 131-131-131-131-131-131-131-131-131-131-131-131 | J58: 146-146-146-139-139-139-139-139-139-139-139-139
A59: CA | B59: Point Arena / Gualala | C59: Mendocino | F59: 106 | G59: 69 | H59: 175 | I59: 131-131-131-131-131-131-131-131-131-131-131-131 | J59: 146-146-146-139-139-139-139-139-139-139-139-139
A60: CA | B60: Redding | C60: Shasta | F60: 90 | G60: 64 | H60: 154 | I60: 140-140-140-140-140-140-140-140-140-140-140-140 | J60: 152-152-152-152-152-152-152-152-168-168-168-152
A61: CA | B61: Sacramento | C61: Sacramento | F61: 112 | G61: 64 | H61: 176 | I61: 140-140-140-140-140-140-140-140-140-140-140-140 | J61: 152-152-152-152-152-152-152-152-168-168-168-152
A62: CA | B62: San Diego | C62: San Diego | D62: October 1 | E62: December 31 | F62: 140 | G62: 64 | H62: 204 | I62: 140-140-140-140-140-140-140-140-140-140-140-140 | J62: 152-152-152-152-152-152-152-152-168-168-168-152
A63: CA | B63: San Diego | C63: San Diego | D63: January 1 | E63: July 31 | F63: 153 | G63: 64 | H63: 217 | I63: 102-102-102-102-102-102-102-102-102-102-102-102 | J63: 106-106-106-106-106-106-126-126-106-106-106-106
A64: CA | B64: San Diego | C64: San Diego | D64: August 1 | E64: September 30 | F64: 140 | G64: 64 | H64: 204 | I64: 102-102-102-102-102-102-102-102-102-102-102-102 | J64: 106-106-106-106-106-106-126-126-106-106-106-106
A65: CA | B65: San Francisco | C65: San Francisco | F65: 250 | G65: 74 | H65: 324 | I65: 102-102-102-102-102-102-102-102-102-102-102-102 | J65: 106-106-106-106-106-106-126-126-106-106-106-106
A66: CA | B66: San Luis Obispo | C66: San Luis Obispo | D66: October 1 | E66: May 31 | F66: 112 | G66: 64 | H66: 176 | I66: 98-98-98-107-107-107-107-107-107-98-98-98 | J66: 109-109-109-109-109-109-109-109-109-109-109-109
A67: CA | B67: San Luis Obispo | C67: San Luis Obispo | D67: June 1 | E67: August 31 | F67: 133 | G67: 64 | H67: 197 | I67: 130-130-130-137-137-137-181-181-137-130-130-130 | J67: 141-141-141-141-141-141-181-181-141-141-141-141
A68: CA | B68: San Luis Obispo | C68: San Luis Obispo | D68: September 1 | E68: September 30 | F68: 112 | G68: 64 | H68: 176 | I68: 130-130-130-137-137-137-181-181-137-130-130-130 | J68: 141-141-141-141-141-141-181-181-141-141-141-141
A69: CA | B69: San Mateo / Foster City / Belmont | C69: San Mateo | D69: October 1 | E69: December 31 | F69: 178 | G69: 69 | H69: =G69+F69 -> 247 | I69: 130-130-130-137-137-137-181-181-137-130-130-130 | J69: 141-141-141-141-141-141-181-181-141-141-141-141
A70: CA | B70: San Mateo / Foster City / Belmont | C70: San Mateo | D70: January 1 | E70: March 31 | F70: 184 | G70: 69 | H70: 253 | I70: 101-101-101-101-101-126-126-126-101-101-101-101 | J70: 106-106-106-106-106-134-134-134-106-106-106-106
A71: CA | B71: San Mateo / Foster City / Belmont | C71: San Mateo | D71: April 1 | E71: September 30 | F71: 178 | G71: 69 | H71: 247 | I71: 101-101-101-101-101-126-126-126-101-101-101-101 | J71: 106-106-106-106-106-134-134-134-106-106-106-106
A72: CA | B72: Santa Barbara | C72: Santa Barbara | D72: October 1 | E72: June 30 | F72: 161 | G72: 74 | H72: 235 | I72: 101-101-101-101-101-126-126-126-101-101-101-101 | J72: 106-106-106-106-106-134-134-134-106-106-106-106
A73: CA | B73: Santa Barbara | C73: Santa Barbara | D73: July 1 | E73: August 31 | F73: 211 | G73: 74 | H73: 285 | I73: 170-170-170-170-170-170-170-170-170-170-170-170 | J73: 192-192-192-192-192-192-192-192-192-192-192-192
A74: CA | B74: Santa Barbara | C74: Santa Barbara | D74: September 1 | E74: September 30 | F74: 161 | G74: 74 | H74: 235 | I74: 108-108-108-108-108-108-108-108-108-108-108-108 | J74: 114-114-114-114-114-114-114-114-114-114-114-114
A75: CA | B75: Santa Cruz | C75: Santa Cruz | D75: October 1 | E75: May 31 | F75: 129 | G75: 59 | H75: 188 | I75: 144-144-144-106-106-106-122-122-122-122-122-144 | J75: 149-149-149-118-118-118-132-132-132-132-132-149
A76: CA | B76: Santa Cruz | C76: Santa Cruz | D76: June 1 | E76: August 31 | F76: 164 | G76: 59 | H76: 223 | I76: 144-144-144-106-106-106-122-122-122-122-122-144 | J76: 149-149-149-118-118-118-132-132-132-132-132-149
A77: CA | B77: Santa Cruz | C77: Santa Cruz | D77: September 1 | E77: September 30 | F77: 129 | G77: 59 | H77: 188 | I77: 144-144-144-106-106-106-122-122-122-122-122-144 | J77: 149-149-149-118-118-118-132-132-132-132-132-149
A78: CA | B78: Santa Monica | C78: City limits of Santa Monica | D78: October 1 | E78: May 31 | F78: 217 | G78: 64 | H78: 281 | I78: 144-144-144-106-106-106-122-122-122-122-122-144 | J78: 149-149-149-118-118-118-132-132-132-132-132-149
A79: CA | B79: Santa Monica | C79: City limits of Santa Monica | D79: June 1 | E79: August 31 | F79: 252 | G79: 64 | H79: 316 | I79: 75-75-75-75-75-75-75-75-75-75-75-75 | J79: 78-78-78-78-78-78-78-78-78-78-78-78
A80: CA | B80: Santa Monica | C80: City limits of Santa Monica | D80: September 1 | E80: September 30 | F80: 217 | G80: 64 | H80: 281 | I80: 110-110-110-110-110-110-110-110-110-110-110-110 | J80: 119-119-119-119-119-119-119-119-119-119-119-119
A81: CA | B81: Santa Rosa | C81: Sonoma | D81: October 1 | E81: October 31 | F81: 134 | G81: 64 | H81: 198 | I81: 98-98-98-98-98-98-98-98-98-98-98-98 | J81: 101-101-101-101-101-101-101-101-101-101-101-101
A82: CA | B82: Santa Rosa | C82: Sonoma | D82: November 1 | E82: February 29 | F82: 118 | G82: 64 | H82: 182 | I82: 87-87-87-87-87-87-87-87-87-87-87-87 | J82: 105-105-86-86-86-86-86-86-86-86-86-105
A83: CA | B83: Santa Rosa | C83: Sonoma | D83: March 1 | E83: September 30 | F83: 134 | G83: 64 | H83: 198 | I83: 87-87-87-87-87-87-87-87-87-87-87-87 | J83: 105-105-86-86-86-86-86-86-86-86-86-105
A84: CA | B84: South Lake Tahoe | C84: El Dorado | D84: October 1 | E84: November 30 | F84: 111 | G84: 64 | H84: 175 | I84: 87-87-87-87-87-87-87-87-87-87-87-87 | J84: 105-105-86-86-86-86-86-86-86-86-86-105
A85: CA | B85: South Lake Tahoe | C85: El Dorado | D85: December 1 | E85: June 30 | F85: 136 | G85: 64 | H85: 200 | I85: 70-70-70-70-70-70-70-70-70-70-70-70 | J85: 78-78-78-78-78-78-78-78-78-78-78-78
A86: CA | B86: South Lake Tahoe | C86: El Dorado | D86: July 1 | E86: August 31 | F86: 162 | G86: 64 | H86: 226 | I86: 75-75-75-75-75-75-75-75-75-75-75-75 | J86: 85-85-85-85-85-85-85-85-85-85-85-85
A87: CA | B87: South Lake Tahoe | C87: El Dorado | D87: September 1 | E87: September 30 | F87: 111 | G87: 64 | H87: 175 | I87: 129-129-129-85-85-85-85-85-129-129-129-129 | J87: 143-143-143-143-143-143-143-143-151-151-151-151
A88: CA | B88: Stockton | C88: San Joaquin | F88: 97 | G88: 64 | H88: 161 | I88: 129-129-129-85-85-85-85-85-129-129-129-129 | J88: 143-143-143-143-143-143-143-143-151-151-151-151
A89: CA | B89: Sunnyvale / Palo Alto / San Jose | C89: Santa Clara | D89: October 1 | E89: March 31 | F89: 187 | G89: 64 | H89: 251 | I89: 129-129-129-85-85-85-85-85-129-129-129-129 | J89: 143-143-143-143-143-143-143-143-151-151-151-151
A90: CA | B90: Sunnyvale / Palo Alto / San Jose | C90: Santa Clara | D90: April 1 | E90: May 31 | F90: 175 | G90: 64 | H90: 239 | I90: 129-129-129-85-85-85-85-85-129-129-129-129 | J90: 143-143-143-143-143-143-143-143-151-151-151-151
A91: CA | B91: Sunnyvale / Palo Alto / San Jose | C91: Santa Clara | D91: June 1 | E91: September 30 | F91: 187 | G91: 64 | H91: 251 | I91: 225-225-225-225-127-127-127-127-108-108-108-225 | J91: 214-214-214-214-104-104-104-104-104-104-104-214
A92: CA | B92: Tahoe City | C92: Placer | F92: 93 | G92: 64 | H92: 157 | I92: 225-225-225-225-127-127-127-127-108-108-108-225 | J92: 214-214-214-214-104-104-104-104-104-104-104-214
A93: CA | B93: Truckee | C93: Nevada | F93: 120 | G93: 74 | H93: 194 | I93: 225-225-225-225-127-127-127-127-108-108-108-225 | J93: 214-214-214-214-104-104-104-104-104-104-104-214
A94: CA | B94: Visalia / Lemoore | C94: Tulare / Kings | F94: 90 | G94: 59 | H94: 149 | I94: 93-93-93-93-93-93-93-93-93-93-93-93 | J94: 98-98-98-98-98-98-98-98-98-98-98-98
A95: CA | B95: West Sacramento / Davis | C95: Yolo | F95: 113 | G95: 64 | H95: 177 | I95: 80-80-80-80-80-80-80-80-80-80-80-80 | J95: 83-83-83-83-83-83-83-83-83-83-83-83
A96: CA | B96: Yosemite National Park | C96: Mariposa | D96: October 1 | E96: December 31 | F96: 118 | G96: 69 | H96: 187 | I96: 70-70-70-70-70-86-86-86-70-70-70-70 | J96: 75-75-75-75-75-90-90-90-75-75-75-75
A97: CA | B97: Yosemite National Park | C97: Mariposa | D97: January 1 | E97: May 31 | F97: 107 | G97: 69 | H97: 176 | I97: 70-70-70-70-70-86-86-86-70-70-70-70 | J97: 75-75-75-75-75-90-90-90-75-75-75-75
A98: CA | B98: Yosemite National Park | C98: Mariposa | D98: June 1 | E98: August 31 | F98: 132 | G98: 69 | H98: 201 | I98: 70-70-70-70-70-86-86-86-70-70-70-70 | J98: 75-75-75-75-75-90-90-90-75-75-75-75
A99: CA | B99: Yosemite National Park | C99: Mariposa | D99: September 1 | E99: September 30 | F99: 118 | G99: 69 | H99: 187 | I99: 240-222-222-222-84-84-84-84-84-84-84-240 | J99: 237-237-237-94-94-94-94-94-76-76-76-237
A100: CO | B100: Aspen | C100: Pitkin | D100: October 1 | E100: November 30 | F100: 115 | G100: 74 | H100: 189 | I100: 240-222-222-222-84-84-84-84-84-84-84-240 | J100: 237-237-237-94-94-94-94-94-76-76-76-237
A101: CO | B101: Aspen | C101: Pitkin | D101: December 1 | E101: March 31 | F101: 266 | G101: 74 | H101: 340 | I101: 240-222-222-222-84-84-84-84-84-84-84-240 | J101: 237-237-237-94-94-94-94-94-76-76-76-237
A102: CO | B102: Aspen | C102: Pitkin | D102: April 1 | E102: May 31 | F102: 114 | G102: 74 | H102: 188 | I102: 240-222-222-222-84-84-84-84-84-84-84-240 | J102: 237-237-237-94-94-94-94-94-76-76-76-237
A103: CO | B103: Aspen | C103: Pitkin | D103: June 1 | E103: August 31 | F103: 193 | G103: 74 | H103: 267 | I103: 127-127-127-127-127-127-127-127-127-127-127-127 | J103: 140-140-140-140-140-140-140-140-140-140-140-140
A104: CO | B104: Aspen | C104: Pitkin | D104: September 1 | E104: September 30 | F104: 115 | G104: 74 | H104: 189 | I104: 84-84-84-84-84-84-84-84-84-84-84-84 | J104: 90-90-90-90-90-90-90-90-90-90-90-90
A105: CO | B105: Boulder / Broomfield | C105: Boulder / Broomfield | F105: 125 | G105: 59 | H105: 184 | I105: 81-81-81-81-81-106-106-106-106-81-81-81 | J105: 86-86-86-86-108-108-108-108-108-86-86-86
A106: CO | B106: Colorado Springs | C106: El Paso | F106: 91 | G106: 59 | H106: 150 | I106: 81-81-81-81-81-106-106-106-106-81-81-81 | J106: 86-86-86-86-108-108-108-108-108-86-86-86
A107: CO | B107: Cortez | C107: Montezuma | D107: October 1 | E107: May 31 | F107: 91 | G107: 59 | H107: 150 | I107: 80-80-80-80-80-80-80-80-80-80-80-80 | J107: 85-85-85-85-85-85-85-85-85-85-85-85
A108: CO | B108: Cortez | C108: Montezuma | D108: June 1 | E108: September 30 | F108: 114 | G108: 59 | H108: 173 | I108: 69-69-69-69-69-69-69-69-69-69-69-69 | J108: 81-81-81-81-81-81-81-81-81-81-81-81
A109: CO | B109: Crested Butte / Gunnison | C109: Gunnison | D109: October 1 | E109: November 30 | F109: 108 | G109: 64 | H109: 172 | I109: 64-64-64-64-64-79-79-79-79-64-64-64 | J109: 70-70-70-70-80-80-80-80-80-70-70-70
A110: CO | B110: Crested Butte / Gunnison | C110: Gunnison | D110: December 1 | E110: March 31 | F110: 154 | G110: 64 | H110: 218 | I110: 64-64-64-64-64-79-79-79-79-64-64-64 | J110: 70-70-70-70-80-80-80-80-80-70-70-70
A111: CO | B111: Crested Butte / Gunnison | C111: Gunnison | D111: April 1 | E111: September 30 | F111: 108 | G111: 64 | H111: 172 | I111: 140-140-140-140-92-92-92-92-92-92-92-140 | J111: 162-173-173-92-92-101-101-101-101-101-101-162
A112: CO | B112: Denver / Aurora | C112: Denver / Adams / Arapahoe / Jefferson | F112: 172 | G112: 69 | H112: 241 | I112: 140-140-140-140-92-92-92-92-92-92-92-140 | J112: 162-173-173-92-92-101-101-101-101-101-101-162
A113: CO | B113: Douglas | C113: Douglas | F113: 116 | G113: 59 | H113: 175 | I113: 140-140-140-140-92-92-92-92-92-92-92-140 | J113: 162-173-173-92-92-101-101-101-101-101-101-162
A114: CO | B114: Durango | C114: La Plata | D114: October 1 | E114: May 31 | F114: 100 | G114: 64 | H114: 164 | I114: 140-140-140-140-92-92-92-92-92-92-92-140 | J114: 162-173-173-92-92-101-101-101-101-101-101-162
A115: CO | B115: Durango | C115: La Plata | D115: June 1 | E115: September 30 | F115: 146 | G115: 64 | H115: 210 | I115: 140-140-140-140-92-92-92-92-92-92-92-140 | J115: 162-173-173-92-92-101-101-101-101-101-101-162
A116: CO | B116: Fort Collins / Loveland | C116: Larimer | F116: 109 | G116: 59 | H116: 168 | I116: 169-169-169-95-95-95-95-95-95-95-95-169 | J116: 192-192-119-119-119-119-119-119-119-119-119-192
A117: CO | B117: Grand Lake | C117: Grand | D117: October 1 | E117: November 30 | F117: 120 | G117: 64 | H117: 184 | I117: 169-169-169-95-95-95-95-95-95-95-95-169 | J117: 192-192-119-119-119-119-119-119-119-119-119-192
A118: CO | B118: Grand Lake | C118: Grand | D118: December 1 | E118: March 31 | F118: 196 | G118: 64 | H118: 260 | I118: 169-169-169-95-95-95-95-95-95-95-95-169 | J118: 192-192-119-119-119-119-119-119-119-119-119-192
A119: CO | B119: Grand Lake | C119: Grand | D119: April 1 | E119: May 31 | F119: 104 | G119: 64 | H119: 168 | I119: 150-192-192-192-119-119-119-119-119-150-150-150 | J119: 172-234-234-79-79-128-128-128-128-172-172-172
A120: CO | B120: Grand Lake | C120: Grand | D120: June 1 | E120: September 30 | F120: 120 | G120: 64 | H120: 184 | I120: 150-192-192-192-119-119-119-119-119-150-150-150 | J120: 172-234-234-79-79-128-128-128-128-172-172-172
A121: CO | B121: Montrose | C121: Montrose | D121: October 1 | E121: May 31 | F121: 89 | G121: 64 | H121: 153 | I121: 150-192-192-192-119-119-119-119-119-150-150-150 | J121: 172-234-234-79-79-128-128-128-128-172-172-172
A122: CO | B122: Montrose | C122: Montrose | D122: June 1 | E122: August 31 | F122: 94 | G122: 64 | H122: 158 | I122: 150-192-192-192-119-119-119-119-119-150-150-150 | J122: 172-234-234-79-79-128-128-128-128-172-172-172
A123: CO | B123: Montrose | C123: Montrose | D123: September 1 | E123: September 30 | F123: 89 | G123: 64 | H123: 153 | I123: 301-301-301-127-127-127-127-127-127-127-127-301 | J123: 317-194-194-194-194-194-194-194-194-194-194-317
A124: CO | B124: Silverthorne / Breckenridge | C124: Summit | D124: October 1 | E124: November 30 | F124: 106 | G124: 64 | H124: 170 | I124: 301-301-301-127-127-127-127-127-127-127-127-301 | J124: 317-194-194-194-194-194-194-194-194-194-194-317
A125: CO | B125: Silverthorne / Breckenridge | C125: Summit | D125: December 1 | E125: March 31 | F125: 167 | G125: 64 | H125: 231 | I125: 301-301-301-127-127-127-127-127-127-127-127-301 | J125: 317-194-194-194-194-194-194-194-194-194-194-317
A126: CO | B126: Silverthorne / Breckenridge | C126: Summit | D126: April 1 | E126: May 31 | F126: 97 | G126: 64 | H126: 161 | I126: 301-301-301-127-127-127-127-127-127-127-127-301 | J126: 317-194-194-194-194-194-194-194-194-194-194-317
A127: CO | B127: Silverthorne / Breckenridge | C127: Summit | D127: June 1 | E127: September 30 | F127: 106 | G127: 64 | H127: 170 | I127: 113-113-113-113-113-113-113-113-113-113-113-113 | J127: 118-118-118-118-118-118-118-118-118-118-118-118
A128: CO | B128: Steamboat Springs | C128: Routt | D128: October 1 | E128: November 30 | F128: 104 | G128: 74 | H128: 178 | I128: 79-79-79-79-79-79-79-79-79-79-79-79 | J128: 83-83-83-83-83-83-83-83-83-83-83-83
A129: CO | B129: Steamboat Springs | C129: Routt | D129: December 1 | E129: March 31 | F129: 178 | G129: 74 | H129: 252 | I129: 99-99-99-99-99-99-99-99-99-99-99-99 | J129: 103-103-103-103-103-103-103-103-103-103-103-103
A130: CO | B130: Steamboat Springs | C130: Routt | D130: April 1 | E130: May 31 | F130: 89 | G130: 74 | H130: 163 | I130: 90-90-90-90-90-90-90-90-90-90-90-90 | J130: 89-89-89-89-89-89-89-89-89-89-89-89
A131: CO | B131: Steamboat Springs | C131: Routt | D131: June 1 | E131: September 30 | F131: 104 | G131: 74 | H131: 178 | I131: 89-89-89-89-89-89-89-89-89-89-89-89 | J131: 92-92-92-92-92-92-92-92-92-92-92-92
A132: CO | B132: Telluride | C132: San Miguel | D132: October 1 | E132: November 30 | F132: 134 | G132: 74 | H132: 208 | I132: 94-94-94-94-94-94-94-94-94-94-94-94 | J132: 98-98-98-98-98-98-98-98-98-98-98-98
A133: CO | B133: Telluride | C133: San Miguel | D133: December 1 | E133: March 31 | F133: 354 | G133: 74 | H133: =G133+F133 -> 428 | I133: 71-71-71-71-71-71-71-71-71-71-71-71 | J133: 71-71-71-71-71-71-71-71-71-71-71-71
A134: CO | B134: Telluride | C134: San Miguel | D134: April 1 | E134: May 31 | F134: 142 | G134: 74 | H134: 216 | I134: 188-188-188-188-188-162-162-162-195-195-195-188 | J134: 201-201-201-201-201-201-154-154-201-201-201-201
A135: CO | B135: Telluride | C135: San Miguel | D135: June 1 | E135: August 31 | F135: 187 | G135: 74 | H135: 261 | I135: 188-188-188-188-188-162-162-162-195-195-195-188 | J135: 201-201-201-201-201-201-154-154-201-201-201-201
A136: CO | B136: Telluride | C136: San Miguel | D136: September 1 | E136: September 30 | F136: 134 | G136: 74 | H136: 208 | I136: 188-188-188-188-188-162-162-162-195-195-195-188 | J136: 201-201-201-201-201-201-154-154-201-201-201-201
A137: CO | B137: Vail | C137: Eagle | D137: October 1 | E137: November 30 | F137: 130 | G137: 74 | H137: 204 | I137: 76-76-76-76-76-86-86-86-86-76-76-76 | J137: 81-81-81-81-81-94-94-94-94-81-81-81
A138: CO | B138: Vail | C138: Eagle | D138: December 1 | E138: March 31 | F138: 350 | G138: 74 | H138: 424 | I138: 76-76-76-76-76-86-86-86-86-76-76-76 | J138: 81-81-81-81-81-94-94-94-94-81-81-81
A139: CO | B139: Vail | C139: Eagle | D139: April 1 | E139: June 30 | F139: 144 | G139: 74 | H139: 218 | I139: 73-73-73-73-73-73-106-106-73-73-73-73 | J139: 77-77-77-77-77-77-111-111-77-77-77-77
A140: CO | B140: Vail | C140: Eagle | D140: July 1 | E140: August 31 | F140: 176 | G140: 74 | H140: 250 | I140: 73-73-73-73-73-73-106-106-73-73-73-73 | J140: 77-77-77-77-77-77-111-111-77-77-77-77
A141: CO | B141: Vail | C141: Eagle | D141: September 1 | E141: September 30 | F141: 130 | G141: 74 | H141: 204 | I141: 73-73-73-73-73-73-106-106-73-73-73-73 | J141: 77-77-77-77-77-77-111-111-77-77-77-77
A142: CT | B142: Bridgeport / Danbury | C142: Fairfield | F142: 129 | G142: 64 | H142: 193 | I142: 102-102-102-102-102-102-102-102-102-102-102-102 | J142: 111-111-111-111-111-111-111-111-111-111-111-111
A143: CT | B143: Cromwell / Old Saybrook | C143: Middlesex | F143: 93 | G143: 64 | H143: 157 | I143: 80-80-80-80-80-80-80-80-80-80-80-80 | J143: 96-96-96-83-83-83-83-83-83-83-83-83
A144: CT | B144: Hartford | C144: Hartford | F144: 117 | G144: 59 | H144: 176 | I144: 80-80-80-80-80-80-80-80-80-80-80-80 | J144: 96-96-96-83-83-83-83-83-83-83-83-83
A145: CT | B145: New Haven | C145: New Haven | F145: 96 | G145: 64 | H145: 160 | I145: 80-80-80-80-80-80-80-80-80-80-80-80 | J145: 96-96-96-83-83-83-83-83-83-83-83-83
A146: CT | B146: New London / Groton | C146: New London | F146: 98 | G146: 64 | H146: 162 | I146: 89-131-131-89-89-89-89-89-89-89-89-89 | J146: 98-137-137-98-98-98-98-98-98-98-98-98
A147: DC | B147: District of Columbia | C147: Washington DC (also the cities of Alexandria, Falls Church and Fairfax, and the counties of Arlington and Fairfax, in Virginia; and the counties of Montgomery and Prince George's in Maryland) | D147: October 1 | E147: October 31 | F147: 222 | G147: 69 | H147: 291 | I147: 89-131-131-89-89-89-89-89-89-89-89-89 | J147: 98-137-137-98-98-98-98-98-98-98-98-98
A148: DC | B148: District of Columbia | C148: Washington DC (also the cities of Alexandria, Falls Church and Fairfax, and the counties of Arlington and Fairfax, in Virginia; and the counties of Montgomery and Prince George's in Maryland) | D148: November 1 | E148: February 29 | F148: 179 | G148: 69 | H148: 248 | I148: 89-131-131-89-89-89-89-89-89-89-89-89 | J148: 98-137-137-98-98-98-98-98-98-98-98-98
A149: DC | B149: District of Columbia | C149: Washington DC (also the cities of Alexandria, Falls Church and Fairfax, and the counties of Arlington and Fairfax, in Virginia; and the counties of Montgomery and Prince George's in Maryland) | D149: March 1 | E149: June 30 | F149: 226 | G149: 69 | H149: 295 | I149: 105-105-105-105-105-105-105-105-105-93-93-105 | J149: 105-105-105-105-105-105-105-105-105-105-105-105
A150: DC | B150: District of Columbia | C150: Washington DC (also the cities of Alexandria, Falls Church and Fairfax, and the counties of Arlington and Fairfax, in Virginia; and the counties of Montgomery and Prince George's in Maryland) | D150: July 1 | E150: August 31 | F150: 174 | G150: 69 | H150: 243 | I150: 83-138-138-91-91-91-91-83-83-83-83-83 | J150: 87-138-138-93-93-103-103-87-87-87-87-87
A151: DC | B151: District of Columbia | C151: Washington DC (also the cities of Alexandria, Falls Church and Fairfax, and the counties of Arlington and Fairfax, in Virginia; and the counties of Montgomery and Prince George's in Maryland) | D151: September 1 | E151: September 30 | F151: 222 | G151: 69 | H151: 291 | I151: 83-138-138-91-91-91-91-83-83-83-83-83 | J151: 87-138-138-93-93-103-103-87-87-87-87-87
A152: DE | B152: Dover | C152: Kent | D152: October 1 | E152: April 30 | F152: 89 | G152: 54 | H152: 143 | I152: 83-138-138-91-91-91-91-83-83-83-83-83 | J152: 87-138-138-93-93-103-103-87-87-87-87-87
A153: DE | B153: Dover | C153: Kent | D153: May 1 | E153: September 30 | F153: 104 | G153: 54 | H153: 158 | I153: 83-138-138-91-91-91-91-83-83-83-83-83 | J153: 87-138-138-93-93-103-103-87-87-87-87-87
A154: DE | B154: Lewes | C154: Sussex | D154: October 1 | E154: June 30 | F154: 92 | G154: 59 | H154: 151 | I154: 83-138-138-91-91-91-91-83-83-83-83-83 | J154: 87-138-138-93-93-103-103-87-87-87-87-87
A155: DE | B155: Lewes | C155: Sussex | D155: July 1 | E155: August 31 | F155: 148 | G155: 59 | H155: 207 | I155: 172-172-172-126-126-94-94-94-94-126-126-126 | J155: 161-161-161-161-107-107-107-107-107-161-161-161
A156: DE | B156: Lewes | C156: Sussex | D156: September 1 | E156: September 30 | F156: 92 | G156: 59 | H156: 151 | I156: 172-172-172-126-126-94-94-94-94-126-126-126 | J156: 161-161-161-161-107-107-107-107-107-161-161-161
A157: DE | B157: Wilmington | C157: New Castle | F157: 122 | G157: 54 | H157: 176 | I157: 127-127-127-127-81-81-81-81-81-81-81-81 | J157: 133-133-133-133-84-84-84-84-84-84-84-84
A158: FL | B158: Boca Raton / Delray Beach / Jupiter | C158: Palm Beach / Hendry | D158: October 1 | E158: December 31 | F158: 101 | G158: 59 | H158: 160 | I158: 127-127-127-127-81-81-81-81-81-81-81-81 | J158: 133-133-133-133-84-84-84-84-84-84-84-84
A159: FL | B159: Boca Raton / Delray Beach / Jupiter | C159: Palm Beach / Hendry | D159: January 1 | E159: April 30 | F159: 175 | G159: 59 | H159: 234 | I159: 127-127-127-127-81-81-81-81-81-81-81-81 | J159: 133-133-133-133-84-84-84-84-84-84-84-84
A160: FL | B160: Boca Raton / Delray Beach / Jupiter | C160: Palm Beach / Hendry | D160: May 1 | E160: September 30 | F160: 101 | G160: 59 | H160: 160 | I160: 89-129-129-89-89-89-89-89-89-89-89-89 | J160: 101-133-133-101-101-101-101-101-101-101-101-101
A161: FL | B161: Bradenton | C161: Manatee | D161: October 1 | E161: January 31 | F161: 89 | G161: 54 | H161: 143 | I161: 89-129-129-89-89-89-89-89-89-89-89-89 | J161: 101-133-133-101-101-101-101-101-101-101-101-101
A162: FL | B162: Bradenton | C162: Manatee | D162: February 1 | E162: March 31 | F162: 142 | G162: 54 | H162: 196 | I162: 89-129-129-89-89-89-89-89-89-89-89-89 | J162: 101-133-133-101-101-101-101-101-101-101-101-101
A163: FL | B163: Bradenton | C163: Manatee | D163: April 1 | E163: September 30 | F163: 89 | G163: 54 | H163: 143 | I163: 80-80-128-128-128-168-168-109-109-109-80-80 | J163: 81-81-132-132-132-169-169-113-113-113-81-81
A164: FL | B164: Cocoa Beach | C164: Brevard | D164: October 1 | E164: January 31 | F164: 107 | G164: 64 | H164: 171 | I164: 80-80-128-128-128-168-168-109-109-109-80-80 | J164: 81-81-132-132-132-169-169-113-113-113-81-81
A165: FL | B165: Cocoa Beach | C165: Brevard | D165: February 1 | E165: March 31 | F165: 130 | G165: 64 | H165: 194 | I165: 80-80-128-128-128-168-168-109-109-109-80-80 | J165: 81-81-132-132-132-169-169-113-113-113-81-81
A166: FL | B166: Cocoa Beach | C166: Brevard | D166: April 1 | E166: September 30 | F166: 107 | G166: 64 | H166: 171 | I166: 80-80-128-128-128-168-168-109-109-109-80-80 | J166: 81-81-132-132-132-169-169-113-113-113-81-81
A167: FL | B167: Daytona Beach | C167: Volusia | D167: October 1 | E167: January 31 | F167: 89 | G167: 59 | H167: 148 | I167: 80-80-128-128-128-168-168-109-109-109-80-80 | J167: 81-81-132-132-132-169-169-113-113-113-81-81
A168: FL | B168: Daytona Beach | C168: Volusia | D168: February 1 | E168: March 31 | F168: 118 | G168: 59 | H168: 177 | I168: 79-79-79-79-79-79-79-79-79-79-79-79 | J168: 88-88-88-88-88-88-88-88-88-88-88-88
A169: FL | B169: Daytona Beach | C169: Volusia | D169: April 1 | E169: July 31 | F169: 97 | G169: 59 | H169: 156 | I169: 87-87-103-103-103-103-103-103-103-87-87-87 | J169: 97-97-119-119-119-147-147-97-97-97-97-97
A170: FL | B170: Daytona Beach | C170: Volusia | D170: August 1 | E170: September 30 | F170: 89 | G170: 59 | H170: 148 | I170: 87-87-103-103-103-103-103-103-103-87-87-87 | J170: 97-97-119-119-119-147-147-97-97-97-97-97
A171: FL | B171: Fort Lauderdale | C171: Broward | D171: October 1 | E171: December 31 | F171: 141 | G171: 64 | H171: 205 | I171: 87-87-103-103-103-103-103-103-103-87-87-87 | J171: 97-97-119-119-119-147-147-97-97-97-97-97
A172: FL | B172: Fort Lauderdale | C172: Broward | D172: January 1 | E172: March 31 | F172: 199 | G172: 64 | H172: 263 | I172: 87-87-103-103-103-103-103-103-103-87-87-87 | J172: 97-97-119-119-119-147-147-97-97-97-97-97
A173: FL | B173: Fort Lauderdale | C173: Broward | D173: April 1 | E173: May 31 | F173: 144 | G173: 64 | H173: 208 | I173: 78-78-78-78-78-78-78-78-78-78-78-78 | J173: 84-84-84-84-84-84-84-84-84-84-84-84
A174: FL | B174: Fort Lauderdale | C174: Broward | D174: June 1 | E174: September 30 | F174: 110 | G174: 64 | H174: 174 | I174: 168-214-214-139-139-139-139-139-139-139-139-168 | J174: 188-239-239-156-156-156-156-156-156-156-156-188
A175: FL | B175: Fort Myers | C175: Lee | D175: October 1 | E175: December 31 | F175: 101 | G175: 59 | H175: 160 | I175: 168-214-214-139-139-139-139-139-139-139-139-168 | J175: 188-239-239-156-156-156-156-156-156-156-156-188
A176: FL | B176: Fort Myers | C176: Lee | D176: January 1 | E176: April 30 | F176: 165 | G176: 59 | H176: 224 | I176: 168-214-214-139-139-139-139-139-139-139-139-168 | J176: 188-239-239-156-156-156-156-156-156-156-156-188
A177: FL | B177: Fort Myers | C177: Lee | D177: May 1 | E177: September 30 | F177: 101 | G177: 59 | H177: 160 | I177: 168-214-214-139-139-139-139-139-139-139-139-168 | J177: 188-239-239-156-156-156-156-156-156-156-156-188
A178: FL | B178: Fort Walton Beach / De Funiak Springs | C178: Okaloosa / Walton | D178: October 1 | E178: October 31 | F178: 132 | G178: 64 | H178: 196 | I178: 75-75-75-75-75-75-63-63-75-75-75-75 | J178: 83-83-83-83-83-70-70-70-83-83-83-83
A179: FL | B179: Fort Walton Beach / De Funiak Springs | C179: Okaloosa / Walton | D179: November 1 | E179: February 29 | F179: 91 | G179: 64 | H179: 155 | I179: 75-75-75-75-75-75-63-63-75-75-75-75 | J179: 83-83-83-83-83-70-70-70-83-83-83-83
A180: FL | B180: Fort Walton Beach / De Funiak Springs | C180: Okaloosa / Walton | D180: March 1 | E180: May 31 | F180: 148 | G180: 64 | H180: 212 | I180: 75-75-75-75-75-75-63-63-75-75-75-75 | J180: 83-83-83-83-83-70-70-70-83-83-83-83
A181: FL | B181: Fort Walton Beach / De Funiak Springs | C181: Okaloosa / Walton | D181: June 1 | E181: July 31 | F181: 203 | G181: 64 | H181: 267 | I181: 81-81-81-81-81-81-81-81-81-81-81-81 | J181: 83-83-83-83-83-83-83-83-83-83-83-83
A182: FL | B182: Fort Walton Beach / De Funiak Springs | C182: Okaloosa / Walton | D182: August 1 | E182: September 30 | F182: 132 | G182: 64 | H182: 196 | I182: 75-75-75-67-67-67-67-67-67-67-67-75 | J182: 83-83-83-83-83-83-83-83-83-83-83-83
A183: FL | B183: Gainesville | C183: Alachua | F183: 98 | G183: 59 | H183: 157 | I183: 157-157-157-107-107-107-107-107-107-107-107-107 | J183: 146-146-119-119-119-119-119-119-119-146-146-146
A184: FL | B184: Gulf Breeze | C184: Santa Rosa | D184: October 1 | E184: February 29 | F184: 89 | G184: 64 | H184: 153 | I184: 157-157-157-107-107-107-107-107-107-107-107-107 | J184: 146-146-119-119-119-119-119-119-119-146-146-146
A185: FL | B185: Gulf Breeze | C185: Santa Rosa | D185: March 1 | E185: July 31 | F185: 105 | G185: 64 | H185: 169 | I185: 110-190-190-110-110-110-110-110-110-110-110-110 | J185: 117-214-214-117-117-117-117-117-117-117-117-117
A186: FL | B186: Gulf Breeze | C186: Santa Rosa | D186: August 1 | E186: September 30 | F186: 89 | G186: 64 | H186: 153 | I186: 110-190-190-110-110-110-110-110-110-110-110-110 | J186: 117-214-214-117-117-117-117-117-117-117-117-117
A187: FL | B187: Key West | C187: Monroe | D187: October 1 | E187: November 30 | F187: 200 | G187: 69 | H187: 269 | I187: 110-190-190-110-110-110-110-110-110-110-110-110 | J187: 117-214-214-117-117-117-117-117-117-117-117-117
A188: FL | B188: Key West | C188: Monroe | D188: December 1 | E188: January 31 | F188: 265 | G188: 69 | H188: 334 | I188: 92-92-92-77-77-77-77-77-77-77-77-77 | J188: 95-95-95-85-85-85-85-85-85-85-85-85
A189: FL | B189: Key West | C189: Monroe | D189: February 1 | E189: April 30 | F189: 307 | G189: 69 | H189: 376 | I189: 92-92-92-77-77-77-77-77-77-77-77-77 | J189: 95-95-95-85-85-85-85-85-85-85-85-85
A190: FL | B190: Key West | C190: Monroe | D190: May 1 | E190: September 30 | F190: 194 | G190: 69 | H190: 263 | I190: 92-92-92-77-77-77-77-77-77-77-77-77 | J190: 95-95-95-85-85-85-85-85-85-85-85-85
A191: FL | B191: Miami | C191: Miami-Dade | D191: October 1 | E191: November 30 | F191: 148 | G191: 64 | H191: 212 | I191: 114-114-114-89-89-89-89-89-89-89-89-89 | J191: 121-121-121-99-99-99-99-99-99-99-99-99
A192: FL | B192: Miami | C192: Miami-Dade | D192: December 1 | E192: March 31 | F192: 212 | G192: 64 | H192: 276 | I192: 114-114-114-89-89-89-89-89-89-89-89-89 | J192: 121-121-121-99-99-99-99-99-99-99-99-99
A193: FL | B193: Miami | C193: Miami-Dade | D193: April 1 | E193: May 31 | F193: 160 | G193: 64 | H193: 224 | I193: 114-114-114-89-89-89-89-89-89-89-89-89 | J193: 121-121-121-99-99-99-99-99-99-99-99-99
A194: FL | B194: Miami | C194: Miami-Dade | D194: June 1 | E194: September 30 | F194: 124 | G194: 64 | H194: 188 | I194: 110-163-163-110-110-110-110-110-110-110-110-110 | J194: 158-158-158-103-103-103-103-103-103-103-103-103
A195: FL | B195: Naples | C195: Collier | D195: October 1 | E195: December 31 | F195: 145 | G195: 64 | H195: 209 | I195: 110-163-163-110-110-110-110-110-110-110-110-110 | J195: 158-158-158-103-103-103-103-103-103-103-103-103
A196: FL | B196: Naples | C196: Collier | D196: January 1 | E196: April 30 | F196: 236 | G196: 64 | H196: 300 | I196: 110-163-163-110-110-110-110-110-110-110-110-110 | J196: 158-158-158-103-103-103-103-103-103-103-103-103
A197: FL | B197: Naples | C197: Collier | D197: May 1 | E197: September 30 | F197: 125 | G197: 64 | H197: =G197+F197 -> 189 | I197: 79-79-106-106-106-127-127-79-79-79-79-79 | J197: 84-84-120-120-120-144-144-84-84-84-84-84
A198: FL | B198: Orlando | C198: Orange | D198: October 1 | E198: March 31 | F198: 127 | G198: 59 | H198: 186 | I198: 79-79-106-106-106-127-127-79-79-79-79-79 | J198: 84-84-120-120-120-144-144-84-84-84-84-84
A199: FL | B199: Orlando | C199: Orange | D199: April 1 | E199: September 30 | F199: 110 | G199: 59 | H199: 169 | I199: 79-79-106-106-106-127-127-79-79-79-79-79 | J199: 84-84-120-120-120-144-144-84-84-84-84-84
A200: FL | B200: Panama City | C200: Bay | D200: October 1 | E200: February 29 | F200: 89 | G200: 59 | H200: 148 | I200: 79-79-106-106-106-127-127-79-79-79-79-79 | J200: 84-84-120-120-120-144-144-84-84-84-84-84
A201: FL | B201: Panama City | C201: Bay | D201: March 1 | E201: May 31 | F201: 120 | G201: 59 | H201: 179 | I201: 94-94-94-94-94-94-94-94-94-94-94-94 | J201: 101-101-101-101-101-101-101-101-101-101-101-101
... 466 more rows

Sheet Foreign PerDiem
A1: Effective 7/1/2016
A2: Country | B2: Location | C2: Season Code | D2: Season Start Date | E2: Season End Date | F2: Lodging | G2: Meals/Incidental Expenses | H2: Per Diem | I2: Effective Date | J2: Footnotes | K2: Location Code
A3: AFGHANISTAN | B3: [Other] | C3: S1 | D3: 2020-01-02 | E3: 2021-01-01 | F3: 0 | G3: 15 | H3: =F3+G3 -> 15 | I3: 2007-08-02 | J3: 19,2 | K3: 11804
A4: AFGHANISTAN | B4: Kabul | C4: S1 | D4: 2020-01-02 | E4: 2021-01-01 | F4: 0 | G4: 33 | H4: =F4+G4 -> 33 | I4: 2020-07-02 | J4: 19,2 | K4: 10323
A5: ALBANIA | B5: [Other] | C5: S1 | D5: 2020-01-02 | E5: 2021-01-01 | F5: 81 | G5: 38 | H5: 119 | I5: 2020-05-02 | K5: 11908
A6: ALBANIA | B6: Tirana | C6: S1 | D6: 2020-01-02 | E6: 2021-01-01 | F6: 190 | G6: 87 | H6: 277 | I6: 2020-05-02 | K6: 10104
A7: ALGERIA | B7: [Other] | C7: S1 | D7: 2020-01-02 | E7: 2021-01-01 | F7: 192 | G7: 112 | H7: 304 | I7: 2019-01-02 | J7: 2 | K7: 11805
A8: ALGERIA | B8: Algiers | C8: S1 | D8: 2020-01-02 | E8: 2021-01-01 | F8: 188 | G8: 78 | H8: 266 | I8: 2020-06-02 | J8: 2 | K8: 10324
A9: ANDORRA | B9: Andorra | C9: S1 | D9: 2020-01-02 | E9: 2021-01-01 | F9: 209 | G9: 123 | H9: 332 | I9: 2012-01-02 | K9: 11079
A10: ANGOLA | B10: [Other] | C10: S1 | D10: 2020-01-02 | E10: 2021-01-01 | F10: 405 | G10: 170 | H10: 575 | I10: 2017-08-02 | K10: 11822
A11: ANGOLA | B11: Luanda | C11: S1 | D11: 2020-01-02 | E11: 2021-01-01 | F11: 405 | G11: 170 | H11: 575 | I11: 2017-08-02 | K11: 10373
A12: ANTARCTICA | B12: Antarctica Region Posts | C12: S1 | D12: 2020-01-02 | E12: 2021-01-01 | F12: 0 | G12: 1 | H12: 1 | I12: 2014-06-02 | K12: 19942
A13: ANTIGUA AND BARBUDA | B13: [Other] | C13: S1 | D13: 2020-04-17 | E13: 2020-12-15 | F13: 37 | G13: 18 | H13: 55 | I13: 2012-05-02 | K13: 11984
A14: ANTIGUA AND BARBUDA | B14: [Other] | C14: S2 | D14: 2020-12-16 | E14: 2020-04-16 | F14: 50 | G14: 19 | H14: 69 | I14: 2012-05-02 | K14: 11984
A15: ANTIGUA AND BARBUDA | B15: Antigua and Barbuda | C15: S1 | D15: 2020-05-02 | E15: 2020-12-01 | F15: 203 | G15: 115 | H15: 318 | I15: 2020-05-02 | K15: 11052
A16: ANTIGUA AND BARBUDA | B16: Antigua and Barbuda | C16: S2 | D16: 2020-12-02 | E16: 2020-05-01 | F16: 252 | G16: 120 | H16: 372 | I16: 2020-05-02 | K16: 11052
A17: ARGENTINA | B17: [Other] | C17: S1 | D17: 2020-01-02 | E17: 2021-01-01 | F17: 175 | G17: 117 | H17: 292 | I17: 2016-05-02 | K17: 11737
A18: ARGENTINA | B18: Bariloche | C18: S1 | D18: 2020-01-02 | E18: 2021-01-01 | F18: 218 | G18: 112 | H18: 330 | I18: 2016-03-02 | K18: 12637
A19: ARGENTINA | B19: Buenos Aires | C19: S1 | D19: 2020-01-02 | E19: 2021-01-01 | F19: 221 | G19: 121 | H19: 342 | I19: 2016-03-02 | K19: 10016
A20: ARGENTINA | B20: Mendoza | C20: S1 | D20: 2020-01-02 | E20: 2021-01-01 | F20: 182 | G20: 105 | H20: 287 | I20: 2016-05-02 | K20: 19952
A21: ARMENIA | B21: [Other] | C21: S1 | D21: 2020-01-02 | E21: 2021-01-01 | F21: 148 | G21: 92 | H21: 240 | I21: 2016-05-02 | K21: 11756
A22: ARMENIA | B22: Yerevan | C22: S1 | D22: 2020-01-02 | E22: 2021-01-01 | F22: 148 | G22: 92 | H22: 240 | I22: 2016-05-02 | K22: 10105
A23: ASCENSION ISLAND | B23: Ascension Island | C23: S1 | D23: 2020-01-02 | E23: 2021-01-01 | F23: 20 | G23: 22 | H23: 42 | I23: 1994-12-02 | K23: 11053
A24: AUSTRALIA | B24: [Other] | C24: S1 | D24: 2020-01-02 | E24: 2021-01-01 | F24: 132 | G24: 103 | H24: 235 | I24: 2020-06-02 | K24: 11787
A25: AUSTRALIA | B25: Adelaide | C25: S1 | D25: 2020-01-02 | E25: 2021-01-01 | F25: 152 | G25: 125 | H25: 277 | I25: 2020-06-02 | K25: 10244
A26: AUSTRALIA | B26: Bendigo | C26: S1 | D26: 2020-01-02 | E26: 2021-01-01 | F26: 268 | G26: 126 | H26: 394 | I26: 2020-06-02 | K26: 19983
A27: AUSTRALIA | B27: Brisbane | C27: S1 | D27: 2020-01-02 | E27: 2021-01-01 | F27: 163 | G27: 101 | H27: 264 | I27: 2020-06-02 | K27: 10245
A28: AUSTRALIA | B28: Broome | C28: S1 | D28: 2020-01-02 | E28: 2021-01-01 | F28: 301 | G28: 130 | H28: 431 | I28: 2020-06-02 | K28: 15035
A29: AUSTRALIA | B29: Cairns | C29: S1 | D29: 2020-01-02 | E29: 2021-01-01 | F29: 132 | G29: 103 | H29: 235 | I29: 2020-06-02 | K29: 12583
A30: AUSTRALIA | B30: Canberra | C30: S1 | D30: 2020-01-02 | E30: 2021-01-01 | F30: 159 | G30: 126 | H30: 285 | I30: 2020-06-02 | K30: 10243
A31: AUSTRALIA | B31: Darwin, Northern Territory | C31: S1 | D31: 2020-01-02 | E31: 2021-01-01 | F31: 208 | G31: 126 | H31: 334 | I31: 2020-06-02 | K31: 12342
A32: AUSTRALIA | B32: Exmouth | C32: S1 | D32: 2020-01-02 | E32: 2021-01-01 | F32: 170 | G32: 117 | H32: 287 | I32: 2020-06-02 | K32: 15065
A33: AUSTRALIA | B33: Fremantle | C33: S1 | D33: 2020-01-02 | E33: 2021-01-01 | F33: 184 | G33: 108 | H33: 292 | I33: 2020-06-02 | K33: 13319
A34: AUSTRALIA | B34: Hobart | C34: S1 | D34: 2020-01-02 | E34: 2021-01-01 | F34: 163 | G34: 134 | H34: 297 | I34: 2020-06-02 | K34: 12372
A35: AUSTRALIA | B35: Melbourne | C35: S1 | D35: 2020-01-02 | E35: 2021-01-01 | F35: 190 | G35: 147 | H35: 337 | I35: 2020-06-02 | K35: 10246
A36: AUSTRALIA | B36: Perth | C36: S1 | D36: 2020-01-02 | E36: 2021-01-01 | F36: 209 | G36: 139 | H36: 348 | I36: 2020-06-02 | K36: 10247
A37: AUSTRALIA | B37: Richmond, NSW | C37: S1 | D37: 2020-01-02 | E37: 2021-01-01 | F37: 149 | G37: 107 | H37: 256 | I37: 2020-06-02 | K37: 13553
A38: AUSTRALIA | B38: Sydney | C38: S1 | D38: 2020-01-02 | E38: 2021-01-01 | F38: 240 | G38: 147 | H38: 387 | I38: 2020-06-02 | K38: 10248
A39: AUSTRIA | B39: [Other] | C39: S1 | D39: 2020-01-02 | E39: 2021-01-01 | F39: 221 | G39: 126 | H39: 347 | I39: 2020-05-02 | K39: 11757
A40: AUSTRIA | B40: Graz | C40: S1 | D40: 2020-01-02 | E40: 2021-01-01 | F40: 209 | G40: 143 | H40: 352 | I40: 2020-05-02 | K40: 11985
A41: AUSTRIA | B41: Innsbruck | C41: S1 | D41: 2020-01-02 | E41: 2021-01-01 | F41: 221 | G41: 126 | H41: 347 | I41: 2020-05-02 | K41: 11082
A42: AUSTRIA | B42: Linz | C42: S1 | D42: 2020-01-02 | E42: 2021-01-01 | F42: 186 | G42: 147 | H42: 333 | I42: 2020-05-02 | K42: 11410
A43: AUSTRIA | B43: Salzburg | C43: S1 | D43: 2020-01-02 | E43: 2021-01-01 | F43: 215 | G43: 148 | H43: 363 | I43: 2020-05-02 | K43: 10107
A44: AUSTRIA | B44: Vienna | C44: S1 | D44: 2020-01-02 | E44: 2021-01-01 | F44: 221 | G44: 122 | H44: 343 | I44: 2020-05-02 | K44: 10106
A45: AZERBAIJAN | B45: [Other] | C45: S1 | D45: 2020-01-02 | E45: 2021-01-01 | F45: 98 | G45: 81 | H45: 179 | I45: 2018-09-02 | K45: 11758
A46: AZERBAIJAN | B46: Baku | C46: S1 | D46: 2020-01-02 | E46: 2021-01-01 | F46: 246 | G46: 115 | H46: 361 | I46: 2018-09-02 | K46: 10109
A47: AZERBAIJAN | B47: Ganja | C47: S1 | D47: 2020-01-02 | E47: 2021-01-01 | F47: 125 | G47: 90 | H47: 215 | I47: 2018-09-02 | K47: 19944
A48: AZERBAIJAN | B48: Qabala | C48: S1 | D48: 2020-01-02 | E48: 2021-01-01 | F48: 128 | G48: 84 | H48: 212 | I48: 2018-09-02 | K48: 15045
A49: BAHAMAS | B49: [Other] | C49: S1 | D49: 2020-01-02 | E49: 2021-01-01 | F49: 159 | G49: 107 | H49: 266 | I49: 2019-08-02 | J49: 10 | K49: 11891
A50: BAHAMAS | B50: Andros Island | C50: S1 | D50: 2020-01-02 | E50: 2021-01-01 | F50: 159 | G50: 107 | H50: 266 | I50: 2019-08-02 | J50: 10 | K50: 11000
A51: BAHAMAS | B51: Eleuthera Island | C51: S1 | D51: 2020-04-18 | E51: 2020-11-15 | F51: 213 | G51: 143 | H51: 356 | I51: 2019-09-02 | J51: 10 | K51: 11001
A52: BAHAMAS | B52: Eleuthera Island | C52: S2 | D52: 2020-11-16 | E52: 2020-04-17 | F52: 276 | G52: 150 | H52: 426 | I52: 2019-09-02 | J52: 10 | K52: 11001
A53: BAHAMAS | B53: Grand Bahama Island | C53: S1 | D53: 2020-01-02 | E53: 2021-01-01 | F53: 187 | G53: 126 | H53: 313 | I53: 2019-05-02 | J53: 10 | K53: 11002
A54: BAHAMAS | B54: Nassau | C54: S1 | D54: 2020-01-02 | E54: 2021-01-01 | F54: 318 | G54: 159 | H54: 477 | I54: 2019-03-02 | J54: 10 | K54: 10017
A55: BAHRAIN | B55: Bahrain | C55: S1 | D55: 2020-01-02 | E55: 2021-01-01 | F55: 272 | G55: 124 | H55: 396 | I55: 2012-12-02 | K55: 11054
A56: BANGLADESH | B56: [Other] | C56: S1 | D56: 2020-01-02 | E56: 2021-01-01 | F56: 73 | G56: 71 | H56: 144 | I56: 2017-06-02 | K56: 11807
A57: BANGLADESH | B57: Chittagong | C57: S1 | D57: 2020-01-02 | E57: 2021-01-01 | F57: 100 | G57: 71 | H57: 171 | I57: 2017-07-02 | K57: 11986
A58: BANGLADESH | B58: Dhaka | C58: S1 | D58: 2020-01-02 | E58: 2021-01-01 | F58: 200 | G58: 90 | H58: 290 | I58: 2017-01-02 | K58: 10327
A59: BANGLADESH | B59: Sylhet | C59: S1 | D59: 2020-01-02 | E59: 2021-01-01 | F59: 105 | G59: 69 | H59: 174 | I59: 2017-06-02 | K59: 15021
A60: BARBADOS | B60: Barbados | C60: S1 | D60: 2020-04-17 | E60: 2020-12-15 | F60: 178 | G60: 128 | H60: 306 | I60: 2018-09-02 | K60: 11055
A61: BARBADOS | B61: Barbados | C61: S2 | D61: 2020-12-16 | E61: 2020-04-16 | F61: 287 | G61: 139 | H61: 426 | I61: 2018-09-02 | K61: 11055
A62: BELARUS | B62: [Other] | C62: S1 | D62: 2020-01-02 | E62: 2021-01-01 | F62: 216 | G62: 91 | H62: 307 | I62: 2017-11-02 | K62: 11904
A63: BELARUS | B63: Minsk | C63: S1 | D63: 2020-01-02 | E63: 2021-01-01 | F63: 216 | G63: 91 | H63: 307 | I63: 2017-11-02 | K63: 10822
A64: BELGIUM | B64: [Other] | C64: S1 | D64: 2020-01-02 | E64: 2021-01-01 | F64: 81 | G64: 71 | H64: 152 | I64: 2020-05-02 | K64: 11760
A65: BELGIUM | B65: Antwerp | C65: S1 | D65: 2020-01-02 | E65: 2021-01-01 | F65: 190 | G65: 105 | H65: 295 | I65: 2020-05-02 | K65: 10112
A66: BELGIUM | B66: Brugge | C66: S1 | D66: 2020-01-02 | E66: 2021-01-01 | F66: 128 | G66: 91 | H66: 219 | I66: 2020-05-02 | K66: 12125
A67: BELGIUM | B67: Brussels | C67: S1 | D67: 2020-01-02 | E67: 2021-01-01 | F67: 173 | G67: 136 | H67: 309 | I67: 2020-05-02 | K67: 10111
A68: BELGIUM | B68: Diegem | C68: S1 | D68: 2020-01-02 | E68: 2021-01-01 | F68: 173 | G68: 136 | H68: =F68+G68 -> 309 | I68: 2020-05-02 | K68: 11087
A69: BELGIUM | B69: Kleine Brogel | C69: S1 | D69: 2020-01-02 | E69: 2021-01-01 | F69: 114 | G69: 80 | H69: 194 | I69: 2020-05-02 | K69: 10819
A70: BELGIUM | B70: Liege | C70: S1 | D70: 2020-01-02 | E70: 2021-01-01 | F70: 140 | G70: 76 | H70: 216 | I70: 2020-05-02 | K70: 11091
A71: BELGIUM | B71: SHAPE/Chievres | C71: S1 | D71: 2020-01-02 | E71: 2021-01-01 | F71: 110 | G71: 80 | H71: 190 | I71: 2020-05-02 | K71: 10820
A72: BELGIUM | B72: Zaventem | C72: S1 | D72: 2020-01-02 | E72: 2021-01-01 | F72: 173 | G72: 136 | H72: 309 | I72: 2020-05-02 | K72: 11093
A73: BELIZE | B73: [Other] | C73: S1 | D73: 2020-01-02 | E73: 2021-01-01 | F73: 138 | G73: 91 | H73: 229 | I73: 2019-12-02 | K73: 11742
A74: BELIZE | B74: Belize City | C74: S1 | D74: 2020-01-02 | E74: 2021-01-01 | F74: 138 | G74: 91 | H74: 229 | I74: 2019-12-02 | K74: 10049
A75: BELIZE | B75: Belmopan | C75: S1 | D75: 2020-01-02 | E75: 2021-01-01 | F75: 149 | G75: 93 | H75: 242 | I75: 2019-12-02 | K75: 13643
A76: BELIZE | B76: Caye Caulker | C76: S1 | D76: 2020-01-02 | E76: 2021-01-01 | F76: 152 | G76: 99 | H76: 251 | I76: 2020-01-02 | K76: 15072
A77: BELIZE | B77: San Pedro | C77: S1 | D77: 2020-01-02 | E77: 2021-01-01 | F77: 174 | G77: 99 | H77: 273 | I77: 2019-12-02 | K77: 15018
A78: BENIN | B78: [Other] | C78: S1 | D78: 2020-01-02 | E78: 2021-01-01 | F78: 80 | G78: 67 | H78: 147 | I78: 2012-05-02 | K78: 11831
A79: BENIN | B79: Cotonou | C79: S1 | D79: 2020-01-02 | E79: 2021-01-01 | F79: 133 | G79: 84 | H79: 217 | I79: 2020-05-02 | K79: 10386
A80: BERMUDA | B80: Bermuda | C80: S1 | D80: 2020-04-02 | E80: 2020-12-01 | F80: 402 | G80: 174 | H80: 576 | I80: 2019-01-02 | K80: 11963
A81: BERMUDA | B81: Bermuda | C81: S2 | D81: 2020-12-02 | E81: 2020-04-01 | F81: 315 | G81: 166 | H81: 481 | I81: 2019-01-02 | K81: 11963
A82: BHUTAN | B82: Bhutan | C82: S1 | D82: 2020-01-02 | E82: 2021-01-01 | F82: 280 | G82: 112 | H82: 392 | I82: 2014-12-02 | K82: 11094
A83: BOLIVIA | B83: [Other] | C83: S1 | D83: 2020-01-02 | E83: 2021-01-01 | F83: 77 | G83: 53 | H83: 130 | I83: 2020-05-02 | K83: 11738
A84: BOLIVIA | B84: Cochabamba | C84: S1 | D84: 2020-01-02 | E84: 2021-01-01 | F84: 85 | G84: 49 | H84: 134 | I84: 2016-09-02 | K84: 10019
A85: BOLIVIA | B85: La Paz | C85: S1 | D85: 2020-01-02 | E85: 2021-01-01 | F85: 140 | G85: 85 | H85: 225 | I85: 2020-04-02 | K85: 10018
A86: BOLIVIA | B86: Potosi | C86: S1 | D86: 2020-01-02 | E86: 2021-01-01 | F86: 88 | G86: 60 | H86: 148 | I86: 2020-04-02 | K86: 12246
A87: BOLIVIA | B87: Santa Cruz | C87: S1 | D87: 2020-01-02 | E87: 2021-01-01 | F87: 135 | G87: 82 | H87: 217 | I87: 2019-10-02 | K87: 10435
A88: BOSNIA-HERZEGOVINA | B88: [Other] | C88: S1 | D88: 2020-01-02 | E88: 2021-01-01 | F88: 115 | G88: 70 | H88: 185 | I88: 2020-05-02 | K88: 11915
A89: BOSNIA-HERZEGOVINA | B89: Sarajevo | C89: S1 | D89: 2020-01-02 | E89: 2021-01-01 | F89: 115 | G89: 70 | H89: 185 | I89: 2020-05-02 | K89: 11043
A90: BOTSWANA | B90: [Other] | C90: S1 | D90: 2020-01-02 | E90: 2021-01-01 | F90: 138 | G90: 75 | H90: 213 | I90: 2019-03-02 | K90: 11824
A91: BOTSWANA | B91: Francistown | C91: S1 | D91: 2020-01-02 | E91: 2021-01-01 | F91: 111 | G91: 65 | H91: 176 | I91: 2020-06-02 | K91: 12578
A92: BOTSWANA | B92: Gaborone | C92: S1 | D92: 2020-04-02 | E92: 2020-08-01 | F92: 156 | G92: 76 | H92: 232 | I92: 2020-06-02 | K92: 10377
A93: BOTSWANA | B93: Gaborone | C93: S2 | D93: 2020-08-02 | E93: 2020-04-01 | F93: 116 | G93: 72 | H93: 188 | I93: 2020-06-02 | K93: 10377
A94: BOTSWANA | B94: Kasane | C94: S1 | D94: 2020-01-02 | E94: 2021-01-01 | F94: 152 | G94: 82 | H94: 234 | I94: 2020-06-02 | K94: 12390
A95: BOTSWANA | B95: Selebi Phikwe | C95: S1 | D95: 2020-01-02 | E95: 2021-01-01 | F95: 86 | G95: 62 | H95: 148 | I95: 2020-06-02 | K95: 10728
A96: BRAZIL | B96: [Other] | C96: S1 | D96: 2020-01-02 | E96: 2021-01-01 | F96: 177 | G96: 130 | H96: 307 | I96: 2016-05-02 | K96: 12078
A97: BRAZIL | B97: Belem | C97: S1 | D97: 2020-01-02 | E97: 2021-01-01 | F97: 119 | G97: 70 | H97: 189 | I97: 2020-05-02 | K97: 11098
A98: BRAZIL | B98: Belo Horizonte | C98: S1 | D98: 2020-01-02 | E98: 2021-01-01 | F98: 108 | G98: 64 | H98: 172 | I98: 2020-05-02 | K98: 10023
A99: BRAZIL | B99: Brasilia | C99: S1 | D99: 2020-01-02 | E99: 2021-01-01 | F99: 227 | G99: 123 | H99: 350 | I99: 2020-04-02 | K99: 10022
A100: BRAZIL | B100: Fortaleza | C100: S1 | D100: 2020-01-02 | E100: 2021-01-01 | F100: 210 | G100: 114 | H100: 324 | I100: 2017-06-02 | K100: 11004
A101: BRAZIL | B101: Foz do Iguacu | C101: S1 | D101: 2020-01-02 | E101: 2021-01-01 | F101: 86 | G101: 45 | H101: 131 | I101: 2020-05-02 | K101: 11102
A102: BRAZIL | B102: Goiania | C102: S1 | D102: 2020-01-02 | E102: 2021-01-01 | F102: 194 | G102: 131 | H102: 325 | I102: 2016-05-02 | K102: 11103
A103: BRAZIL | B103: Manaus | C103: S1 | D103: 2020-01-02 | E103: 2021-01-01 | F103: 155 | G103: 88 | H103: 243 | I103: 2014-03-02 | K103: 11105
A104: BRAZIL | B104: Natal | C104: S1 | D104: 2020-01-02 | E104: 2021-01-01 | F104: 199 | G104: 95 | H104: 294 | I104: 2014-11-02 | K104: 11106
A105: BRAZIL | B105: Porto Alegre | C105: S1 | D105: 2020-01-02 | E105: 2021-01-01 | F105: 144 | G105: 102 | H105: 246 | I105: 2020-03-02 | K105: 10029
A106: BRAZIL | B106: Porto Velho | C106: S1 | D106: 2020-01-02 | E106: 2021-01-01 | F106: 100 | G106: 54 | H106: 154 | I106: 2020-05-02 | K106: 15062
A107: BRAZIL | B107: Recife, Pernambuco | C107: S1 | D107: 2020-01-02 | E107: 2021-01-01 | F107: 199 | G107: 93 | H107: 292 | I107: 2014-11-02 | K107: 10030
A108: BRAZIL | B108: Rio de Janeiro | C108: S1 | D108: 2020-01-02 | E108: 2021-01-01 | F108: 361 | G108: 157 | H108: 518 | I108: 2017-12-02 | J108: 32 | K108: 10031
A109: BRAZIL | B109: Salvador da Bahia | C109: S1 | D109: 2020-01-02 | E109: 2021-01-01 | F109: 201 | G109: 121 | H109: 322 | I109: 2017-12-02 | K109: 11108
A110: BRAZIL | B110: Sao Paulo | C110: S1 | D110: 2020-01-02 | E110: 2021-01-01 | F110: 282 | G110: 94 | H110: 376 | I110: 2020-02-02 | J110: 30 | K110: 10033
A111: BRUNEI | B111: [Other] | C111: S1 | D111: 2020-01-02 | E111: 2021-01-01 | F111: 75 | G111: 48 | H111: 123 | I111: 2004-03-02 | K111: 11788
A112: BRUNEI | B112: Bandar Seri Begawan | C112: S1 | D112: 2020-01-02 | E112: 2021-01-01 | F112: 193 | G112: 97 | H112: 290 | I112: 2014-05-02 | K112: 10250
A113: BRUNEI | B113: Jerudong | C113: S1 | D113: 2020-01-02 | E113: 2021-01-01 | F113: 245 | G113: 106 | H113: 351 | I113: 2018-03-02 | K113: 19980
A114: BULGARIA | B114: [Other] | C114: S1 | D114: 2020-01-02 | E114: 2021-01-01 | F114: 82 | G114: 69 | H114: 151 | I114: 2012-02-02 | K114: 11762
A115: BULGARIA | B115: Bourgas | C115: S1 | D115: 2020-01-02 | E115: 2021-01-01 | F115: 72 | G115: 60 | H115: 132 | I115: 2012-02-02 | K115: 12220
A116: BULGARIA | B116: Plovdiv | C116: S1 | D116: 2020-01-02 | E116: 2021-01-01 | F116: 167 | G116: 60 | H116: 227 | I116: 2012-05-02 | K116: 12216
A117: BULGARIA | B117: Sofia | C117: S1 | D117: 2020-01-02 | E117: 2021-01-01 | F117: 173 | G117: 98 | H117: 271 | I117: 2015-03-02 | K117: 10115
A118: BULGARIA | B118: Varna | C118: S1 | D118: 2020-01-02 | E118: 2021-01-01 | F118: 97 | G118: 58 | H118: 155 | I118: 2009-09-02 | K118: 12219
A119: BURKINA FASO | B119: [Other] | C119: S1 | D119: 2020-01-02 | E119: 2021-01-01 | F119: 71 | G119: 62 | H119: 133 | I119: 2020-05-02 | K119: 11854
A120: BURKINA FASO | B120: Bobo Dioulasso | C120: S1 | D120: 2020-01-02 | E120: 2021-01-01 | F120: 71 | G120: 62 | H120: 133 | I120: 2020-05-02 | K120: 11116
A121: BURKINA FASO | B121: Ouagadougou | C121: S1 | D121: 2020-01-02 | E121: 2021-01-01 | F121: 165 | G121: 106 | H121: 271 | I121: 2020-05-02 | K121: 10432
A122: BURMA | B122: [Other] | C122: S1 | D122: 2020-01-02 | E122: 2021-01-01 | F122: 220 | G122: 99 | H122: 319 | I122: 2017-02-02 | K122: 11789
A123: BURMA | B123: Naypyitaw | C123: S1 | D123: 2020-01-02 | E123: 2021-01-01 | F123: 150 | G123: 105 | H123: 255 | I123: 2017-06-02 | K123: 13519
A124: BURMA | B124: Rangoon | C124: S1 | D124: 2020-01-02 | E124: 2021-01-01 | F124: 234 | G124: 113 | H124: 347 | I124: 2016-09-02 | K124: 10251
A125: BURUNDI | B125: [Other] | C125: S1 | D125: 2020-01-02 | E125: 2021-01-01 | F125: 120 | G125: 67 | H125: 187 | I125: 2015-07-02 | J125: 2 | K125: 11892
A126: BURUNDI | B126: Bujumbura | C126: S1 | D126: 2020-01-02 | E126: 2021-01-01 | F126: 120 | G126: 67 | H126: 187 | I126: 2015-07-02 | J126: 2 | K126: 10378
A127: CABO VERDE | B127: [Other] | C127: S1 | D127: 2020-01-02 | E127: 2021-01-01 | F127: 62 | G127: 45 | H127: 107 | I127: 2020-03-02 | K127: 11826
A128: CABO VERDE | B128: Boa Vista Island | C128: S1 | D128: 2020-01-02 | E128: 2021-01-01 | F128: 167 | G128: 48 | H128: 215 | I128: 2020-03-02 | K128: 11680
A129: CABO VERDE | B129: Fogo | C129: S1 | D129: 2020-01-02 | E129: 2021-01-01 | F129: 70 | G129: 63 | H129: 133 | I129: 2020-03-02 | K129: 12283
A130: CABO VERDE | B130: Praia | C130: S1 | D130: 2020-01-02 | E130: 2021-01-01 | F130: 144 | G130: 94 | H130: 238 | I130: 2020-03-02 | K130: 10381
A131: CABO VERDE | B131: Sal Island | C131: S1 | D131: 2020-01-02 | E131: 2021-01-01 | F131: 156 | G131: 93 | H131: 249 | I131: 2020-03-02 | K131: 11681
A132: CABO VERDE | B132: Sao Tiago Island | C132: S1 | D132: 2020-01-02 | E132: 2021-01-01 | F132: 51 | G132: 44 | H132: =F132+G132 -> 95 | I132: 2020-03-02 | K132: 11682
A133: CABO VERDE | B133: Sao Vicente Island | C133: S1 | D133: 2020-01-02 | E133: 2021-01-01 | F133: 115 | G133: 79 | H133: 194 | I133: 2020-03-02 | K133: 11683
A134: CAMBODIA | B134: [Other] | C134: S1 | D134: 2020-01-02 | E134: 2021-01-01 | F134: 110 | G134: 57 | H134: 167 | I134: 2019-04-02 | K134: 11790
A135: CAMBODIA | B135: Phnom Penh | C135: S1 | D135: 2020-01-02 | E135: 2021-01-01 | F135: 151 | G135: 85 | H135: 236 | I135: 2018-05-02 | K135: 10253
A136: CAMBODIA | B136: Siem Reap | C136: S1 | D136: 2020-04-02 | E136: 2020-10-01 | F136: 155 | G136: 79 | H136: 234 | I136: 2017-12-02 | K136: 11117
A137: CAMBODIA | B137: Siem Reap | C137: S2 | D137: 2020-10-02 | E137: 2020-04-01 | F137: 170 | G137: 81 | H137: 251 | I137: 2017-12-02 | K137: 11117
A138: CAMBODIA | B138: Sihanoukville | C138: S1 | D138: 2020-05-02 | E138: 2020-09-01 | F138: 145 | G138: 73 | H138: 218 | I138: 2020-07-02 | K138: 13422
A139: CAMBODIA | B139: Sihanoukville | C139: S2 | D139: 2020-09-02 | E139: 2020-05-01 | F139: 180 | G139: 76 | H139: 256 | I139: 2020-07-02 | K139: 13422
A140: CAMEROON | B140: [Other] | C140: S1 | D140: 2020-01-02 | E140: 2021-01-01 | F140: 104 | G140: 49 | H140: 153 | I140: 2020-05-02 | J140: 2 | K140: 11825
A141: CAMEROON | B141: Douala | C141: S1 | D141: 2020-01-02 | E141: 2021-01-01 | F141: 147 | G141: 96 | H141: 243 | I141: 2020-05-02 | J141: 2 | K141: 10380
A142: CAMEROON | B142: Limbe | C142: S1 | D142: 2020-01-02 | E142: 2021-01-01 | F142: 136 | G142: 61 | H142: 197 | I142: 2020-05-02 | J142: 2 | K142: 15055
A143: CAMEROON | B143: Yaounde | C143: S1 | D143: 2020-01-02 | E143: 2021-01-01 | F143: 142 | G143: 111 | H143: 253 | I143: 2020-05-02 | J143: 2 | K143: 10379
A144: CANADA | B144: [Other] | C144: S1 | D144: 2020-01-02 | E144: 2021-01-01 | F144: 122 | G144: 107 | H144: 229 | I144: 2020-05-02 | K144: 11763
A145: CANADA | B145: Banff | C145: S1 | D145: 2020-01-02 | E145: 2021-01-01 | F145: 297 | G145: 87 | H145: 384 | I145: 2020-05-02 | K145: 11118
A146: CANADA | B146: Calgary | C146: S1 | D146: 2020-05-02 | E146: 2020-10-01 | F146: 287 | G146: 99 | H146: 386 | I146: 2020-05-02 | K146: 10118
A147: CANADA | B147: Calgary | C147: S2 | D147: 2020-10-02 | E147: 2020-05-01 | F147: 211 | G147: 92 | H147: 303 | I147: 2020-05-02 | K147: 10118
A148: CANADA | B148: Dartmouth | C148: S1 | D148: 2020-01-02 | E148: 2021-01-01 | F148: 146 | G148: 108 | H148: 254 | I148: 2020-05-02 | K148: 10827
A149: CANADA | B149: Edmonton | C149: S1 | D149: 2020-01-02 | E149: 2021-01-01 | F149: 179 | G149: 75 | H149: 254 | I149: 2020-05-02 | K149: 10492
A150: CANADA | B150: Fort McMurray, Alberta | C150: S1 | D150: 2020-01-02 | E150: 2021-01-01 | F150: 210 | G150: 92 | H150: 302 | I150: 2012-01-02 | K150: 13823
A151: CANADA | B151: Fredericton | C151: S1 | D151: 2020-01-02 | E151: 2021-01-01 | F151: 126 | G151: 106 | H151: 232 | I151: 2020-05-02 | K151: 12195
A152: CANADA | B152: Gander, Newfoundland | C152: S1 | D152: 2020-01-02 | E152: 2021-01-01 | F152: 124 | G152: 106 | H152: 230 | I152: 2020-05-02 | K152: 12294
A153: CANADA | B153: Halifax | C153: S1 | D153: 2020-01-02 | E153: 2021-01-01 | F153: 146 | G153: 108 | H153: 254 | I153: 2020-05-02 | K153: 10119
A154: CANADA | B154: London, Ontario | C154: S1 | D154: 2020-01-02 | E154: 2021-01-01 | F154: 115 | G154: 94 | H154: 209 | I154: 2014-08-02 | K154: 10829
A155: CANADA | B155: Mississauga | C155: S1 | D155: 2020-01-02 | E155: 2021-01-01 | F155: 101 | G155: 68 | H155: 169 | I155: 2020-05-02 | K155: 11119
A156: CANADA | B156: Moncton | C156: S1 | D156: 2020-01-02 | E156: 2021-01-01 | F156: 135 | G156: 106 | H156: 241 | I156: 2020-05-02 | K156: 12194
A157: CANADA | B157: Montreal | C157: S1 | D157: 2020-01-02 | E157: 2021-01-01 | F157: 179 | G157: 93 | H157: 272 | I157: 2020-05-02 | J157: 4 | K157: 10120
A158: CANADA | B158: Nanoose Bay | C158: S1 | D158: 2020-01-02 | E158: 2021-01-01 | F158: 107 | G158: 99 | H158: 206 | I158: 2020-05-02 | K158: 13883
A159: CANADA | B159: Northwest Territories | C159: S1 | D159: 2020-01-02 | E159: 2021-01-01 | F159: 115 | G159: 65 | H159: 180 | I159: 2020-05-02 | K159: 11711
A160: CANADA | B160: Ottawa | C160: S1 | D160: 2020-01-02 | E160: 2021-01-01 | F160: 159 | G160: 78 | H160: 237 | I160: 2020-05-02 | K160: 10117
A161: CANADA | B161: Prince Edward Island | C161: S1 | D161: 2020-06-02 | E161: 2020-10-01 | F161: 180 | G161: 111 | H161: 291 | I161: 2020-05-02 | K161: 11121
A162: CANADA | B162: Prince Edward Island | C162: S2 | D162: 2020-10-02 | E162: 2020-06-01 | F162: 137 | G162: 107 | H162: 244 | I162: 2020-05-02 | K162: 11121
A163: CANADA | B163: Quebec | C163: S1 | D163: 2020-05-02 | E163: 2020-10-01 | F163: 317 | G163: 115 | H163: 432 | I163: 2020-05-02 | K163: 10121
A164: CANADA | B164: Quebec | C164: S2 | D164: 2020-10-02 | E164: 2020-05-01 | F164: 169 | G164: 101 | H164: 270 | I164: 2020-05-02 | K164: 10121
A165: CANADA | B165: Regina, Saskatchewan | C165: S1 | D165: 2020-01-02 | E165: 2021-01-01 | F165: 192 | G165: 91 | H165: 283 | I165: 2012-01-02 | K165: 13822
A166: CANADA | B166: Richmond | C166: S1 | D166: 2020-05-02 | E166: 2020-10-16 | F166: 171 | G166: 92 | H166: 263 | I166: 2020-05-02 | K166: 11122
A167: CANADA | B167: Richmond | C167: S2 | D167: 2020-10-17 | E167: 2020-05-01 | F167: 132 | G167: 88 | H167: 220 | I167: 2020-05-02 | K167: 11122
A168: CANADA | B168: Saskatoon, Saskatchewan | C168: S1 | D168: 2020-01-02 | E168: 2021-01-01 | F168: 188 | G168: 90 | H168: 278 | I168: 2012-01-02 | K168: 12734
A169: CANADA | B169: Sidney | C169: S1 | D169: 2020-05-02 | E169: 2020-10-16 | F169: 188 | G169: 110 | H169: 298 | I169: 2020-05-02 | K169: 11124
A170: CANADA | B170: Sidney | C170: S2 | D170: 2020-10-17 | E170: 2020-05-01 | F170: 100 | G170: 101 | H170: 201 | I170: 2020-05-02 | K170: 11124
A171: CANADA | B171: St. John's, Newfoundland | C171: S1 | D171: 2020-01-02 | E171: 2021-01-01 | F171: 161 | G171: 123 | H171: 284 | I171: 2020-05-02 | K171: 11123
A172: CANADA | B172: Toronto | C172: S1 | D172: 2020-01-02 | E172: 2021-01-01 | F172: 193 | G172: 115 | H172: 308 | I172: 2020-05-02 | J172: 5 | K172: 10122
A173: CANADA | B173: Vancouver | C173: S1 | D173: 2020-05-16 | E173: 2020-09-16 | F173: 241 | G173: 118 | H173: 359 | I173: 2020-05-02 | K173: 10123
A174: CANADA | B174: Vancouver | C174: S2 | D174: 2020-09-17 | E174: 2020-05-15 | F174: 153 | G174: 109 | H174: 262 | I174: 2020-05-02 | K174: 10123
A175: CANADA | B175: Victoria | C175: S1 | D175: 2020-05-02 | E175: 2020-10-16 | F175: 188 | G175: 110 | H175: 298 | I175: 2020-05-02 | K175: 10832
A176: CANADA | B176: Victoria | C176: S2 | D176: 2020-10-17 | E176: 2020-05-01 | F176: 100 | G176: 101 | H176: 201 | I176: 2020-05-02 | K176: 10832
A177: CANADA | B177: Winnipeg | C177: S1 | D177: 2020-01-02 | E177: 2021-01-01 | F177: 172 | G177: 103 | H177: 275 | I177: 2020-05-02 | K177: 10124
A178: CAYMAN ISLANDS | B178: Cayman Islands | C178: S1 | D178: 2020-07-18 | E178: 2020-12-15 | F178: 307 | G178: 119 | H178: 426 | I178: 2019-12-02 | K178: 19016
A179: CAYMAN ISLANDS | B179: Cayman Islands | C179: S2 | D179: 2020-12-16 | E179: 2020-07-17 | F179: 588 | G179: 147 | H179: 735 | I179: 2019-12-02 | K179: 19016
A180: CENTRAL AFRICAN REPUBLIC | B180: [Other] | C180: S1 | D180: 2020-01-02 | E180: 2021-01-01 | F180: 216 | G180: 111 | H180: 327 | I180: 2019-03-02 | J180: 2 | K180: 11827
A181: CENTRAL AFRICAN REPUBLIC | B181: Bangui | C181: S1 | D181: 2020-01-02 | E181: 2021-01-01 | F181: 216 | G181: 111 | H181: 327 | I181: 2019-03-02 | J181: 2 | K181: 10382
A182: CHAD | B182: [Other] | C182: S1 | D182: 2020-01-02 | E182: 2021-01-01 | F182: 173 | G182: 100 | H182: 273 | I182: 2018-10-02 | J182: 2 | K182: 11828
A183: CHAD | B183: Ndjamena | C183: S1 | D183: 2020-01-02 | E183: 2021-01-01 | F183: 237 | G183: 92 | H183: 329 | I183: 2020-05-02 | J183: 2 | K183: 10383
A184: CHAGOS ARCHIPELAGO | B184: Chagos Archipelago | C184: S1 | D184: 2020-01-02 | E184: 2021-01-01 | F184: 75 | G184: 61 | H184: 136 | I184: 2019-10-02 | K184: 11057
A185: CHILE | B185: [Other] | C185: S1 | D185: 2020-01-02 | E185: 2021-01-01 | F185: 182 | G185: 89 | H185: 271 | I185: 2017-07-02 | K185: 11893
A186: CHILE | B186: Santiago | C186: S1 | D186: 2020-01-02 | E186: 2021-01-01 | F186: 190 | G186: 116 | H186: 306 | I186: 2019-09-02 | K186: 10035
A187: CHINA | B187: [Other] | C187: S1 | D187: 2020-01-02 | E187: 2021-01-01 | F187: 141 | G187: 110 | H187: 251 | I187: 2020-02-02 | K187: 11791
A188: CHINA | B188: Beijing | C188: S1 | D188: 2020-01-02 | E188: 2021-01-01 | F188: 258 | G188: 119 | H188: 377 | I188: 2016-03-02 | J188: 38 | K188: 10254
A189: CHINA | B189: Changchun | C189: S1 | D189: 2020-01-02 | E189: 2021-01-01 | F189: 167 | G189: 100 | H189: 267 | I189: 2017-04-02 | K189: 13481
A190: CHINA | B190: Chengdu | C190: S1 | D190: 2020-01-02 | E190: 2021-01-01 | F190: 143 | G190: 82 | H190: 225 | I190: 2020-02-02 | K190: 10258
A191: CHINA | B191: Chongqing | C191: S1 | D191: 2020-01-02 | E191: 2021-01-01 | F191: 99 | G191: 83 | H191: 182 | I191: 2010-05-02 | K191: 11127
A192: CHINA | B192: Dalian | C192: S1 | D192: 2020-01-02 | E192: 2021-01-01 | F192: 166 | G192: 108 | H192: 274 | I192: 2017-04-02 | K192: 11128
A193: CHINA | B193: Fuzhou | C193: S1 | D193: 2020-01-02 | E193: 2021-01-01 | F193: 176 | G193: 122 | H193: 298 | I193: 2018-01-02 | K193: 12239
A194: CHINA | B194: Guangzhou | C194: S1 | D194: 2020-01-02 | E194: 2021-01-01 | F194: 243 | G194: 164 | H194: 407 | I194: 2018-03-02 | K194: 10255
A195: CHINA | B195: Guilin | C195: S1 | D195: 2020-01-02 | E195: 2021-01-01 | F195: 168 | G195: 100 | H195: 268 | I195: 2016-08-02 | K195: 12911
A196: CHINA | B196: Haikou | C196: S1 | D196: 2020-01-02 | E196: 2021-01-01 | F196: 175 | G196: 113 | H196: =F196+G196 -> 288 | I196: 2020-02-02 | K196: 12242
A197: CHINA | B197: Hangzhou | C197: S1 | D197: 2020-01-02 | E197: 2021-01-01 | F197: 169 | G197: 124 | H197: 293 | I197: 2019-08-02 | K197: 11129
A198: CHINA | B198: Harbin | C198: S1 | D198: 2020-01-02 | E198: 2021-01-01 | F198: 187 | G198: 101 | H198: 288 | I198: 2017-04-02 | K198: 12514
A199: CHINA | B199: Jinan | C199: S1 | D199: 2020-01-02 | E199: 2021-01-01 | F199: 121 | G199: 85 | H199: 206 | I199: 2020-02-02 | K199: 15031
A200: CHINA | B200: Lhasa | C200: S1 | D200: 2020-01-02 | E200: 2021-01-01 | F200: 131 | G200: 52 | H200: 183 | I200: 2011-11-02 | K200: 11998
... 904 more rows

Sheet Benefits and F&A - DO NOT DELET
A2: Name: 'Leave Benefits' | D2: Name: 'Staff_Benefits'
A4: Select Personnel Type | D4: Select Personnel Type
A5: Faculty | B5: 0.265 | D5: Faculty | E5: 0.265
A6: Staff / Postdocs | B6: 0.331 | D6: Staff / Postdocs | E6: 0.331
A7: Temporary help | B7: 0.087 | D7: Temporary help | E7: 0.087
A8: Student | B8: 0.038 | D8: Student | E8: 0.038
A11: Name: 'Activity' (for drop down list selections) and 'F_A' (for F&A rate calculations)
A12: Select Activity
A13: Organized Research | B13: 0.475
A14: Off-Campus Research | B14: 0.26
A15: CESU | B15: 0.175
A16: Instruction on campus | B16: 0.58
A17: Instruction off campus | B17: 0.26
A18: Public Service/Outreach | B18: 0.35
A19: Public Service off campus | B19: 0.26
A20: Ag & Forestry Exp. Station | B20: 0.36
A21: State of Idaho - Research | B21: 0.2
A22: Enter other rates manually | B22: 0
A24: Name: 'Student'
A25: Select Student Type | B25: 0.038
A26: Undergrad, summer | B26: 0.038
A27: Undergrad, academic | B27: 0.038
A28: Graduate, summer | B28: 0.038
A29: Graduate, academic | B29: 0.038

Sheet List selections - DO NOT DELETE
A1: Drop-down list directions:
A2: Type your list selections on this page, as the other examples
A3: Highlight the list (you only need to highlight the first column) and select "Insert" from the menu
A4: Select "Name" and then "Define"
A5: Give the selections a descriptive name
A6: Put the cursor in the cell you want a drop-down list
A7: Select "Data" from the menu
A8: Then select "Validation"
A9: Select the "Settings" tab
A10: Allow "List"
A11: Find the name of your data
A13: Name: 'SeniorPersonnel' - Note: List selections must match same names on "Benefits and F&A" spreadsheet
A14: Select Personnel Type
A15: Faculty
A16: Staff / Postdocs
A17: Temporary help
A18: Student
A20: Name: 'OtherPersonnel' - Note: List selections must match same names on "Benefits and F&A" spreadsheet
A21: Select Personnel Type
A22: Faculty
A23: Staff / Postdocs
A24: Temporary help
A25: Student
A27: Name: 'Student' - Note: List selections must match same names on "Benefits and F&A" spreadsheet
A28: Select Student Type
A29: Undergrad, summer
A30: Undergrad, academic
A31: Graduate, summer
A32: Graduate, academic
A34: Name: 'Fabrication' - Note: List selections must match same names on "Benefits and F&A" worksheet
A35: Select Personnel Type
A36: Faculty
A37: Staff / Postdocs
A38: Temporary help
A39: Student
A41: Name: 'Other Expense' | D41: Detailed Desciption (from University of Idaho General Accounting)
A42: Select Other Expenses from List | D42: 5001 Communication Services
A43: E5010 - Media Services | D43: Costs paid to communication media.
A44: E5015 - Messenger Services | D44: Messenger services.
A45: E5020 - Postage & Mailing | D45: Cost of stamps, stamped envelopes, postage meter charges, letter registry, package insurance, post office box rentals, etc.
A46: E5023 - Express Mail | D46: Cost of express mail (UPS, Federal Express).
A47: E5029 - Data Line Charges | D47: Costs for data line charges, installations, or removal charges, and access charges including long distance.
A48: E5030 - Telephone-Local Service | D48: Costs for local telephone service, line charges, and service installation and removal charges.
A49: E5031 - Telephone-Long Distance | D49: All charges, such as credit card calls, and long distance charges.
A50: E5032 - Radio Equipment Services | D50: Includes replacement radio phones. Does not include telephone systems.
A51: E5033 - Celluar / Wireless Phone | D51: Costs for monthly access, local and long distance charges.
A52: E5034 - Telephone 800 Service | D52: Costs for 800 number phone lines to provide services to the public.
A53: E4049 - Journal Publication Costs | D53: All charges to produce a journal.
A54: E5050 - Communication Other | D54: All other costs associated with communications, such as costs for telegrams, or other non-telephone communications. Excludes computer interface terminal charges.
A56: Name: 'Employee Development' | D56: Detailed Desciption (from University of Idaho General Accounting)
A57: Select Employee Development Costs from List | D57: 5051 Employee Development Services
A58: E5055 - Dues / Membership In-State | D58: Dues for memberships in-state, county and other organizations for officials and employees.
A59: E5059 - Dues / Membersship Out-of-State | D59: Dues for membership in out-of-state organizations for officials and employees.
A60: E5060 - Subscriptions | D60: Subscriptions to newspapers, magazines, and other periodicals including continuous tax, rate, legal and other technical service subscriptions.
A61: E5070 - Conference / Registration Services | D61: Tuition and registration payments made on behalf of employees who have registered in schools, colleges, or universities. Charges for tuition and registration in seminars, conferences, and training sessions. Instructor fees.
A62: E5071 - Training Supplies | D62: Supplies used in training
A63: E5099 - Other Employee Dev. Services | D63: Other non-1099 reportable employee development.
A65: Name: 'Other Services' | D65: Detailed Desciption (from University of Idaho General Accounting)
A66: Select Other Services Costs from List | D66: 5101 Employee Development Services
A67: E5015 - Clerical Services | D67: The costs to create and maintain a record of financial or statistical data. Includes routine bookkeeping or secretarial or clerical service.
A68: E5110 - Laundry Services | D68: Service rendered by laundries and dry cleaners for cleaning of such items as uniforms, rugs, drapes, etc. (See E5399 for employee travel cost).
A69: E5115 - Janitorial & Sanitation | D69: Charges for janitorial services.
A70: E5120 - Medical Services | D70: The cost of physical exams, doctors, nurses, and other medical fees required for an employee in state service. Outside medical care and hospitalization for non-state employees and students; dental work, optical glasses, etc.
A71: E5132 - Institutional Services - other states | D71: Cost of providing institutional care where such care is provided by a non-state entity.
A72: E5135 - Group Organizational Membership | D72: Cost for membership in-state, county and other organizations for a state agency (usually a large payment which includes miscellaneous services).
A73: E5150 - All other services | D73: Fees charged for examinations, review, and reporting of financial accounts. Other services not found under other categories of services.
A74: E5151 - Game Management | D74: Costs to manage sporting activities.
A75: E5152 - Services for users | D75: Miscellaneous services.
A76: E5153 - Game Gaurantees | D76: Amount due if gate receipts do not meet expectations.
A77: E5305 - Data Processing Services | D77: Costs associated with electronic processing of data.
A78: E5307 - Analyticial Services | D78: Costs associated with analysis of data.
A79: E5310 - Computer Hardware Service | D79: Costs associated with servicing hardware; services having to do with design of systems.
A80: E5315 - Computer Software Service | D80: Costs associated with services programs and other software; services for software maintenance design and programming.
A81: E5320 - Computer Services | D81: Services having to do with computer systems maintenance. Includes CPU time and storage.
A82: E5350 - Other Technical Services | D82: Other technical services not included elsewhere.
A84: Name: 'Equipment and Supplies'
A85: Select Equipment and Supplies from List
A86: E5705 - Forage & Feed | D86: Cost of forage and feed grain, bedding, seeds, fertilizer, pasture, etc involved with agricultural activities.
A87: E5706 - Seed | D87: Seed involved with agricultural activities.
A88: E5707 - Ag Fertilizers | D88: Fertilizers involved with agricultural activities.
A89: E5708 - Animal Health Expenses | D89: Cost of health related charges in the care of animals.
A90: E5709 - Ag Chemicals | D90: Chemicals involved with agricultural activities.
A91: E5710 - Minor Tools | D91: Cost of minor tools such as shovels, hammers, saws, etc.
A92: E5715 - Employee Uniforms / Clothing | D92: Cost of uniforms and clothing for employees.
A93: E5720 - Educational Supplies | D93: Books and supplies; educational and recreational supplies.
A94: E5722 - Computer Software Supplies | D94: Supplies needed to make software work and software less than $300.
A95: E5724 - Research Supplies | D95: Supplies needed to do research.
A96: E5725 - Field Supplies | D96: Supplies needed to support field studies, such as snowshoes, skis, sleeping bags, tents, tarpaulins, saddles, etc.
A97: E5735 - Photo & Video Supplies | D97: Video tape films, slides, and other film supplies.
A98: E5739 - Eductaional Films | D98: Films used for educational purposes.
A99: E5740 - Recr & Athletic Supplies | D99: Costs of recreational equipment and supplies.
A100: E5741 - Med Lab & Tech Supplies | D100: Costs of medicine and drugs, clinical supplies, tech supplies for labs, blueprints, X-ray supplies, chemical dyes, etc. Also, cost of food, animals, and materials purchased for the purpose of making lab tests: blood and alcohol tests; analysis and experiments, diagnostic films and chart paper.
A101: E5743 - Med Supplies - Clinical | D101: Medical supplies used in the clinical atmosphere.
A102: E5744 - Med Supplies - Lab | D102: Medical supplies used in the lab environment.
A103: E5745 - Microfilm & Microfiche Supplies | D103: Supplies only (see 5270 for services).
A104: E5746 - Fire/Emergency Cache Supplies | D104: Fire and emergency supplies maintained in a cache for immediate use.
A105: E5747 - Med Supplies - X-Ray | D105: Medical supplies used for x-rays.
A106: E5748 - Photocopy Supplies | D106: Unusual specific use supplies only (see 5275 for regular services).
A107: E5749 - Other Specific Use Supplies | D107: All other items not specifically provided for in the above classification.
A108: E5750 - Maps | D108: Cost of maps purchased for use by state employees.
A109: E5751 - Safety Supplies | D109: Costs associated with providing employees with necessary safety supplies.
A110: E6720 - Office Equipment | D110: Cost of mechanical office appliances, including photocopiers, calculators, fax machines, etc. Includes costs for substantial improvement of estimated life. Excludes small items such as staplers, rubber stamps, rulers, punches, etc
A111: E6730 - Office Equipment Improvements | D111: Improvements made to office equipment or furniture.
A112: E6799 - Office Equip-Other | D112: Other office equipment not listed.
A113: E6810 - Household / Laundry / Refrigeration Equipment | D113: Cost of household furniture and furnishings, kitchen and baking equipment, laundry, heating, refrigeration, ventilation, and air conditioning, floor rug equipment. Includes all freight, accessories and other costs to make operational for the use intended.
A114: E6830 - Manufacturing Equipment | D114: Cost of machinery and equipment used in a manufacturing environment . Includes all freight, accessories, and other costs to make operational for the use intended.
A115: E6840 - Shop & Plant Equipment | D115: Garage equipment, power plant equipment and machine shop equipment. Includes all freight, accessories, and other costs to make operational for the use intended.
A116: E6850 - Medical / Surgery / Lab Equipment | D116: Cost of medical and laboratory equipment, operating room equipment, etc. Includes all freight, accessories, and other costs to make operational for the use intended.
A117: E6860 - Communication Equipment | D117: Short-wave receiving and transmitting radio equipment, including sets installed in automobiles; office telephone systems & equipment.
A118: E6870 - Electronic & Photographic Equipment | D118: The cost of electronic and audio/visual equipment. Includes all freight accessories, and other costs to make operational for the use intended.
A119: E6880 - Recreational Equipment | D119: The cost of recreational equipment, includes all freight, accessories, and other costs to make operational for the use intended.
A120: E6899 - Special Use Equipment Other | D120: All other specific equipment not listed above
A122: Name: '>5K Expenses'
A123: Select >5K from List
A124: E6010C->5K Land
A125: E6020C->5K Right of Way
A126: E6099C->5K Property & Improve Other
A127: E6120C->5K Livestock
A128: E6130C->5K Minerals
A129: E6140C->5K Plants
A130: E6149C->5K Natural Resources Other
A131: E6160C->5K Site Improvements
A132: E6170C->5K Site Preparation
A133: E6180C->5K Utilities
A134: E6199C->5K Site Development Other
A135: E6220C->5K Building
A136: E6230C->5K Building Improvements
A137: E6399C->5K Misc Structures
A138: E6410C->5K Computer Equipment
A139: E6420C->5K Data Processing Equipment
A140: E6430C->5K Computer Equipment Improvements
A141: E6499C->5K Computer Equipment Other
A142: E6510C->5K Educational Books
A143: E6519C->5K Research Text
A144: E6520C->5K Educational Equipment
A145: E6599C->5K Educational Other
A146: E6610C->5K Agric & Landscape Equipment
A147: E6620C->5K Constr & Engr Equipment
A148: E6630C->5K Autos & Light Trucks
A149: E6640C->5K Watercraft
A150: E6650C->5K Small Motorized Equipment
A151: E6690C->5K Motorized Equip Improvements
A152: E6699C->5K Non Construction Vehicles
A153: E6710C->5K Office Furniture
A154: E6720C->5K Office Equipment
A155: E6730C->5K Office Equipment Improvements
A156: E6799C->5K Office Equipment Other
A157: E6810C->5K Household/Laundry/Refrig Equip
A158: E6830C->5K Manufacturing Equipment
A159: E6840C->5K Shop & Plant Equipment
A160: E6850C->5K Medical/Surgery/Lab Equipment
A161: E6860C->5K Communication Equipment
A162: E6870C->5K Electronic & Photographic Equip
A163: E6880C->5K Recreation Equipment
A164: E6899C->5K Specific Use Equipment Other
A166: Name: 'Trustee/Benefits'
A167: Select Trustee/Benefits from List
A168: E7060 - Prizes and Awards
A169: E7070 - Incentives
A170: E7080 - Risk Management Payments
A171: E7090 - Special Indemnity Payments
A172: E7095 - CIT Earning Distribution
A173: E7096 - Investment Earnings Distribution
A174: E7097 - Gift Distribution to UI
A175: E7098 - Gift Distribution to Affiliates
A176: E7099 - Other
A177: E7110 - Scholarships & Prizes
A178: E7120 - Student Loans
A179: E7130 - Tuition & Training Assistance
A180: E7140 - Graduate Student Tuition & Fees-Not subject to F&A charges
A181: E7150 - Participant Support Costs-Not subject to F&A charges
A182: E7155 - Participant Support Costs-Subject to F&A charges
A183: E7191 - Rents & Lodging
A184: E7199 - Educational & Training Asst Other
A185: E7240 - Life Insurance-Pension
A186: E7250 - Health Insurance-Pension
A187: E7299 - Pension Payments Other
A188: E7420 - College or University
A189: E7499 - Federal Payments-Sub Grantees Other
A190: E7510 - State/Fed Funded Loans
A192: Name: 'Travel' | D192: 04 TRAVEL CODES
A193: Select Travel Cost from List | D193: 5351 Employee Travel Costs
A194: E5352 Refreshments and Meals (TRAVEL) | D194: Refreshments and meals for department-sponsored meetings. When in conjunction w/traveling.
A195: E5360 Private Auto In-State | D195: Reimbursement of per-mile approved by Board of Examiners for the in-state use of private vehicles, parking fees, and tolls.
A196: E5364 Private Vehicle Out-of-USA | D196: Reimbursement of per-mile approved by Board of Examiners for out-of-G119USA use of private vehicles, parking fees, and tolls.
A197: E5365 Private Auto Out-of-State | D197: Reimbursement of per-mile approved by Board of Examiners for out-of-state use of private vehicles, parking fees, and tolls.
A198: E5367 Rental Vehicles In-State | D198: Costs incurred when renting a vehicle from a rental agency on a day to day basis in-state. Includes gas, oil, parking, etc.
A199: E5368 Rental Vehicles Out-of-State | D199: Costs incurred when renting a vehicle from a rental agency on a day to day basis out-of-state. Includes gas, oil, parking, etc.
A200: E5369 Rental Vehicles Out-of-USA | D200: Costs incurred when renting a vehicle from a rental agency on a day to day basis out-of-USA. Includes, gas, oil, parking, etc.
A201: E5371 Motor Pool Vehicle-In State | D201: Cost of U of I motor pool vehicles used for travel in-state
A202: E5372 Motor Pool Vehicle-Out of State | D202: Cost of U of I motor pool vehicles used for travel out-of-state
A203: E5373 Motor Pool Vehicle-Out of USA | D203: Cost of U of I motor pool vehicles used for travel out-of-USA
A204: E5379 Airfare-Non USA | D204: Aircraft commercial flight to foreign country. Normally reimbursement is limited to the lowest cost for passage. Includes tickets and boarding fees.
A205: E5380 Airfare-In State | D205: Aircraft commercial flight to an Idaho destination. Normally reimbursement is limited to the lowest cost for passage. Includes tickets and boarding fees.
A206: E5381 Airfare-Out of State | D206: Aircraft commercial flight to an out-of-state destination. Normally reimbursement is limited to the lowest cost for passage. Includes tickets and boarding fees.
A207: E5382 State Aircraft In-State | D207: The cost of traveling by state owned aircraft instate.
A208: E5383 State Aircraft Out-of-State | D208: The cost of traveling by state owned aircraft out-ofstate.
A209: E5384 Chartered Aircraft-In State | D209: The cost of traveling by chartered aircraft in-state. Should be on Risk Management approval list.
A210: E5385 Chartered Aircraft Out-of-State | D210: The cost of traveling by chartered aircraft out-ofstate. Should be on Risk Management approval list.
A211: E5386 Employee Aircraft In-State | D211: The cost of employee piloted aircraft in-state. Refer to state travel policy for rate.
... 10 more rows

Sheet Old Codes (hidden)
C3: Name: 'Commodity'
C4: Select Commodity from List
C5: 4012 - Lab Supplies (Professional, Technical and Scientific Supplies)
C6: 4013 - Medical and Safety Supplies
C7: 4014 - Computer Supplies
C8: 4015 - Program/Project Supplies
C9: 4018 - Self-catering (Food)
C10: 4020 - Animals for Research
C11: 4021 - Food for Animals
C12: 4075 - Field Supplies
C13: 4111 - Vehicle, Aviation, Boat Fuel
C14: 4112 - Vehicle, Aviation, Boat Parts, Supplies and Accessories
C15: 4151 - Maintenance Materials and Supplies
C16: Commodity (include description)
C18: Name: 'Contractual'
C19: Select Contractual Cost from List
C20: 3005 - Consultants (Professional Fees)
C21: 3017 - Honoraria (If allowable)
C22: 3018 - Catering (If allowable)
C23: 3031 - Research Subject Payments
C24: 3052 - Lab Analysis/services (Laboratory Testing)
C25: 3111 - Office Equipment Rental/Lease Long Term
C26: 3112 - Auto , Aircraft, and Boat Rental/Charter Short-term
C27: 3118 - Space Rental/Lease Short-term (< 2 years)
C28: 3221 - Computer Services
C29: 3222 - Software License
C30: 3444, 3442 - Communication
C31: 3332 - Journal publication page charges
C32: 3333 - Film Processing and Development
C33: 3351 - Freight and Parcel Post (incl. Fed-Ex, UPS)
C34: 3445 - Audio Conference Charge
C35: 3661 - Registration Fees
C36: 3771 - Repairs and Alteration Services (Physical Plant)
C37: 3772 - Vehicle, Airplane, Boat Repair/ Maintenance
C38: 3774 - Equipment Maintenance Service Contracts
C39: 3775 - Equipment Maintenance
C40: 3781 - Facilities Repair/Maintenance
C41: 3782 - Custodial/Janitorial Services
C42: 3799 - Maintenance/Security-Other

Sheet Sheet3
